extractdate,publisheruri,publisherlabel,serviceyypeuri,servicetypelabel,Date of Transaction,LA Department incurring spend,Beneficiary,Gross Amount,Summary of Purpose of Spend,Merchant Category,Merchant Category Code
29/04/2016,http://opendatacommunities.org/id/county-council/surrey,Surrey,http://id.esd.org.uk/service/1465,Council expenditure,28/12/2015,FAIRCROFT COMMUNITY HOME,PRIMARK,52.3,"CLOTHING, UNIFORM AND LAUNDRY",FAMILY CLOTHING STORES,5651
29/04/2016,http://opendatacommunities.org/id/county-council/surrey,Surrey,http://id.esd.org.uk/service/1465,Council expenditure,28/12/2015,FAIRCROFT COMMUNITY HOME,PRIMARK,30.5,"CLOTHING, UNIFORM AND LAUNDRY",FAMILY CLOTHING STORES,5651
29/04/2016,http://opendatacommunities.org/id/county-council/surrey,Surrey,http://id.esd.org.uk/service/1465,Council expenditure,28/12/2015,WOODLANDS COMMUNITY HOME,SAINSBURYS LOC (4898),15.15,PURCHASE OF FOOD (RAW MATERIALS),"GROCERY STORES, SUPERMARKETS",5411
29/04/2016,http://opendatacommunities.org/id/county-council/surrey,Surrey,http://id.esd.org.uk/service/1465,Council expenditure,28/12/2015,HILLSIDE,CO-OP GROUP 500302,10.71,PURCHASE OF FOOD (RAW MATERIALS),"GROCERY STORES, SUPERMARKETS",5411
29/04/2016,http://opendatacommunities.org/id/county-council/surrey,Surrey,http://id.esd.org.uk/service/1465,Council expenditure,28/12/2015,WOODLANDS COMMUNITY HOME,VUE BSL-ATM,37.96,EDUC VISITS/HOLS/CAMPS/TOYS,MOTION PICTURE THEATERS,7832
29/04/2016,http://opendatacommunities.org/id/county-council/surrey,Surrey,http://id.esd.org.uk/service/1465,Council expenditure,28/12/2015,CHEYNE WALK COMMUNITY HOME,SUSSEX UNIFORMS LIMITE,84.34,"CLOTHING, UNIFORM AND LAUNDRY",MEN'S/WOMEN'S/CHILDREN'S UNIFORMS/COMMERCIAL CLOTH,5137
29/04/2016,http://opendatacommunities.org/id/county-council/surrey,Surrey,http://id.esd.org.uk/service/1465,Council expenditure,28/12/2015,FAIRCROFT COMMUNITY HOME,COSTA COFFEE,9.4,REFRESHMENT COSTS,FAST FOOD RESTAURANTS,5814
29/04/2016,http://opendatacommunities.org/id/county-council/surrey,Surrey,http://id.esd.org.uk/service/1465,Council expenditure,28/12/2015,FAIRCROFT COMMUNITY HOME,ATG TICKET WEB,13,EDUC VISITS/HOLS/CAMPS/TOYS,"THEATRICAL PRODUCERS(EXCL MOTION PIX),TICKET AGNCY",7922
29/04/2016,http://opendatacommunities.org/id/county-council/surrey,Surrey,http://id.esd.org.uk/service/1465,Council expenditure,28/12/2015,MALLOW CRESCENT,TESCO STORE 2590,79.35,PURCHASE OF FOOD (RAW MATERIALS),"GROCERY STORES, SUPERMARKETS",5411
29/04/2016,http://opendatacommunities.org/id/county-council/surrey,Surrey,http://id.esd.org.uk/service/1465,Council expenditure,28/12/2015,MALLOW CRESCENT,SAINSBURYS TO YOU 0686,4.2,PURCHASE OF FOOD (RAW MATERIALS),"GROCERY STORES, SUPERMARKETS",5411
29/04/2016,http://opendatacommunities.org/id/county-council/surrey,Surrey,http://id.esd.org.uk/service/1465,Council expenditure,28/12/2015,MALLOW CRESCENT,SAINSBURYS TO YOU 0686,97.05,PURCHASE OF FOOD (RAW MATERIALS),"GROCERY STORES, SUPERMARKETS",5411
29/04/2016,http://opendatacommunities.org/id/county-council/surrey,Surrey,http://id.esd.org.uk/service/1465,Council expenditure,28/12/2015,MALLOW CRESCENT,SAINSBURYS TO YOU 0686,10.7,PURCHASE OF FOOD (RAW MATERIALS),"GROCERY STORES, SUPERMARKETS",5411
29/04/2016,http://opendatacommunities.org/id/county-council/surrey,Surrey,http://id.esd.org.uk/service/1465,Council expenditure,28/12/2015,MALLOW CRESCENT,SAINSBURYS TO YOU 0686,113.95,PURCHASE OF FOOD (RAW MATERIALS),"GROCERY STORES, SUPERMARKETS",5411
29/04/2016,http://opendatacommunities.org/id/county-council/surrey,Surrey,http://id.esd.org.uk/service/1465,Council expenditure,28/12/2015,CHEYNE WALK COMMUNITY HOME,FORTUNE GARDEN,10.8,PURCHASE OF FOOD (RAW MATERIALS),FAST FOOD RESTAURANTS,5814
29/04/2016,http://opendatacommunities.org/id/county-council/surrey,Surrey,http://id.esd.org.uk/service/1465,Council expenditure,28/12/2015,LIBERTAS COMMUNITY HOME,ROYAL SURREY HOSPITAL,47.9,PURCHASE OF FOOD (RAW MATERIALS),FAST FOOD RESTAURANTS,5814
29/04/2016,http://opendatacommunities.org/id/county-council/surrey,Surrey,http://id.esd.org.uk/service/1465,Council expenditure,28/12/2015,CHEYNE WALK COMMUNITY HOME,AMFBOWLING.CO.UK,58.75,EDUC VISITS/HOLS/CAMPS/TOYS,"CLUBS-CNTRY,MBRSHIP(ATHLET,REC,SPRTS,PRIVATE GOLF",7997
29/04/2016,http://opendatacommunities.org/id/county-council/surrey,Surrey,http://id.esd.org.uk/service/1465,Council expenditure,28/12/2015,RUTH HOUSE,SAINSBURYS TO YOU 0686,22.3,PURCHASE OF FOOD (RAW MATERIALS),"GROCERY STORES, SUPERMARKETS",5411
29/04/2016,http://opendatacommunities.org/id/county-council/surrey,Surrey,http://id.esd.org.uk/service/1465,Council expenditure,28/12/2015,RUTH HOUSE,SAINSBURYS TO YOU 0686,80.21,PURCHASE OF FOOD (RAW MATERIALS),"GROCERY STORES, SUPERMARKETS",5411
29/04/2016,http://opendatacommunities.org/id/county-council/surrey,Surrey,http://id.esd.org.uk/service/1465,Council expenditure,28/12/2015,FAIRCROFT COMMUNITY HOME,FREEDOM LEISURE,3,EDUC VISITS/HOLS/CAMPS/TOYS,GOVERNMENT SERVICES-NOT ELSEWHERE CLASSIFIED,9399
29/04/2016,http://opendatacommunities.org/id/county-council/surrey,Surrey,http://id.esd.org.uk/service/1465,Council expenditure,28/12/2015,ACL CENTRAL EXPENDITURE,GOOGLE  ADWS3062151770,450,PUBLICITY,DIRECT MARKETING-CONTINUITY/SUBSCRIPTION MERCHANTS,5968
29/04/2016,http://opendatacommunities.org/id/county-council/surrey,Surrey,http://id.esd.org.uk/service/1465,Council expenditure,28/12/2015,MALLOW CRESCENT,SAINSBURYS TO YOU 0686,-1,PURCHASE OF FOOD (RAW MATERIALS),"GROCERY STORES, SUPERMARKETS",5411
29/04/2016,http://opendatacommunities.org/id/county-council/surrey,Surrey,http://id.esd.org.uk/service/1465,Council expenditure,28/12/2015,HILLSIDE,TESCO STORES 5706,28.1,PURCHASE OF FOOD (RAW MATERIALS),"GROCERY STORES, SUPERMARKETS",5411
29/04/2016,http://opendatacommunities.org/id/county-council/surrey,Surrey,http://id.esd.org.uk/service/1465,Council expenditure,28/12/2015,IMT TECHNICAL DELIVERY,APPLE ONLINE STORE GBP,149.75,COMPUTER HARDWARE,ELECTRONIC SALES,5732
29/04/2016,http://opendatacommunities.org/id/county-council/surrey,Surrey,http://id.esd.org.uk/service/1465,Council expenditure,28/12/2015,CHEYNE WALK COMMUNITY HOME,M&S E COMMERCE,84.99,"CLOTHING, UNIFORM AND LAUNDRY","GROCERY STORES, SUPERMARKETS",5411
29/04/2016,http://opendatacommunities.org/id/county-council/surrey,Surrey,http://id.esd.org.uk/service/1465,Council expenditure,29/12/2015,MALLOW CRESCENT,PRIMARK,11.2,EQUIPMENT,FAMILY CLOTHING STORES,5651
29/04/2016,http://opendatacommunities.org/id/county-council/surrey,Surrey,http://id.esd.org.uk/service/1465,Council expenditure,29/12/2015,PLD TRANSITION CARE,PREMIER INN,347,OTHER COMMUNITY CARE PRIV,PREMIER INN,3811
29/04/2016,http://opendatacommunities.org/id/county-council/surrey,Surrey,http://id.esd.org.uk/service/1465,Council expenditure,29/12/2015,SOLD ESTATES MANAGEMENT,B & Q,37.93,DAY TO DAY MAINTENANCE,"BUILDING MATERIALS, LUMBER STORES",5211
29/04/2016,http://opendatacommunities.org/id/county-council/surrey,Surrey,http://id.esd.org.uk/service/1465,Council expenditure,29/12/2015,FAIRCROFT COMMUNITY HOME,TESCO STORE 2160,152.53,PURCHASE OF FOOD (RAW MATERIALS),"GROCERY STORES, SUPERMARKETS",5411
29/04/2016,http://opendatacommunities.org/id/county-council/surrey,Surrey,http://id.esd.org.uk/service/1465,Council expenditure,29/12/2015,MALLOW CRESCENT,SAINSBURYS TO YOU 0686,19.7,PURCHASE OF FOOD (RAW MATERIALS),"GROCERY STORES, SUPERMARKETS",5411
29/04/2016,http://opendatacommunities.org/id/county-council/surrey,Surrey,http://id.esd.org.uk/service/1465,Council expenditure,29/12/2015,MALLOW CRESCENT,SAINSBURYS TO YOU 0686,70.97,PURCHASE OF FOOD (RAW MATERIALS),"GROCERY STORES, SUPERMARKETS",5411
29/04/2016,http://opendatacommunities.org/id/county-council/surrey,Surrey,http://id.esd.org.uk/service/1465,Council expenditure,29/12/2015,TRAINING COMMUNICATIONS,PAYPAL  CHARTEREDIN,217,TRAINING EXPENSES EXTERNAL GENERAL,"CONSULTING, MANAGEMENT, AND PUBLIC RELATIONS SVCS",7392
29/04/2016,http://opendatacommunities.org/id/county-council/surrey,Surrey,http://id.esd.org.uk/service/1465,Council expenditure,29/12/2015,HILLSIDE,SAINSBURYS 0675,70.6,PURCHASE OF FOOD (RAW MATERIALS),"GROCERY STORES, SUPERMARKETS",5411
29/04/2016,http://opendatacommunities.org/id/county-council/surrey,Surrey,http://id.esd.org.uk/service/1465,Council expenditure,29/12/2015,FRIMLEY YC,TESCO STORE 3149,2.58,REFRESHMENT COSTS,"GROCERY STORES, SUPERMARKETS",5411
29/04/2016,http://opendatacommunities.org/id/county-council/surrey,Surrey,http://id.esd.org.uk/service/1465,Council expenditure,29/12/2015,APPLEWOOD,ASDA HOME SHOPPING,135.07,PURCHASE OF FOOD (RAW MATERIALS),"GROCERY STORES, SUPERMARKETS",5411
29/04/2016,http://opendatacommunities.org/id/county-council/surrey,Surrey,http://id.esd.org.uk/service/1465,Council expenditure,29/12/2015,APPLEWOOD,ASDA HOME SHOPPING,-3.18,PURCHASE OF FOOD (RAW MATERIALS),"GROCERY STORES, SUPERMARKETS",5411
29/04/2016,http://opendatacommunities.org/id/county-council/surrey,Surrey,http://id.esd.org.uk/service/1465,Council expenditure,29/12/2015,ASSISTED PURCHASE SCHEME,BAX-SHOP.CO.UK,218,EQUIPMENT,ELECTRONIC SALES,5732
29/04/2016,http://opendatacommunities.org/id/county-council/surrey,Surrey,http://id.esd.org.uk/service/1465,Council expenditure,29/12/2015,ARUNDEL,SEINE RIGGER LTD,86.8,REFRESHMENT COSTS,"EATING PLACES, RESTAURANTS",5812
29/04/2016,http://opendatacommunities.org/id/county-council/surrey,Surrey,http://id.esd.org.uk/service/1465,Council expenditure,29/12/2015,HOPE SERVICE - WEST,SAINSBURYS SACAT(4409),2.05,PURCHASE OF FOOD (RAW MATERIALS),"GROCERY STORES, SUPERMARKETS",5411
29/04/2016,http://opendatacommunities.org/id/county-council/surrey,Surrey,http://id.esd.org.uk/service/1465,Council expenditure,29/12/2015,EMERGENCY MANAGEMENT,THE EMERGENCY PLAN,120,SUBSCRIPTIONS,"ORGANIZATIONS, MEMBERSHIP-NOT ELSEWHERE CLASSIFIED",8699
29/04/2016,http://opendatacommunities.org/id/county-council/surrey,Surrey,http://id.esd.org.uk/service/1465,Council expenditure,29/12/2015,IMT PRODUCTION APPLICATIONS TEAM,RACKSPACE EMAIL & APPS,62.07,COMPUTER SERVICES,COMPUTER NETWORK/INFORMATION SERVICES,4816
29/04/2016,http://opendatacommunities.org/id/county-council/surrey,Surrey,http://id.esd.org.uk/service/1465,Council expenditure,29/12/2015,HILLSIDE,NEXT RETAIL LTD,36,EQUIPMENT,FAMILY CLOTHING STORES,5651
29/04/2016,http://opendatacommunities.org/id/county-council/surrey,Surrey,http://id.esd.org.uk/service/1465,Council expenditure,29/12/2015,NORTH EAST AREA TEAM,FREEDIGITALPHOTOS,22.5,EQUIPMENT,"AUTOMOTIVE PARTS, ACCESSORIES STORES",5533
29/04/2016,http://opendatacommunities.org/id/county-council/surrey,Surrey,http://id.esd.org.uk/service/1465,Council expenditure,29/12/2015,HILLSIDE,NEXT RETAIL LTD,35,EQUIPMENT,FAMILY CLOTHING STORES,5651
29/04/2016,http://opendatacommunities.org/id/county-council/surrey,Surrey,http://id.esd.org.uk/service/1465,Council expenditure,29/12/2015,COVEHAM,SAINSBURYS 0687,46.55,CLEANING MATERIALS,"GROCERY STORES, SUPERMARKETS",5411
29/04/2016,http://opendatacommunities.org/id/county-council/surrey,Surrey,http://id.esd.org.uk/service/1465,Council expenditure,29/12/2015,COVEHAM,SAINSBURYS 0687,33.2,PURCHASE OF FOOD (RAW MATERIALS),"GROCERY STORES, SUPERMARKETS",5411
29/04/2016,http://opendatacommunities.org/id/county-council/surrey,Surrey,http://id.esd.org.uk/service/1465,Council expenditure,29/12/2015,KARIBU COMMUNITY HOME,AMFBOWLING.CO.UK,20.5,EDUC VISITS/HOLS/CAMPS/TOYS,"CLUBS-CNTRY,MBRSHIP(ATHLET,REC,SPRTS,PRIVATE GOLF",7997
29/04/2016,http://opendatacommunities.org/id/county-council/surrey,Surrey,http://id.esd.org.uk/service/1465,Council expenditure,29/12/2015,LIBERTAS COMMUNITY HOME,ROYAL SURREY HOSPITAL,8.44,PURCHASE OF FOOD (RAW MATERIALS),FAST FOOD RESTAURANTS,5814
29/04/2016,http://opendatacommunities.org/id/county-council/surrey,Surrey,http://id.esd.org.uk/service/1465,Council expenditure,29/12/2015,PROPERTY OPERATIONS TEAM,SAINSBURYS PFS(1524),30.32,PURCHASE OF BUILDING MATERIALS,SERVICE STATIONS WITH OR WITHOUT ANCILLARY SERVICE,5541
29/04/2016,http://opendatacommunities.org/id/county-council/surrey,Surrey,http://id.esd.org.uk/service/1465,Council expenditure,29/12/2015,TRANSPORT,AMAZON UK MARKETPLACE,17.97,COMPUTER CONSUMABLES,BOOK STORES,5942
29/04/2016,http://opendatacommunities.org/id/county-council/surrey,Surrey,http://id.esd.org.uk/service/1465,Council expenditure,30/12/2015,FAIRCROFT COMMUNITY HOME,WOKING COUNCIL PARKING,2.6,MISCELLANEOUS STAFF TRAVEL,AUTOMOBILE PARKING LOTS AND GARAGES,7523
29/04/2016,http://opendatacommunities.org/id/county-council/surrey,Surrey,http://id.esd.org.uk/service/1465,Council expenditure,30/12/2015,OTHER NON CWD HOME COSTS,AMAZON UK MARKETPLACE,16.44,FIXTURES AND FITTINGS,BOOK STORES,5942
29/04/2016,http://opendatacommunities.org/id/county-council/surrey,Surrey,http://id.esd.org.uk/service/1465,Council expenditure,30/12/2015,HOLLAND CLOSE RESIDENTIAL HOME,TEAM SPORT V/T,22.5,PURCHASE OF FOOD (RAW MATERIALS),"AMUSEMENT PARKS,CARNIVALS,CIRCUS,FORTUNE TELLERS",7996
29/04/2016,http://opendatacommunities.org/id/county-council/surrey,Surrey,http://id.esd.org.uk/service/1465,Council expenditure,30/12/2015,CHILDCARE TRAINING & DEVELOPMENT,AMAZON UK MARKETPLACE,23.8,EQUIPMENT,BOOK STORES,5942
29/04/2016,http://opendatacommunities.org/id/county-council/surrey,Surrey,http://id.esd.org.uk/service/1465,Council expenditure,30/12/2015,HOPE SERVICE - EAST,SAINSBURYS 0683,31.1,PURCHASE OF FOOD (RAW MATERIALS),"GROCERY STORES, SUPERMARKETS",5411
29/04/2016,http://opendatacommunities.org/id/county-council/surrey,Surrey,http://id.esd.org.uk/service/1465,Council expenditure,30/12/2015,WOODLANDS COMMUNITY HOME,SAINSBURYS 0686,79.39,PURCHASE OF FOOD (RAW MATERIALS),"GROCERY STORES, SUPERMARKETS",5411
29/04/2016,http://opendatacommunities.org/id/county-council/surrey,Surrey,http://id.esd.org.uk/service/1465,Council expenditure,30/12/2015,OTHER NON CWD HOME COSTS,AMAZON UK MARKETPLACE,36.25,EQUIPMENT,BOOK STORES,5942
29/04/2016,http://opendatacommunities.org/id/county-council/surrey,Surrey,http://id.esd.org.uk/service/1465,Council expenditure,30/12/2015,HOLLAND CLOSE RESIDENTIAL HOME,TEAM SPORT,48.98,EDUC VISITS/HOLS/CAMPS/TOYS,"AMUSEMENT PARKS,CARNIVALS,CIRCUS,FORTUNE TELLERS",7996
29/04/2016,http://opendatacommunities.org/id/county-council/surrey,Surrey,http://id.esd.org.uk/service/1465,Council expenditure,30/12/2015,MALLOW CRESCENT,ATG TICKETS,48.5,PUBLICITY,"THEATRICAL PRODUCERS(EXCL MOTION PIX),TICKET AGNCY",7922
29/04/2016,http://opendatacommunities.org/id/county-council/surrey,Surrey,http://id.esd.org.uk/service/1465,Council expenditure,30/12/2015,HILLSIDE,SAINSBURYS 0675,10.5,PURCHASE OF FOOD (RAW MATERIALS),"GROCERY STORES, SUPERMARKETS",5411
29/04/2016,http://opendatacommunities.org/id/county-council/surrey,Surrey,http://id.esd.org.uk/service/1465,Council expenditure,30/12/2015,HILLSIDE,SAINSBURYS 0675,40.39,PURCHASE OF FOOD (RAW MATERIALS),"GROCERY STORES, SUPERMARKETS",5411
29/04/2016,http://opendatacommunities.org/id/county-council/surrey,Surrey,http://id.esd.org.uk/service/1465,Council expenditure,30/12/2015,BURBANK COMMUNITY HOME,SAINSBURYS TO YOU 0686,241.63,PURCHASE OF FOOD (RAW MATERIALS),"GROCERY STORES, SUPERMARKETS",5411
29/04/2016,http://opendatacommunities.org/id/county-council/surrey,Surrey,http://id.esd.org.uk/service/1465,Council expenditure,30/12/2015,DOWNLANDS COUNTRYSIDE PROJECT,MOLE COUNTRY STORES,60.75,EQUIPMENT,AGRICULTURAL COOPERATIVES,763
29/04/2016,http://opendatacommunities.org/id/county-council/surrey,Surrey,http://id.esd.org.uk/service/1465,Council expenditure,30/12/2015,HOPE SERVICE - EAST,AMAZON UK MARKETPLACE,36.25,E25 CATERING EQUIPMENT,BOOK STORES,5942
29/04/2016,http://opendatacommunities.org/id/county-council/surrey,Surrey,http://id.esd.org.uk/service/1465,Council expenditure,30/12/2015,COMMUNICATIONS TEAM,ITUNES.COM/BILL,14.98,STATIONERY,RECORD SHOPS,5735
29/04/2016,http://opendatacommunities.org/id/county-council/surrey,Surrey,http://id.esd.org.uk/service/1465,Council expenditure,30/12/2015,FINANCE CHANGE AND PERFORMANCE GROUP,AMAZON EU,12.24,STATIONERY,DIRECT MARKETING-OTHER DIRECT MARKETERS/NOT ELSEW.,5969
29/04/2016,http://opendatacommunities.org/id/county-council/surrey,Surrey,http://id.esd.org.uk/service/1465,Council expenditure,30/12/2015,OTHER NON CWD HOME COSTS,AMAZON UK MARKETPLACE,35.33,EQUIPMENT,BOOK STORES,5942
29/04/2016,http://opendatacommunities.org/id/county-council/surrey,Surrey,http://id.esd.org.uk/service/1465,Council expenditure,30/12/2015,REMA ETHNIC/LANGUAGE MINORITY SUPPORT,"AMAZON SVCS EUROPE,SAR",5.05,BOOKS,BOOK STORES,5942
29/04/2016,http://opendatacommunities.org/id/county-council/surrey,Surrey,http://id.esd.org.uk/service/1465,Council expenditure,30/12/2015,COUNTYWIDE MANAGED PRINT SERVICE,AMAZON UK MARKETPLACE,57.77,COMPUTER CONSUMABLES,BOOK STORES,5942
29/04/2016,http://opendatacommunities.org/id/county-council/surrey,Surrey,http://id.esd.org.uk/service/1465,Council expenditure,30/12/2015,LIBERTAS COMMUNITY HOME,SAINSBURYS 0652,111.73,PURCHASE OF FOOD (RAW MATERIALS),"GROCERY STORES, SUPERMARKETS",5411
29/04/2016,http://opendatacommunities.org/id/county-council/surrey,Surrey,http://id.esd.org.uk/service/1465,Council expenditure,30/12/2015,OTHER NON CWD HOME COSTS,AMAZON EU,97.42,EQUIPMENT,DIRECT MARKETING-OTHER DIRECT MARKETERS/NOT ELSEW.,5969
29/04/2016,http://opendatacommunities.org/id/county-council/surrey,Surrey,http://id.esd.org.uk/service/1465,Council expenditure,30/12/2015,OTHER NON CWD HOME COSTS,AMAZON EU,49.51,BOOKS,DIRECT MARKETING-OTHER DIRECT MARKETERS/NOT ELSEW.,5969
29/04/2016,http://opendatacommunities.org/id/county-council/surrey,Surrey,http://id.esd.org.uk/service/1465,Council expenditure,30/12/2015,LEAP SURREY HEATH,AMAZON UK MARKETPLACE,14,EQUIPMENT,BOOK STORES,5942
29/04/2016,http://opendatacommunities.org/id/county-council/surrey,Surrey,http://id.esd.org.uk/service/1465,Council expenditure,30/12/2015,FAIRCROFT COMMUNITY HOME,TESCO STORE 2160,81,CLEANING AND DOMESTIC SUPPLIES,"GROCERY STORES, SUPERMARKETS",5411
29/04/2016,http://opendatacommunities.org/id/county-council/surrey,Surrey,http://id.esd.org.uk/service/1465,Council expenditure,30/12/2015,IMT CRITICAL ENVIRONMENTS,AMAZON EU,17.67,REFRESHMENT COSTS,DIRECT MARKETING-OTHER DIRECT MARKETERS/NOT ELSEW.,5969
29/04/2016,http://opendatacommunities.org/id/county-council/surrey,Surrey,http://id.esd.org.uk/service/1465,Council expenditure,31/12/2015,MALLOW CRESCENT,PRIMARK STORES 655,17,EQUIPMENT,FAMILY CLOTHING STORES,5651
29/04/2016,http://opendatacommunities.org/id/county-council/surrey,Surrey,http://id.esd.org.uk/service/1465,Council expenditure,31/12/2015,FAIRCROFT COMMUNITY HOME,TESCO STORE 2160,25.5,PURCHASE OF FOOD (RAW MATERIALS),"GROCERY STORES, SUPERMARKETS",5411
29/04/2016,http://opendatacommunities.org/id/county-council/surrey,Surrey,http://id.esd.org.uk/service/1465,Council expenditure,31/12/2015,BURBANK COMMUNITY HOME,WOKING BOROUGH COUNCIL,1.3,MISCELLANEOUS STAFF TRAVEL,AUTOMOBILE PARKING LOTS AND GARAGES,7523
29/04/2016,http://opendatacommunities.org/id/county-council/surrey,Surrey,http://id.esd.org.uk/service/1465,Council expenditure,31/12/2015,OTHER NON CWD HOME COSTS,AMAZON UK MARKETPLACE,35.8,FURNITURE,BOOK STORES,5942
29/04/2016,http://opendatacommunities.org/id/county-council/surrey,Surrey,http://id.esd.org.uk/service/1465,Council expenditure,31/12/2015,OTHER NON CWD HOME COSTS,AMAZON UK MARKETPLACE,63.8,EQUIPMENT,BOOK STORES,5942
29/04/2016,http://opendatacommunities.org/id/county-council/surrey,Surrey,http://id.esd.org.uk/service/1465,Council expenditure,31/12/2015,COVEHAM,SAINSBURYS TO YOU 0687,56.2,CLEANING MATERIALS,"GROCERY STORES, SUPERMARKETS",5411
29/04/2016,http://opendatacommunities.org/id/county-council/surrey,Surrey,http://id.esd.org.uk/service/1465,Council expenditure,31/12/2015,TRANSPORT,PP ANSON U.K. LTD,412.06,OPERATIONAL FIRE EQUIPMENT,DENTAL/LAB/MED/OPHTHALMIC HOSP EQUIP & SUPPLIES,5047
29/04/2016,http://opendatacommunities.org/id/county-council/surrey,Surrey,http://id.esd.org.uk/service/1465,Council expenditure,31/12/2015,TRANSPORT,PAYPAL  NET-STORE,137.94,COMPUTER CONSUMABLES,TELECOMMUNICATION EQUIPMENT INCL TELEPHONE SALES,4812
29/04/2016,http://opendatacommunities.org/id/county-council/surrey,Surrey,http://id.esd.org.uk/service/1465,Council expenditure,31/12/2015,NW EDUCATION PSYCHOLOGISTS,PAYPAL  INCLUSIONDI,16.4,BOOKS,BOOK STORES,5942
29/04/2016,http://opendatacommunities.org/id/county-council/surrey,Surrey,http://id.esd.org.uk/service/1465,Council expenditure,31/12/2015,OTHER NON CWD HOME COSTS,AMAZON UK MARKETPLACE,27.9,FURNITURE,BOOK STORES,5942
29/04/2016,http://opendatacommunities.org/id/county-council/surrey,Surrey,http://id.esd.org.uk/service/1465,Council expenditure,31/12/2015,HOPE SERVICE - EAST,THE SILVER SPOON DINER,5.1,REFRESHMENT COSTS,"EATING PLACES, RESTAURANTS",5812
29/04/2016,http://opendatacommunities.org/id/county-council/surrey,Surrey,http://id.esd.org.uk/service/1465,Council expenditure,31/12/2015,OTHER NON CWD HOME COSTS,AMAZON UK MARKETPLACE,18.45,FURNITURE,BOOK STORES,5942
29/04/2016,http://opendatacommunities.org/id/county-council/surrey,Surrey,http://id.esd.org.uk/service/1465,Council expenditure,31/12/2015,BURBANK COMMUNITY HOME,CEX (WOKING),5,3RD PARTY PAYMENTS PRIVATE INDIV,ELECTRONIC SALES,5732
29/04/2016,http://opendatacommunities.org/id/county-council/surrey,Surrey,http://id.esd.org.uk/service/1465,Council expenditure,31/12/2015,FAIRCROFT COMMUNITY HOME,TESCO STORE 2160,93.82,CLEANING AND DOMESTIC SUPPLIES,"GROCERY STORES, SUPERMARKETS",5411
29/04/2016,http://opendatacommunities.org/id/county-council/surrey,Surrey,http://id.esd.org.uk/service/1465,Council expenditure,31/12/2015,HOPE SERVICE - EAST,PRIORY FARM NURSERY,5.1,REFRESHMENT COSTS,LAWN AND GARDEN SUPPLY STORES,5261
29/04/2016,http://opendatacommunities.org/id/county-council/surrey,Surrey,http://id.esd.org.uk/service/1465,Council expenditure,31/12/2015,PURCHASE TO PAY TEAMS,WWW.CIPS.ORG,55.99,CURRIC BOOKS,"ORGANIZATIONS, MEMBERSHIP-NOT ELSEWHERE CLASSIFIED",8699
29/04/2016,http://opendatacommunities.org/id/county-council/surrey,Surrey,http://id.esd.org.uk/service/1465,Council expenditure,31/12/2015,HILLSIDE,SAINSBURYS 0675,86.13,PURCHASE OF FOOD (RAW MATERIALS),"GROCERY STORES, SUPERMARKETS",5411
29/04/2016,http://opendatacommunities.org/id/county-council/surrey,Surrey,http://id.esd.org.uk/service/1465,Council expenditure,31/12/2015,OTHER NON CWD HOME COSTS,AMAZON UK MARKETPLACE,1.93,EQUIPMENT,BOOK STORES,5942
29/04/2016,http://opendatacommunities.org/id/county-council/surrey,Surrey,http://id.esd.org.uk/service/1465,Council expenditure,31/12/2015,BURBANK COMMUNITY HOME,W M MORRISON STORE,14.72,PURCHASE OF FOOD (RAW MATERIALS),"GROCERY STORES, SUPERMARKETS",5411
29/04/2016,http://opendatacommunities.org/id/county-council/surrey,Surrey,http://id.esd.org.uk/service/1465,Council expenditure,31/12/2015,KARIBU COMMUNITY HOME,PIZZA EXPRESS,100.6,PURCHASE OF FOOD (RAW MATERIALS),"EATING PLACES, RESTAURANTS",5812
29/04/2016,http://opendatacommunities.org/id/county-council/surrey,Surrey,http://id.esd.org.uk/service/1465,Council expenditure,31/12/2015,ACL CENTRAL EXPENDITURE,FACEBOOK R764G8NCB2,368.44,PUBLICITY,ADVERTISING SERVICES,7311
29/04/2016,http://opendatacommunities.org/id/county-council/surrey,Surrey,http://id.esd.org.uk/service/1465,Council expenditure,31/12/2015,E&I - RECYCLING                         ,FACEBOOK KW5369W9K2,32.1,PUBLICITY,ADVERTISING SERVICES,7311
29/04/2016,http://opendatacommunities.org/id/county-council/surrey,Surrey,http://id.esd.org.uk/service/1465,Council expenditure,31/12/2015,OTHER NON CWD HOME COSTS,AMAZON UK MARKETPLACE,10.97,FURNITURE,BOOK STORES,5942
29/04/2016,http://opendatacommunities.org/id/county-council/surrey,Surrey,http://id.esd.org.uk/service/1465,Council expenditure,31/12/2015,SE CARE - NON-LAC CP & COURT,SURREY CC CARD PAY,31,CHILDREN ACT SEC 17 PAYMENTS,COMPUTER NETWORK/INFORMATION SERVICES,4816
29/04/2016,http://opendatacommunities.org/id/county-council/surrey,Surrey,http://id.esd.org.uk/service/1465,Council expenditure,31/12/2015,COVEHAM,SAINSBURYS TO YOU 0687,167.3,CLEANING MATERIALS,"GROCERY STORES, SUPERMARKETS",5411
29/04/2016,http://opendatacommunities.org/id/county-council/surrey,Surrey,http://id.esd.org.uk/service/1465,Council expenditure,31/12/2015,KARIBU COMMUNITY HOME,ASHTEAD PARK 350,47.59,VEHICLE RUNNING COSTS,SERVICE STATIONS WITH OR WITHOUT ANCILLARY SERVICE,5541
29/04/2016,http://opendatacommunities.org/id/county-council/surrey,Surrey,http://id.esd.org.uk/service/1465,Council expenditure,31/12/2015,COVEHAM,SAINSBURYS TO YOU 0687,-20,CLEANING MATERIALS,"GROCERY STORES, SUPERMARKETS",5411
29/04/2016,http://opendatacommunities.org/id/county-council/surrey,Surrey,http://id.esd.org.uk/service/1465,Council expenditure,31/12/2015,OTHER NON CWD HOME COSTS,AMAZON UK MARKETPLACE,69.95,FURNITURE,BOOK STORES,5942
29/04/2016,http://opendatacommunities.org/id/county-council/surrey,Surrey,http://id.esd.org.uk/service/1465,Council expenditure,31/12/2015,NIL RECOURSE PUBLIC FNDG 18+ ASYLUM SKR,EASYHOTEL    OLD ST,330.95,3RD PARTY PAYMENTS PRIVATE INDIV,"LODGING-HOTELS,MOTELS,RESORTS-NOT CLASSIFIED",7011
29/04/2016,http://opendatacommunities.org/id/county-council/surrey,Surrey,http://id.esd.org.uk/service/1465,Council expenditure,31/12/2015,E&I - RECYCLING                         ,FACEBOOK HW5369W9K2,304.95,PUBLICITY,ADVERTISING SERVICES,7311
29/04/2016,http://opendatacommunities.org/id/county-council/surrey,Surrey,http://id.esd.org.uk/service/1465,Council expenditure,31/12/2015,BURBANK COMMUNITY HOME,ATG TICKETS,22,EDUC VISITS/HOLS/CAMPS/TOYS,"THEATRICAL PRODUCERS(EXCL MOTION PIX),TICKET AGNCY",7922
29/04/2016,http://opendatacommunities.org/id/county-council/surrey,Surrey,http://id.esd.org.uk/service/1465,Council expenditure,31/12/2015,OTHER NON CWD HOME COSTS,AMAZON UK MARKETPLACE,11.9,FURNITURE,BOOK STORES,5942
29/04/2016,http://opendatacommunities.org/id/county-council/surrey,Surrey,http://id.esd.org.uk/service/1465,Council expenditure,31/12/2015,FAIRCROFT COMMUNITY HOME,LOTUS LOUNGE BAR,118.8,REFRESHMENT COSTS,"EATING PLACES, RESTAURANTS",5812
29/04/2016,http://opendatacommunities.org/id/county-council/surrey,Surrey,http://id.esd.org.uk/service/1465,Council expenditure,31/12/2015,TRANSPORT,CPC,71.36,COMPUTER CONSUMABLES,ELECTRICAL PARTS AND EQUIPMENT,5065
29/04/2016,http://opendatacommunities.org/id/county-council/surrey,Surrey,http://id.esd.org.uk/service/1465,Council expenditure,31/12/2015,BURBANK COMMUNITY HOME,POUNDWORLD RETAIL,5,3RD PARTY PAYMENTS PRIVATE INDIV,DISCOUNT STORES,5310
29/04/2016,http://opendatacommunities.org/id/county-council/surrey,Surrey,http://id.esd.org.uk/service/1465,Council expenditure,31/12/2015,HOPE SERVICE - EAST,AMAZON UK MARKETPLACE,12.48,E25 CATERING EQUIPMENT,BOOK STORES,5942
29/04/2016,http://opendatacommunities.org/id/county-council/surrey,Surrey,http://id.esd.org.uk/service/1465,Council expenditure,31/12/2015,ACL CENTRAL EXPENDITURE,FACEBOOK S764G8NCB2,3.25,PUBLICITY,ADVERTISING SERVICES,7311
29/04/2016,http://opendatacommunities.org/id/county-council/surrey,Surrey,http://id.esd.org.uk/service/1465,Council expenditure,31/12/2015,HOLLAND CLOSE RESIDENTIAL HOME,ROBERT DYAS HOLDNG LTD,3.99,EQUIPMENT,HARDWARE STORES,5251
29/04/2016,http://opendatacommunities.org/id/county-council/surrey,Surrey,http://id.esd.org.uk/service/1465,Council expenditure,31/12/2015,MALLOW CRESCENT,SAINSBURYS TO YOU 0686,8.5,PURCHASE OF FOOD (RAW MATERIALS),"GROCERY STORES, SUPERMARKETS",5411
29/04/2016,http://opendatacommunities.org/id/county-council/surrey,Surrey,http://id.esd.org.uk/service/1465,Council expenditure,31/12/2015,MALLOW CRESCENT,SAINSBURYS TO YOU 0686,124.17,PURCHASE OF FOOD (RAW MATERIALS),"GROCERY STORES, SUPERMARKETS",5411
29/04/2016,http://opendatacommunities.org/id/county-council/surrey,Surrey,http://id.esd.org.uk/service/1465,Council expenditure,31/12/2015,OTHER NON CWD HOME COSTS,AMAZON EU,15.39,EQUIPMENT,DIRECT MARKETING-OTHER DIRECT MARKETERS/NOT ELSEW.,5969
29/04/2016,http://opendatacommunities.org/id/county-council/surrey,Surrey,http://id.esd.org.uk/service/1465,Council expenditure,31/12/2015,LEAP SURREY HEATH,"AMAZON SVCS EUROPE,SAR",32.95,EQUIPMENT,BOOK STORES,5942
29/04/2016,http://opendatacommunities.org/id/county-council/surrey,Surrey,http://id.esd.org.uk/service/1465,Council expenditure,31/12/2015,OTHER NON CWD HOME COSTS,AMAZON EU,12,FURNITURE,DIRECT MARKETING-OTHER DIRECT MARKETERS/NOT ELSEW.,5969
29/04/2016,http://opendatacommunities.org/id/county-council/surrey,Surrey,http://id.esd.org.uk/service/1465,Council expenditure,01/01/2016,LIBERTAS COMMUNITY HOME,GWR RAIL TICKETS AS,118.5,NON-STAFF RELATED TRANSPORT COSTS,PASSENGER RAILWAYS,4112
29/04/2016,http://opendatacommunities.org/id/county-council/surrey,Surrey,http://id.esd.org.uk/service/1465,Council expenditure,01/01/2016,HILLSIDE,SAINSBURYS 0675,28.45,PURCHASE OF FOOD (RAW MATERIALS),"GROCERY STORES, SUPERMARKETS",5411
29/04/2016,http://opendatacommunities.org/id/county-council/surrey,Surrey,http://id.esd.org.uk/service/1465,Council expenditure,01/01/2016,HOLLAND CLOSE RESIDENTIAL HOME,AMAZON UK MARKETPLACE,34.77,EQUIPMENT,BOOK STORES,5942
29/04/2016,http://opendatacommunities.org/id/county-council/surrey,Surrey,http://id.esd.org.uk/service/1465,Council expenditure,01/01/2016,KARIBU COMMUNITY HOME,TAP ON THE LINE,18.75,PURCHASE OF FOOD (RAW MATERIALS),"EATING PLACES, RESTAURANTS",5812
29/04/2016,http://opendatacommunities.org/id/county-council/surrey,Surrey,http://id.esd.org.uk/service/1465,Council expenditure,02/01/2016,COMMUNICATIONS TEAM,TIMES NEWSPAPERS LTD,34.67,SUBSCRIPTIONS,"BOOKS,PERIODICALS AND NEWSPAPERS",5192
29/04/2016,http://opendatacommunities.org/id/county-council/surrey,Surrey,http://id.esd.org.uk/service/1465,Council expenditure,02/01/2016,SUPERFAST BROADBAND ECONOMIC DEVELOPMENT,GOOGLE  SVCSAPPS_SUPER,13.75,COMPUTER SERVICES,DIRECT MARKETING-CONTINUITY/SUBSCRIPTION MERCHANTS,5968
29/04/2016,http://opendatacommunities.org/id/county-council/surrey,Surrey,http://id.esd.org.uk/service/1465,Council expenditure,02/01/2016,FAIRCROFT COMMUNITY HOME,HOME BARGAINS BYFLEET,10.76,EQUIPMENT,HARDWARE STORES,5251
29/04/2016,http://opendatacommunities.org/id/county-council/surrey,Surrey,http://id.esd.org.uk/service/1465,Council expenditure,02/01/2016,TRANSPORT,AMAZON EU,58.22,COMPUTER CONSUMABLES,DIRECT MARKETING-OTHER DIRECT MARKETERS/NOT ELSEW.,5969
29/04/2016,http://opendatacommunities.org/id/county-council/surrey,Surrey,http://id.esd.org.uk/service/1465,Council expenditure,02/01/2016,FAIRCROFT COMMUNITY HOME,SPORTSDIRECT 234,17.98,EQUIPMENT,SPORTING GOODS STORES,5941
29/04/2016,http://opendatacommunities.org/id/county-council/surrey,Surrey,http://id.esd.org.uk/service/1465,Council expenditure,02/01/2016,CHEYNE WALK COMMUNITY HOME,WWW.GRAVITYFORCE.CO.UK,46,EDUC VISITS/HOLS/CAMPS/TOYS,"DANCE HALLS, SCHOOLS, AND STUDIOS",7911
29/04/2016,http://opendatacommunities.org/id/county-council/surrey,Surrey,http://id.esd.org.uk/service/1465,Council expenditure,02/01/2016,HILLSIDE,SAINSBURYS 0675,77.01,PURCHASE OF FOOD (RAW MATERIALS),"GROCERY STORES, SUPERMARKETS",5411
29/04/2016,http://opendatacommunities.org/id/county-council/surrey,Surrey,http://id.esd.org.uk/service/1465,Council expenditure,02/01/2016,ARUNDEL,ASDA SUPERSTORE,65.62,REFRESHMENT COSTS,"GROCERY STORES, SUPERMARKETS",5411
29/04/2016,http://opendatacommunities.org/id/county-council/surrey,Surrey,http://id.esd.org.uk/service/1465,Council expenditure,02/01/2016,ARUNDEL,ASDA SUPERSTORE,17.5,REFRESHMENT COSTS,"GROCERY STORES, SUPERMARKETS",5411
29/04/2016,http://opendatacommunities.org/id/county-council/surrey,Surrey,http://id.esd.org.uk/service/1465,Council expenditure,02/01/2016,LEAP SURREY HEATH,AMAZON EU,26.83,EQUIPMENT,DIRECT MARKETING-OTHER DIRECT MARKETERS/NOT ELSEW.,5969
29/04/2016,http://opendatacommunities.org/id/county-council/surrey,Surrey,http://id.esd.org.uk/service/1465,Council expenditure,02/01/2016,OTHER NON CWD HOME COSTS,AMAZON UK MARKETPLACE,15.94,FURNITURE,BOOK STORES,5942
29/04/2016,http://opendatacommunities.org/id/county-council/surrey,Surrey,http://id.esd.org.uk/service/1465,Council expenditure,02/01/2016,BURBANK COMMUNITY HOME,TESCO STORE 2160,92.55,"CLOTHING, UNIFORM AND LAUNDRY","GROCERY STORES, SUPERMARKETS",5411
29/04/2016,http://opendatacommunities.org/id/county-council/surrey,Surrey,http://id.esd.org.uk/service/1465,Council expenditure,02/01/2016,FAIRCROFT COMMUNITY HOME,FREEDOM LEISURE,14.1,REFRESHMENT COSTS,GOVERNMENT SERVICES-NOT ELSEWHERE CLASSIFIED,9399
29/04/2016,http://opendatacommunities.org/id/county-council/surrey,Surrey,http://id.esd.org.uk/service/1465,Council expenditure,03/01/2016,NW CARE - LAC,AMBASSADOR HOTEL,72.99,CHILDREN ACT SEC 17 PAYMENTS,"LODGING-HOTELS,MOTELS,RESORTS-NOT CLASSIFIED",7011
29/04/2016,http://opendatacommunities.org/id/county-council/surrey,Surrey,http://id.esd.org.uk/service/1465,Council expenditure,03/01/2016,CHEYNE WALK COMMUNITY HOME,ROAD RUNNERS MECO LTD,140,HIRE OF VEHICLES,LIMOUSINES AND TAXICABS,4121
29/04/2016,http://opendatacommunities.org/id/county-council/surrey,Surrey,http://id.esd.org.uk/service/1465,Council expenditure,03/01/2016,LIBERTAS COMMUNITY HOME,HOMEBASE LTD 050,20.49,FIXTURES AND FITTINGS,"BUILDING MATERIALS, LUMBER STORES",5211
29/04/2016,http://opendatacommunities.org/id/county-council/surrey,Surrey,http://id.esd.org.uk/service/1465,Council expenditure,03/01/2016,NW EDUCATION PSYCHOLOGISTS,AMAZON EU,11.33,BOOKS,DIRECT MARKETING-OTHER DIRECT MARKETERS/NOT ELSEW.,5969
29/04/2016,http://opendatacommunities.org/id/county-council/surrey,Surrey,http://id.esd.org.uk/service/1465,Council expenditure,03/01/2016,CHEYNE WALK COMMUNITY HOME,TEAM SPORT V/T,42.5,EDUC VISITS/HOLS/CAMPS/TOYS,"AMUSEMENT PARKS,CARNIVALS,CIRCUS,FORTUNE TELLERS",7996
29/04/2016,http://opendatacommunities.org/id/county-council/surrey,Surrey,http://id.esd.org.uk/service/1465,Council expenditure,03/01/2016,CHEYNE WALK COMMUNITY HOME,TEAM SPORT,103.96,EDUC VISITS/HOLS/CAMPS/TOYS,"AMUSEMENT PARKS,CARNIVALS,CIRCUS,FORTUNE TELLERS",7996
29/04/2016,http://opendatacommunities.org/id/county-council/surrey,Surrey,http://id.esd.org.uk/service/1465,Council expenditure,03/01/2016,CHEYNE WALK COMMUNITY HOME,SAINSBURYS PFS(1524),21.33,PURCHASE OF FOOD (RAW MATERIALS),SERVICE STATIONS WITH OR WITHOUT ANCILLARY SERVICE,5541
29/04/2016,http://opendatacommunities.org/id/county-council/surrey,Surrey,http://id.esd.org.uk/service/1465,Council expenditure,03/01/2016,BURBANK COMMUNITY HOME,BILLS WOKING,39.27,3RD PARTY PAYMENTS PRIVATE INDIV,"EATING PLACES, RESTAURANTS",5812
29/04/2016,http://opendatacommunities.org/id/county-council/surrey,Surrey,http://id.esd.org.uk/service/1465,Council expenditure,03/01/2016,SOLD CATERING,ASDA SUPERSTORE,49.51,PURCHASE OF FOOD (RAW MATERIALS),"GROCERY STORES, SUPERMARKETS",5411
29/04/2016,http://opendatacommunities.org/id/county-council/surrey,Surrey,http://id.esd.org.uk/service/1465,Council expenditure,03/01/2016,KARIBU COMMUNITY HOME,TESCO STORE 2812,390.39,PURCHASE OF FOOD (RAW MATERIALS),"GROCERY STORES, SUPERMARKETS",5411
29/04/2016,http://opendatacommunities.org/id/county-council/surrey,Surrey,http://id.esd.org.uk/service/1465,Council expenditure,03/01/2016,HOLLAND CLOSE RESIDENTIAL HOME,TESCO-STORES 6647,169.03,PURCHASE OF FOOD (RAW MATERIALS),"GROCERY STORES, SUPERMARKETS",5411
29/04/2016,http://opendatacommunities.org/id/county-council/surrey,Surrey,http://id.esd.org.uk/service/1465,Council expenditure,03/01/2016,BURBANK COMMUNITY HOME,KIM N KIM JEWELLER,32.49,3RD PARTY PAYMENTS PRIVATE INDIV,"CLOCK, JEWELRY, WATCH, AND SILVERWARE STORE",5944
29/04/2016,http://opendatacommunities.org/id/county-council/surrey,Surrey,http://id.esd.org.uk/service/1465,Council expenditure,03/01/2016,CHEYNE WALK COMMUNITY HOME,TESCO STORE 2560,16.99,EQUIPMENT,"GROCERY STORES, SUPERMARKETS",5411
29/04/2016,http://opendatacommunities.org/id/county-council/surrey,Surrey,http://id.esd.org.uk/service/1465,Council expenditure,03/01/2016,SAP COMPETENCY CENTRE,AMAZON WEB SERVICES,"3,962.81",COMPUTER SERVICES,BUSINESS SERVICES-NOT ELSEWHERE CLASSIFIED,7399
29/04/2016,http://opendatacommunities.org/id/county-council/surrey,Surrey,http://id.esd.org.uk/service/1465,Council expenditure,04/01/2016,ASYLUM SEEKERS 16-17,PREMIER INN,527.42,CHILDREN ACT SEC 17 PAYMENTS,PREMIER INN,3811
29/04/2016,http://opendatacommunities.org/id/county-council/surrey,Surrey,http://id.esd.org.uk/service/1465,Council expenditure,04/01/2016,ASHTEAD YC,EXCEL BUBBLE FOOTBALL,120,EDUC VISITS/HOLS/CAMPS/TOYS,RECREATION SERVICES (NOT ELSEWHERE CLASSIFIED),7999
29/04/2016,http://opendatacommunities.org/id/county-council/surrey,Surrey,http://id.esd.org.uk/service/1465,Council expenditure,04/01/2016,POLICY AND PERFORMANCE TEAM,EBUYER (UK) LTD,19.98,EQUIPMENT,HOUSEHOLD APPLIANCE STORES,5722
29/04/2016,http://opendatacommunities.org/id/county-council/surrey,Surrey,http://id.esd.org.uk/service/1465,Council expenditure,04/01/2016,TRANSPORT,TOOLSTATION LTD,49.21,VEHICLE REPAIRS AND MAINTENANCE,HARDWARE STORES,5251
29/04/2016,http://opendatacommunities.org/id/county-council/surrey,Surrey,http://id.esd.org.uk/service/1465,Council expenditure,04/01/2016,NE CARE - CP & COURT LAC,SURREY CC CARD PAY,21,CHILDREN ACT SEC 17 PAYMENTS,COMPUTER NETWORK/INFORMATION SERVICES,4816
29/04/2016,http://opendatacommunities.org/id/county-council/surrey,Surrey,http://id.esd.org.uk/service/1465,Council expenditure,04/01/2016,ELMBRIDGE STAFFING,AMAZON UK MARKETPLACE,7.99,EQUIPMENT,BOOK STORES,5942
29/04/2016,http://opendatacommunities.org/id/county-council/surrey,Surrey,http://id.esd.org.uk/service/1465,Council expenditure,04/01/2016,CHEYNE WALK COMMUNITY HOME,SAINSBURYS TO YOU 0026,190.44,PURCHASE OF FOOD (RAW MATERIALS),"GROCERY STORES, SUPERMARKETS",5411
29/04/2016,http://opendatacommunities.org/id/county-council/surrey,Surrey,http://id.esd.org.uk/service/1465,Council expenditure,04/01/2016,PROGRAMME TEAM,WWW.JELLYEXPRESS.CO.UK,825.4,EQUIPMENT,"GAME, TOY, AND HOBBY SHOPS",5945
29/04/2016,http://opendatacommunities.org/id/county-council/surrey,Surrey,http://id.esd.org.uk/service/1465,Council expenditure,04/01/2016,OTHER NON CWD HOME COSTS,AMAZON UK MARKETPLACE,52.75,EQUIPMENT,BOOK STORES,5942
29/04/2016,http://opendatacommunities.org/id/county-council/surrey,Surrey,http://id.esd.org.uk/service/1465,Council expenditure,04/01/2016,RUTH HOUSE,THE FARM SHOP-,582.52,PURCHASE OF FOOD (RAW MATERIALS),"CLOCK, JEWELRY, WATCH, AND SILVERWARE STORE",5944
29/04/2016,http://opendatacommunities.org/id/county-council/surrey,Surrey,http://id.esd.org.uk/service/1465,Council expenditure,04/01/2016,ACL CENTRAL EXPENDITURE,AMAZON UK MARKETPLACE,9.98,CURRICULUM EQUIPMENT AND FURNITURE,BOOK STORES,5942
29/04/2016,http://opendatacommunities.org/id/county-council/surrey,Surrey,http://id.esd.org.uk/service/1465,Council expenditure,04/01/2016,LOCAL BUS SERVICE CONTRACTS DIRECT,TIMPSON LTD,12,EQUIPMENT,"HAT CLEANING SHOPS, SHOE REPAIR SHOPS, SHOE SHINE",7251
29/04/2016,http://opendatacommunities.org/id/county-council/surrey,Surrey,http://id.esd.org.uk/service/1465,Council expenditure,04/01/2016,MALLOW CRESCENT,ATG TICKETS,71,PUBLICITY,"THEATRICAL PRODUCERS(EXCL MOTION PIX),TICKET AGNCY",7922
29/04/2016,http://opendatacommunities.org/id/county-council/surrey,Surrey,http://id.esd.org.uk/service/1465,Council expenditure,04/01/2016,SPELTHORNE LOCALITY TEAM,TRAVELODGE,45,OTHER COMMUNITY CARE PRIV,TRAVELODGE,3615
29/04/2016,http://opendatacommunities.org/id/county-council/surrey,Surrey,http://id.esd.org.uk/service/1465,Council expenditure,04/01/2016,TRANSPORT,NEMESIS GB LTD VIRT,"1,601.87",COMPUTER HARDWARE,ELECTRICAL PARTS AND EQUIPMENT,5065
29/04/2016,http://opendatacommunities.org/id/county-council/surrey,Surrey,http://id.esd.org.uk/service/1465,Council expenditure,04/01/2016,WOODLANDS COMMUNITY HOME,SAINSBURYS 0686,109.44,PURCHASE OF FOOD (RAW MATERIALS),"GROCERY STORES, SUPERMARKETS",5411
29/04/2016,http://opendatacommunities.org/id/county-council/surrey,Surrey,http://id.esd.org.uk/service/1465,Council expenditure,04/01/2016,HARRY'S YC,WM MORRISONS,7.37,REFRESHMENT COSTS,"GROCERY STORES, SUPERMARKETS",5411
29/04/2016,http://opendatacommunities.org/id/county-council/surrey,Surrey,http://id.esd.org.uk/service/1465,Council expenditure,04/01/2016,ROW VOLUNTEERS EAST                     ,WILLIAM WAY (GODSTONE),73.19,EQUIPMENT,"BUILDING MATERIALS, LUMBER STORES",5211
29/04/2016,http://opendatacommunities.org/id/county-council/surrey,Surrey,http://id.esd.org.uk/service/1465,Council expenditure,04/01/2016,RUTH HOUSE,THE FARM SHOP-,751.77,PURCHASE OF FOOD (RAW MATERIALS),"CLOCK, JEWELRY, WATCH, AND SILVERWARE STORE",5944
29/04/2016,http://opendatacommunities.org/id/county-council/surrey,Surrey,http://id.esd.org.uk/service/1465,Council expenditure,04/01/2016,STRATEGIC LEADERSHIP (CEO & ACEO),WWW.SOLACE.ORG.UK,467,SUBSCRIPTIONS,"ORGANIZATIONS, MEMBERSHIP-NOT ELSEWHERE CLASSIFIED",8699
29/04/2016,http://opendatacommunities.org/id/county-council/surrey,Surrey,http://id.esd.org.uk/service/1465,Council expenditure,04/01/2016,OTHER NON CWD HOME COSTS,AMAZON UK MARKETPLACE,23.74,EQUIPMENT,BOOK STORES,5942
29/04/2016,http://opendatacommunities.org/id/county-council/surrey,Surrey,http://id.esd.org.uk/service/1465,Council expenditure,04/01/2016,HOPE SERVICE - EAST,43034745 COSTA COFFEE,6.2,REFRESHMENT COSTS,FAST FOOD RESTAURANTS,5814
29/04/2016,http://opendatacommunities.org/id/county-council/surrey,Surrey,http://id.esd.org.uk/service/1465,Council expenditure,04/01/2016,RUTH HOUSE,THE FARM SHOP-,554.88,PURCHASE OF FOOD (RAW MATERIALS),"CLOCK, JEWELRY, WATCH, AND SILVERWARE STORE",5944
29/04/2016,http://opendatacommunities.org/id/county-council/surrey,Surrey,http://id.esd.org.uk/service/1465,Council expenditure,04/01/2016,BUILDING SERVICES,UKBA4345605652,199,FEES,GOVERNMENT SERVICES-NOT ELSEWHERE CLASSIFIED,9399
29/04/2016,http://opendatacommunities.org/id/county-council/surrey,Surrey,http://id.esd.org.uk/service/1465,Council expenditure,04/01/2016,TRAINING SURREY HIGHWAYS,WWW.ICE.ORG.UK,222,TRAINING EXPENSES EXTERNAL GENERAL,"ORGANIZATIONS, MEMBERSHIP-NOT ELSEWHERE CLASSIFIED",8699
29/04/2016,http://opendatacommunities.org/id/county-council/surrey,Surrey,http://id.esd.org.uk/service/1465,Council expenditure,04/01/2016,RUTH HOUSE,WWW.TORTOISECENTRE.CO.,41.94,EDUC VISITS/HOLS/CAMPS/TOYS,PET SHOPS - PET FOODS AND SUPPLIES,5995
29/04/2016,http://opendatacommunities.org/id/county-council/surrey,Surrey,http://id.esd.org.uk/service/1465,Council expenditure,04/01/2016,SW SECTION 17 CARE,TRAVELODGE,398,CHILDREN ACT SEC 17 PAYMENTS,TRAVELODGE,3615
29/04/2016,http://opendatacommunities.org/id/county-council/surrey,Surrey,http://id.esd.org.uk/service/1465,Council expenditure,04/01/2016,OTHER NON CWD HOME COSTS,AMAZON UK MARKETPLACE,24.95,FURNITURE,BOOK STORES,5942
29/04/2016,http://opendatacommunities.org/id/county-council/surrey,Surrey,http://id.esd.org.uk/service/1465,Council expenditure,04/01/2016,SW CARE - LAC,CHERRY BLOSSOM INN,41,CHILDREN ACT SEC 17 PAYMENTS,"LODGING-HOTELS,MOTELS,RESORTS-NOT CLASSIFIED",7011
29/04/2016,http://opendatacommunities.org/id/county-council/surrey,Surrey,http://id.esd.org.uk/service/1465,Council expenditure,04/01/2016,ELMBRIDGE STAFFING,AMAZON UK MARKETPLACE,74.94,EQUIPMENT,BOOK STORES,5942
29/04/2016,http://opendatacommunities.org/id/county-council/surrey,Surrey,http://id.esd.org.uk/service/1465,Council expenditure,04/01/2016,WEB OPERATIONS TEAM,HOOTSUITE MEDIA INC.,4.99,SUBSCRIPTIONS,BUSINESS SERVICES-NOT ELSEWHERE CLASSIFIED,7399
29/04/2016,http://opendatacommunities.org/id/county-council/surrey,Surrey,http://id.esd.org.uk/service/1465,Council expenditure,04/01/2016,ACL CENTRAL EXPENDITURE,WP-THE VIRTUAL COL,30,EXAMINATION FEES,SCHOOLS & EDUCATIONAL SVC-NOT ELSEWHERE CLASSIFIED,8299
29/04/2016,http://opendatacommunities.org/id/county-council/surrey,Surrey,http://id.esd.org.uk/service/1465,Council expenditure,04/01/2016,MEMBERS EXPENSES (INCL ALLOWANCES),AMAZON UK MARKETPLACE,28.14,STATIONERY,BOOK STORES,5942
29/04/2016,http://opendatacommunities.org/id/county-council/surrey,Surrey,http://id.esd.org.uk/service/1465,Council expenditure,04/01/2016,TRANSPORT,HALFORDS 0725,73.9,VEHICLE REPAIRS AND MAINTENANCE,BICYCLE SHOPS-SALES AND SERVICE,5940
29/04/2016,http://opendatacommunities.org/id/county-council/surrey,Surrey,http://id.esd.org.uk/service/1465,Council expenditure,04/01/2016,MALLOW CRESCENT,SAINSBURYS TO YOU 0686,5.8,PURCHASE OF FOOD (RAW MATERIALS),"GROCERY STORES, SUPERMARKETS",5411
29/04/2016,http://opendatacommunities.org/id/county-council/surrey,Surrey,http://id.esd.org.uk/service/1465,Council expenditure,04/01/2016,MALLOW CRESCENT,SAINSBURYS TO YOU 0686,115.49,PURCHASE OF FOOD (RAW MATERIALS),"GROCERY STORES, SUPERMARKETS",5411
29/04/2016,http://opendatacommunities.org/id/county-council/surrey,Surrey,http://id.esd.org.uk/service/1465,Council expenditure,04/01/2016,ELMBRIDGE STAFFING,AMAZON UK MARKETPLACE,54.9,FURNITURE,BOOK STORES,5942
29/04/2016,http://opendatacommunities.org/id/county-council/surrey,Surrey,http://id.esd.org.uk/service/1465,Council expenditure,04/01/2016,IMT CRITICAL ENVIRONMENTS,WWW.MILKANDMORE.CO.UK,27.74,REFRESHMENT COSTS,DIRECT MARKETING-CONTINUITY/SUBSCRIPTION MERCHANTS,5968
29/04/2016,http://opendatacommunities.org/id/county-council/surrey,Surrey,http://id.esd.org.uk/service/1465,Council expenditure,04/01/2016,ASHTEAD YC,THETICKETFACTORY,185,EDUC VISITS/HOLS/CAMPS/TOYS,"THEATRICAL PRODUCERS(EXCL MOTION PIX),TICKET AGNCY",7922
29/04/2016,http://opendatacommunities.org/id/county-council/surrey,Surrey,http://id.esd.org.uk/service/1465,Council expenditure,04/01/2016,NW EDUCATION PSYCHOLOGISTS,INTERNATIONAL HOTEL TE,85,TRAINING EXPENSES EXTERNAL GENERAL,"LODGING-HOTELS,MOTELS,RESORTS-NOT CLASSIFIED",7011
29/04/2016,http://opendatacommunities.org/id/county-council/surrey,Surrey,http://id.esd.org.uk/service/1465,Council expenditure,04/01/2016,HOPE SERVICE - EAST,SAINSBURYS 0683,97.65,PURCHASE OF FOOD (RAW MATERIALS),"GROCERY STORES, SUPERMARKETS",5411
29/04/2016,http://opendatacommunities.org/id/county-council/surrey,Surrey,http://id.esd.org.uk/service/1465,Council expenditure,04/01/2016,LIBERTAS COMMUNITY HOME,SAINSBURYS 0652,14.75,PURCHASE OF FOOD (RAW MATERIALS),"GROCERY STORES, SUPERMARKETS",5411
29/04/2016,http://opendatacommunities.org/id/county-council/surrey,Surrey,http://id.esd.org.uk/service/1465,Council expenditure,04/01/2016,LIBERTAS COMMUNITY HOME,SAINSBURYS 0652,174.58,PURCHASE OF FOOD (RAW MATERIALS),"GROCERY STORES, SUPERMARKETS",5411
29/04/2016,http://opendatacommunities.org/id/county-council/surrey,Surrey,http://id.esd.org.uk/service/1465,Council expenditure,04/01/2016,TRANSPORT,CAPITAL REPAIRS,52.27,EQUIPMENT,MISCELLANEOUS AND SPECIALTY RETAIL STORES,5999
29/04/2016,http://opendatacommunities.org/id/county-council/surrey,Surrey,http://id.esd.org.uk/service/1465,Council expenditure,04/01/2016,HR - BUSINESS SERVICES AND TRAINING,WWW.SURREY.GOV.UK,12.5,TRAINING EXPENSES EXTERNAL GENERAL,GOVERNMENT SERVICES-NOT ELSEWHERE CLASSIFIED,9399
29/04/2016,http://opendatacommunities.org/id/county-council/surrey,Surrey,http://id.esd.org.uk/service/1465,Council expenditure,04/01/2016,TARGETED INTERVENTION,TESCO STORE 2047,7,EDUC VISITS/HOLS/CAMPS/TOYS,"GROCERY STORES, SUPERMARKETS",5411
29/04/2016,http://opendatacommunities.org/id/county-council/surrey,Surrey,http://id.esd.org.uk/service/1465,Council expenditure,04/01/2016,SW CARE - NON-LAC CP & COURT,SURREY CC CARD PAY,21,LEGAL EXPENSES,COMPUTER NETWORK/INFORMATION SERVICES,4816
29/04/2016,http://opendatacommunities.org/id/county-council/surrey,Surrey,http://id.esd.org.uk/service/1465,Council expenditure,04/01/2016,TRANSPORT,OFJ CONNECTIONS LI,151,VEHICLE REPAIRS AND MAINTENANCE,BUS LINES,4131
29/04/2016,http://opendatacommunities.org/id/county-council/surrey,Surrey,http://id.esd.org.uk/service/1465,Council expenditure,04/01/2016,ELMBRIDGE STAFFING,AMAZON UK MARKETPLACE,35.28,FURNITURE,BOOK STORES,5942
29/04/2016,http://opendatacommunities.org/id/county-council/surrey,Surrey,http://id.esd.org.uk/service/1465,Council expenditure,04/01/2016,OLD DEAN YC,AMAZON EU,19.99,EQUIPMENT,DIRECT MARKETING-OTHER DIRECT MARKETERS/NOT ELSEW.,5969
29/04/2016,http://opendatacommunities.org/id/county-council/surrey,Surrey,http://id.esd.org.uk/service/1465,Council expenditure,04/01/2016,HOPE SERVICE - WEST,SAINSBURYS SACAT(4409),2.05,PURCHASE OF FOOD (RAW MATERIALS),"GROCERY STORES, SUPERMARKETS",5411
29/04/2016,http://opendatacommunities.org/id/county-council/surrey,Surrey,http://id.esd.org.uk/service/1465,Council expenditure,04/01/2016,SOLD ESTATES MANAGEMENT,UNITY AUTOFACTORS LIMI,11.98,VEHICLE REPAIRS AND MAINTENANCE,"AUTOMOTIVE PARTS, ACCESSORIES STORES",5533
29/04/2016,http://opendatacommunities.org/id/county-council/surrey,Surrey,http://id.esd.org.uk/service/1465,Council expenditure,04/01/2016,ELMBRIDGE STAFFING,ASDAN,220.01,FEES,SCHOOLS & EDUCATIONAL SVC-NOT ELSEWHERE CLASSIFIED,8299
29/04/2016,http://opendatacommunities.org/id/county-council/surrey,Surrey,http://id.esd.org.uk/service/1465,Council expenditure,04/01/2016,EQUIPMENT SCC BUDGET,LAKELAND LIMITED,8.94,EQUIPMENT,HOUSEHOLD APPLIANCE STORES,5722
29/04/2016,http://opendatacommunities.org/id/county-council/surrey,Surrey,http://id.esd.org.uk/service/1465,Council expenditure,04/01/2016,MALLOW CRESCENT,SAINSBURYS TO YOU 0686,2.2,PURCHASE OF FOOD (RAW MATERIALS),"GROCERY STORES, SUPERMARKETS",5411
29/04/2016,http://opendatacommunities.org/id/county-council/surrey,Surrey,http://id.esd.org.uk/service/1465,Council expenditure,04/01/2016,MALLOW CRESCENT,SAINSBURYS TO YOU 0686,104.71,PURCHASE OF FOOD (RAW MATERIALS),"GROCERY STORES, SUPERMARKETS",5411
29/04/2016,http://opendatacommunities.org/id/county-council/surrey,Surrey,http://id.esd.org.uk/service/1465,Council expenditure,04/01/2016,ROW MAINTENANCE,BRYANT FIXINGS LTD,224.57,PURCHASE OF BUILDING MATERIALS,MISCELLANEOUS REPAIR SHOPS AND RELATED SERVICES,7699
29/04/2016,http://opendatacommunities.org/id/county-council/surrey,Surrey,http://id.esd.org.uk/service/1465,Council expenditure,04/01/2016,PROPERTY OPERATIONS TEAM,SCREWFIX,19.98,PURCHASE OF BUILDING MATERIALS,"BUILDING MATERIALS, LUMBER STORES",5211
29/04/2016,http://opendatacommunities.org/id/county-council/surrey,Surrey,http://id.esd.org.uk/service/1465,Council expenditure,04/01/2016,ARUNDEL,SAINSBURYS 0032,13.8,REFRESHMENT COSTS,"GROCERY STORES, SUPERMARKETS",5411
29/04/2016,http://opendatacommunities.org/id/county-council/surrey,Surrey,http://id.esd.org.uk/service/1465,Council expenditure,04/01/2016,RUTH HOUSE,SAINSBURYS TO YOU 0686,42.8,PURCHASE OF FOOD (RAW MATERIALS),"GROCERY STORES, SUPERMARKETS",5411
29/04/2016,http://opendatacommunities.org/id/county-council/surrey,Surrey,http://id.esd.org.uk/service/1465,Council expenditure,04/01/2016,RUTH HOUSE,SAINSBURYS TO YOU 0686,222.15,PURCHASE OF FOOD (RAW MATERIALS),"GROCERY STORES, SUPERMARKETS",5411
29/04/2016,http://opendatacommunities.org/id/county-council/surrey,Surrey,http://id.esd.org.uk/service/1465,Council expenditure,04/01/2016,DEVELOPMENT TEAM,UKBA4345620175,199,FEES,GOVERNMENT SERVICES-NOT ELSEWHERE CLASSIFIED,9399
29/04/2016,http://opendatacommunities.org/id/county-council/surrey,Surrey,http://id.esd.org.uk/service/1465,Council expenditure,04/01/2016,HILLSIDE,SAINSBURYS TO YOU 0675,71.5,PURCHASE OF FOOD (RAW MATERIALS),"GROCERY STORES, SUPERMARKETS",5411
29/04/2016,http://opendatacommunities.org/id/county-council/surrey,Surrey,http://id.esd.org.uk/service/1465,Council expenditure,05/01/2016,DOWNLANDS COUNTRYSIDE PROJECT,THE OUTDOORS COMPANY,123.96,"CLOTHING, UNIFORM AND LAUNDRY",SPORTING GOODS STORES,5941
29/04/2016,http://opendatacommunities.org/id/county-council/surrey,Surrey,http://id.esd.org.uk/service/1465,Council expenditure,05/01/2016,PLD TRANSITION CARE,PREMIER INN,123,OTHER COMMUNITY CARE VOL,PREMIER INN,3811
29/04/2016,http://opendatacommunities.org/id/county-council/surrey,Surrey,http://id.esd.org.uk/service/1465,Council expenditure,05/01/2016,COUNTYWIDE MANAGED PRINT SERVICE,GALTEC SOLUTIONS LTD,408,COMPUTER CONSUMABLES,COMPUTER SOFTWARE STORES,5734
29/04/2016,http://opendatacommunities.org/id/county-council/surrey,Surrey,http://id.esd.org.uk/service/1465,Council expenditure,05/01/2016,ELMBRIDGE STAFFING,AMAZON UK MARKETPLACE,49.9,FURNITURE,BOOK STORES,5942
29/04/2016,http://opendatacommunities.org/id/county-council/surrey,Surrey,http://id.esd.org.uk/service/1465,Council expenditure,05/01/2016,APPLEWOOD,ASDA HOME SHOPPING,-2.36,PURCHASE OF FOOD (RAW MATERIALS),"GROCERY STORES, SUPERMARKETS",5411
29/04/2016,http://opendatacommunities.org/id/county-council/surrey,Surrey,http://id.esd.org.uk/service/1465,Council expenditure,05/01/2016,SW LOOKED AFTER TEAM,AMAZON EU,17.51,COMPUTER CONSUMABLES,DIRECT MARKETING-OTHER DIRECT MARKETERS/NOT ELSEW.,5969
29/04/2016,http://opendatacommunities.org/id/county-council/surrey,Surrey,http://id.esd.org.uk/service/1465,Council expenditure,05/01/2016,KARIBU COMMUNITY HOME,MCDONALDS,6.84,EDUC VISITS/HOLS/CAMPS/TOYS,"EATING PLACES, RESTAURANTS",5812
29/04/2016,http://opendatacommunities.org/id/county-council/surrey,Surrey,http://id.esd.org.uk/service/1465,Council expenditure,05/01/2016,TARGETED INTERVENTION,TOP GOLF ADDLESTON,8.3,EDUC VISITS/HOLS/CAMPS/TOYS,"CLUBS-CNTRY,MBRSHIP(ATHLET,REC,SPRTS,PRIVATE GOLF",7997
29/04/2016,http://opendatacommunities.org/id/county-council/surrey,Surrey,http://id.esd.org.uk/service/1465,Council expenditure,05/01/2016,COBGATES RESIDENTIAL CARE,NRS-UK,86.33,EQUIPMENT,"HEALTH PRACTITIONERS, MEDICAL SRVCS-NOT ELSEWHERE",8099
29/04/2016,http://opendatacommunities.org/id/county-council/surrey,Surrey,http://id.esd.org.uk/service/1465,Council expenditure,05/01/2016,ACL CENTRAL EXPENDITURE,AMAZON EU,64.71,CURRICULUM EQUIPMENT AND FURNITURE,DIRECT MARKETING-OTHER DIRECT MARKETERS/NOT ELSEW.,5969
29/04/2016,http://opendatacommunities.org/id/county-council/surrey,Surrey,http://id.esd.org.uk/service/1465,Council expenditure,05/01/2016,THE BRIDGE YC,TESCO STORES 2812,11.55,PURCHASE OF FOOD (RAW MATERIALS),"GROCERY STORES, SUPERMARKETS",5411
29/04/2016,http://opendatacommunities.org/id/county-council/surrey,Surrey,http://id.esd.org.uk/service/1465,Council expenditure,05/01/2016,TRANSPORT,NEMESIS GB LTD VIRT,229.92,COMPUTER HARDWARE,ELECTRICAL PARTS AND EQUIPMENT,5065
29/04/2016,http://opendatacommunities.org/id/county-council/surrey,Surrey,http://id.esd.org.uk/service/1465,Council expenditure,05/01/2016,HOPE SERVICE - WEST,AMAZON UK MARKETPLACE,79.24,CURRICULUM EQUIPMENT AND FURNITURE,BOOK STORES,5942
29/04/2016,http://opendatacommunities.org/id/county-council/surrey,Surrey,http://id.esd.org.uk/service/1465,Council expenditure,05/01/2016,HOPE SERVICE - EAST,AMAZON UK MARKETPLACE,79.24,CURRICULUM EQUIPMENT AND FURNITURE,BOOK STORES,5942
29/04/2016,http://opendatacommunities.org/id/county-council/surrey,Surrey,http://id.esd.org.uk/service/1465,Council expenditure,05/01/2016,CHEYNE WALK COMMUNITY HOME,JD SPORTS INTERNET,40,"CLOTHING, UNIFORM AND LAUNDRY",SPORTING GOODS STORES,5941
29/04/2016,http://opendatacommunities.org/id/county-council/surrey,Surrey,http://id.esd.org.uk/service/1465,Council expenditure,05/01/2016,HR - BUSINESS SERVICES AND TRAINING,WWW.SURREY.GOV.UK,-12.5,TRAINING EXPENSES EXTERNAL GENERAL,GOVERNMENT SERVICES-NOT ELSEWHERE CLASSIFIED,9399
29/04/2016,http://opendatacommunities.org/id/county-council/surrey,Surrey,http://id.esd.org.uk/service/1465,Council expenditure,05/01/2016,ELMBRIDGE STAFFING,AMAZON UK MARKETPLACE,37.17,FURNITURE,BOOK STORES,5942
29/04/2016,http://opendatacommunities.org/id/county-council/surrey,Surrey,http://id.esd.org.uk/service/1465,Council expenditure,05/01/2016,INSURANCE CLAIMS TEAM,TRFSA   THOMSONREUTERS,"2,645.40",NEWSPAPER AND PERIODICALS,PROFESSIONAL SERVICES-NOT ELSEWHERE CLASSIFIED,8999
29/04/2016,http://opendatacommunities.org/id/county-council/surrey,Surrey,http://id.esd.org.uk/service/1465,Council expenditure,05/01/2016,GUILDFORD YC,TESCO-STORES 2590,9.35,STATIONERY,"GROCERY STORES, SUPERMARKETS",5411
29/04/2016,http://opendatacommunities.org/id/county-council/surrey,Surrey,http://id.esd.org.uk/service/1465,Council expenditure,05/01/2016,DORMERS RESIDENTIAL CARE,AMAZON DIGITAL DWNLDS,-0.99,EDUC VISITS/HOLS/CAMPS/TOYS,RECORD SHOPS,5735
29/04/2016,http://opendatacommunities.org/id/county-council/surrey,Surrey,http://id.esd.org.uk/service/1465,Council expenditure,05/01/2016,LOWER MOLE COUNTRYSIDE PROJECT,LAND SKILLS TRAINING &,348.84,TRAINING EXPENSES EXTERNAL GENERAL,SCHOOLS & EDUCATIONAL SVC-NOT ELSEWHERE CLASSIFIED,8299
29/04/2016,http://opendatacommunities.org/id/county-council/surrey,Surrey,http://id.esd.org.uk/service/1465,Council expenditure,05/01/2016,PROPERTY OPERATIONS TEAM,SCREWFIX GUILDFORD,119.99,PURCHASE OF BUILDING MATERIALS,"BUILDING MATERIALS, LUMBER STORES",5211
29/04/2016,http://opendatacommunities.org/id/county-council/surrey,Surrey,http://id.esd.org.uk/service/1465,Council expenditure,05/01/2016,DORMERS RESIDENTIAL CARE,AMAZON DIGITAL DWNLDS,-0.99,EDUC VISITS/HOLS/CAMPS/TOYS,RECORD SHOPS,5735
29/04/2016,http://opendatacommunities.org/id/county-council/surrey,Surrey,http://id.esd.org.uk/service/1465,Council expenditure,05/01/2016,TRAINING SURREY HIGHWAYS,PTRC-TRAINING.CO.U,394.8,TRAINING EXPENSES EXTERNAL GENERAL,"COLLEGES, UNIV, PRO SCHOOLS, JUNIOR COLLEGES",8220
29/04/2016,http://opendatacommunities.org/id/county-council/surrey,Surrey,http://id.esd.org.uk/service/1465,Council expenditure,05/01/2016,MALLOW CRESCENT,POST OFFICE COUNTER,5.04,POSTAGE AND COURIER CHARGES,POSTAL SERVICES-GOVERNMENT ONLY,9402
29/04/2016,http://opendatacommunities.org/id/county-council/surrey,Surrey,http://id.esd.org.uk/service/1465,Council expenditure,05/01/2016,HOPE SERVICE - WEST,AMAZON UK MARKETPLACE,13.99,CURRICULUM EQUIPMENT AND FURNITURE,BOOK STORES,5942
29/04/2016,http://opendatacommunities.org/id/county-council/surrey,Surrey,http://id.esd.org.uk/service/1465,Council expenditure,05/01/2016,LEADERSHIP,AMAZON UK MARKETPLACE,47.89,COMPUTER HARDWARE,BOOK STORES,5942
29/04/2016,http://opendatacommunities.org/id/county-council/surrey,Surrey,http://id.esd.org.uk/service/1465,Council expenditure,05/01/2016,MALLOW CRESCENT,SAINSBURYS TO YOU 0686,9.1,PURCHASE OF FOOD (RAW MATERIALS),"GROCERY STORES, SUPERMARKETS",5411
29/04/2016,http://opendatacommunities.org/id/county-council/surrey,Surrey,http://id.esd.org.uk/service/1465,Council expenditure,05/01/2016,MALLOW CRESCENT,SAINSBURYS TO YOU 0686,92.58,PURCHASE OF FOOD (RAW MATERIALS),"GROCERY STORES, SUPERMARKETS",5411
29/04/2016,http://opendatacommunities.org/id/county-council/surrey,Surrey,http://id.esd.org.uk/service/1465,Council expenditure,05/01/2016,TRANSPORT,AMAZON UK MARKETPLACE,10.94,STATIONERY,BOOK STORES,5942
29/04/2016,http://opendatacommunities.org/id/county-council/surrey,Surrey,http://id.esd.org.uk/service/1465,Council expenditure,05/01/2016,HOPE SERVICE - EAST,AMAZON UK MARKETPLACE,13.99,CURRICULUM EQUIPMENT AND FURNITURE,BOOK STORES,5942
29/04/2016,http://opendatacommunities.org/id/county-council/surrey,Surrey,http://id.esd.org.uk/service/1465,Council expenditure,05/01/2016,NORTH EAST AREA TEAM,PROFESSIONAL TRADERS L,5.2,EDUC VISITS/HOLS/CAMPS/TOYS,"BUILDING MATERIALS, LUMBER STORES",5211
29/04/2016,http://opendatacommunities.org/id/county-council/surrey,Surrey,http://id.esd.org.uk/service/1465,Council expenditure,05/01/2016,FAIRCROFT COMMUNITY HOME,TESCO STORE 2160,32,"CLOTHING, UNIFORM AND LAUNDRY","GROCERY STORES, SUPERMARKETS",5411
29/04/2016,http://opendatacommunities.org/id/county-council/surrey,Surrey,http://id.esd.org.uk/service/1465,Council expenditure,05/01/2016,PE/CDT MAINTENANCE OVERHEADS,STAPLES UK,129.98,PHOTOCOPIER MACHINES AND MATERIALS,"OFFICE, SCHOOL SUPPLY, AND STATIONERY STORES",5943
29/04/2016,http://opendatacommunities.org/id/county-council/surrey,Surrey,http://id.esd.org.uk/service/1465,Council expenditure,05/01/2016,GUILDFORD YC,THE RANGE,23.98,STATIONERY,DEPARTMENT STORES,5311
29/04/2016,http://opendatacommunities.org/id/county-council/surrey,Surrey,http://id.esd.org.uk/service/1465,Council expenditure,05/01/2016,ADULT SKILLS,AMAZON EU,11.9,CURRIC BOOKS,DIRECT MARKETING-OTHER DIRECT MARKETERS/NOT ELSEW.,5969
29/04/2016,http://opendatacommunities.org/id/county-council/surrey,Surrey,http://id.esd.org.uk/service/1465,Council expenditure,05/01/2016,TRAINING-POLICY AND PERFORMANCE TEAM,WWW.PMGLTD.CO.UK,462,TRAINING EXPENSES EXTERNAL GENERAL,BUSINESS SERVICES-NOT ELSEWHERE CLASSIFIED,7399
29/04/2016,http://opendatacommunities.org/id/county-council/surrey,Surrey,http://id.esd.org.uk/service/1465,Council expenditure,05/01/2016,APPLEWOOD,ASDA HOME SHOPPING,193.7,PURCHASE OF FOOD (RAW MATERIALS),"GROCERY STORES, SUPERMARKETS",5411
29/04/2016,http://opendatacommunities.org/id/county-council/surrey,Surrey,http://id.esd.org.uk/service/1465,Council expenditure,05/01/2016,BURBANK COMMUNITY HOME,SAINSBURYS TO YOU 0686,261.13,PURCHASE OF FOOD (RAW MATERIALS),"GROCERY STORES, SUPERMARKETS",5411
29/04/2016,http://opendatacommunities.org/id/county-council/surrey,Surrey,http://id.esd.org.uk/service/1465,Council expenditure,05/01/2016,FAIRCROFT COMMUNITY HOME,TESCO STORE 2160,197.42,PURCHASE OF FOOD (RAW MATERIALS),"GROCERY STORES, SUPERMARKETS",5411
29/04/2016,http://opendatacommunities.org/id/county-council/surrey,Surrey,http://id.esd.org.uk/service/1465,Council expenditure,05/01/2016,TRANSPORT,AMAZON EU,27.36,FURNITURE,DIRECT MARKETING-OTHER DIRECT MARKETERS/NOT ELSEW.,5969
29/04/2016,http://opendatacommunities.org/id/county-council/surrey,Surrey,http://id.esd.org.uk/service/1465,Council expenditure,05/01/2016,TRANSPORT,AMAZON EU,15.66,STATIONERY,DIRECT MARKETING-OTHER DIRECT MARKETERS/NOT ELSEW.,5969
29/04/2016,http://opendatacommunities.org/id/county-council/surrey,Surrey,http://id.esd.org.uk/service/1465,Council expenditure,05/01/2016,HOPE SERVICE - WEST,SAINSBURYS TO YOU 0686,159.12,PURCHASE OF FOOD (RAW MATERIALS),"GROCERY STORES, SUPERMARKETS",5411
29/04/2016,http://opendatacommunities.org/id/county-council/surrey,Surrey,http://id.esd.org.uk/service/1465,Council expenditure,05/01/2016,BUILDING WORLDCLASS WORKFORCE,PARCELFORCE WORLDWIDE,36.58,EQUIPMENT,"FREIGHT CARRIER,TRUCKING-LCL/LNG DIST, MVG/STORAGE",4214
29/04/2016,http://opendatacommunities.org/id/county-council/surrey,Surrey,http://id.esd.org.uk/service/1465,Council expenditure,05/01/2016,ADOPTION CARE,TRAVELODGE,76.9,CHILDREN ACT SEC 17 PAYMENTS,TRAVELODGE,3615
29/04/2016,http://opendatacommunities.org/id/county-council/surrey,Surrey,http://id.esd.org.uk/service/1465,Council expenditure,05/01/2016,OLD DEAN YC,AMAZON EU,9.99,EQUIPMENT,DIRECT MARKETING-OTHER DIRECT MARKETERS/NOT ELSEW.,5969
29/04/2016,http://opendatacommunities.org/id/county-council/surrey,Surrey,http://id.esd.org.uk/service/1465,Council expenditure,05/01/2016,SE SECTION 17 CARE,TRAVELODGE,373.4,INDEPENDENT LIVING PLACEMENTS,TRAVELODGE,3615
29/04/2016,http://opendatacommunities.org/id/county-council/surrey,Surrey,http://id.esd.org.uk/service/1465,Council expenditure,05/01/2016,EQUIPMENT SCC BUDGET,FIRSTCHOICE CATERING S,60.71,EQUIPMENT,INDUSTRIAL SUPPLIES NOT ELSEWHERE CLASSIFIED,5085
29/04/2016,http://opendatacommunities.org/id/county-council/surrey,Surrey,http://id.esd.org.uk/service/1465,Council expenditure,05/01/2016,AD OPERATIONS HIGHWAYS AND COUNTRYSIDE,SAINSBURYS 0652,12,REFRESHMENT COSTS,"GROCERY STORES, SUPERMARKETS",5411
29/04/2016,http://opendatacommunities.org/id/county-council/surrey,Surrey,http://id.esd.org.uk/service/1465,Council expenditure,05/01/2016,SPELTHORNE LOCAL CARE PD,TRAVELODGE,232,RESIDENTIAL PRIV,TRAVELODGE,3615
29/04/2016,http://opendatacommunities.org/id/county-council/surrey,Surrey,http://id.esd.org.uk/service/1465,Council expenditure,05/01/2016,E&I - RECYCLING                         ,EB GOOGLE ADWORDS TRA,598.8,PUBLICITY,BUSINESS SERVICES-NOT ELSEWHERE CLASSIFIED,7399
29/04/2016,http://opendatacommunities.org/id/county-council/surrey,Surrey,http://id.esd.org.uk/service/1465,Council expenditure,05/01/2016,HILLSIDE,SAINSBURYS 0675,74.73,PURCHASE OF FOOD (RAW MATERIALS),"GROCERY STORES, SUPERMARKETS",5411
29/04/2016,http://opendatacommunities.org/id/county-council/surrey,Surrey,http://id.esd.org.uk/service/1465,Council expenditure,05/01/2016,COUNTYWIDE MANAGED PRINT SERVICE,AMAZON UK MARKETPLACE,46.99,COMPUTER CONSUMABLES,BOOK STORES,5942
29/04/2016,http://opendatacommunities.org/id/county-council/surrey,Surrey,http://id.esd.org.uk/service/1465,Council expenditure,05/01/2016,NE EDUCATION WELFARE OFFICERS,AMAZON EU,28.48,EQUIPMENT,DIRECT MARKETING-OTHER DIRECT MARKETERS/NOT ELSEW.,5969
29/04/2016,http://opendatacommunities.org/id/county-council/surrey,Surrey,http://id.esd.org.uk/service/1465,Council expenditure,05/01/2016,BURBANK COMMUNITY HOME,W M MORRISONS,55.75,E25 CATERING EQUIPMENT,"GROCERY STORES, SUPERMARKETS",5411
29/04/2016,http://opendatacommunities.org/id/county-council/surrey,Surrey,http://id.esd.org.uk/service/1465,Council expenditure,05/01/2016,KARIBU COMMUNITY HOME,TOY BARNHAUS,14.98,EDUC VISITS/HOLS/CAMPS/TOYS,"GAME, TOY, AND HOBBY SHOPS",5945
29/04/2016,http://opendatacommunities.org/id/county-council/surrey,Surrey,http://id.esd.org.uk/service/1465,Council expenditure,05/01/2016,BURBANK COMMUNITY HOME,SAINSBURYS TO YOU 0686,-9.03,PURCHASE OF FOOD (RAW MATERIALS),"GROCERY STORES, SUPERMARKETS",5411
29/04/2016,http://opendatacommunities.org/id/county-council/surrey,Surrey,http://id.esd.org.uk/service/1465,Council expenditure,05/01/2016,TARGETED INTERVENTION,TOP GOLF LTD,23,EDUC VISITS/HOLS/CAMPS/TOYS,"CLUBS-CNTRY,MBRSHIP(ATHLET,REC,SPRTS,PRIVATE GOLF",7997
29/04/2016,http://opendatacommunities.org/id/county-council/surrey,Surrey,http://id.esd.org.uk/service/1465,Council expenditure,05/01/2016,HR - BUSINESS SERVICES AND TRAINING,AMAZON EU,33.36,EQUIPMENT,DIRECT MARKETING-OTHER DIRECT MARKETERS/NOT ELSEW.,5969
29/04/2016,http://opendatacommunities.org/id/county-council/surrey,Surrey,http://id.esd.org.uk/service/1465,Council expenditure,05/01/2016,HEAD OF CUSTOMER SERVICES,GOOGLE  ADWS9122782225,45.75,SUBSCRIPTIONS,DIRECT MARKETING-CONTINUITY/SUBSCRIPTION MERCHANTS,5968
29/04/2016,http://opendatacommunities.org/id/county-council/surrey,Surrey,http://id.esd.org.uk/service/1465,Council expenditure,05/01/2016,MALLOW CRESCENT,TESCO STORE 2590,10.04,PURCHASE OF FOOD (RAW MATERIALS),"GROCERY STORES, SUPERMARKETS",5411
29/04/2016,http://opendatacommunities.org/id/county-council/surrey,Surrey,http://id.esd.org.uk/service/1465,Council expenditure,05/01/2016,MALLOW CRESCENT,TESCO STORE 2590,65.52,PURCHASE OF FOOD (RAW MATERIALS),"GROCERY STORES, SUPERMARKETS",5411
29/04/2016,http://opendatacommunities.org/id/county-council/surrey,Surrey,http://id.esd.org.uk/service/1465,Council expenditure,05/01/2016,HILLSIDE,CURRYS.DIGITAL,49.99,EQUIPMENT,ELECTRONIC SALES,5732
29/04/2016,http://opendatacommunities.org/id/county-council/surrey,Surrey,http://id.esd.org.uk/service/1465,Council expenditure,05/01/2016,CHAIRMAN,AMAZON UK MARKETPLACE,27.22,STATIONERY,BOOK STORES,5942
29/04/2016,http://opendatacommunities.org/id/county-council/surrey,Surrey,http://id.esd.org.uk/service/1465,Council expenditure,06/01/2016,SW CARE - NON-LAC CP & COURT,PREMIER INN,313.96,CHILDREN ACT SEC 17 PAYMENTS,PREMIER INN,3811
29/04/2016,http://opendatacommunities.org/id/county-council/surrey,Surrey,http://id.esd.org.uk/service/1465,Council expenditure,06/01/2016,LOCAL DELIVERY GROUP,AMAZON EU,98,EQUIPMENT,DIRECT MARKETING-OTHER DIRECT MARKETERS/NOT ELSEW.,5969
29/04/2016,http://opendatacommunities.org/id/county-council/surrey,Surrey,http://id.esd.org.uk/service/1465,Council expenditure,06/01/2016,LOCAL DELIVERY GROUP,AMAZON EU,25.52,EQUIPMENT,DIRECT MARKETING-OTHER DIRECT MARKETERS/NOT ELSEW.,5969
29/04/2016,http://opendatacommunities.org/id/county-council/surrey,Surrey,http://id.esd.org.uk/service/1465,Council expenditure,06/01/2016,HILLSIDE,WILKO RETAIL LIMIT,16.7,"CLOTHING, UNIFORM AND LAUNDRY",HOUSEHOLD APPLIANCE STORES,5722
29/04/2016,http://opendatacommunities.org/id/county-council/surrey,Surrey,http://id.esd.org.uk/service/1465,Council expenditure,06/01/2016,HILLSIDE,SAINSBURYS 0675,100.89,PURCHASE OF FOOD (RAW MATERIALS),"GROCERY STORES, SUPERMARKETS",5411
29/04/2016,http://opendatacommunities.org/id/county-council/surrey,Surrey,http://id.esd.org.uk/service/1465,Council expenditure,06/01/2016,HILLSIDE,SAINSBURYS 0675,7.85,PURCHASE OF FOOD (RAW MATERIALS),"GROCERY STORES, SUPERMARKETS",5411
29/04/2016,http://opendatacommunities.org/id/county-council/surrey,Surrey,http://id.esd.org.uk/service/1465,Council expenditure,06/01/2016,ROW VOLUNTEERS WEST                     ,AVS FENCING SUPPLIES,77.02,FEES,"BUILDING MATERIALS, LUMBER STORES",5211
29/04/2016,http://opendatacommunities.org/id/county-council/surrey,Surrey,http://id.esd.org.uk/service/1465,Council expenditure,06/01/2016,MALLOW CRESCENT,AMAZON EU,65.11,EQUIPMENT,DIRECT MARKETING-OTHER DIRECT MARKETERS/NOT ELSEW.,5969
29/04/2016,http://opendatacommunities.org/id/county-council/surrey,Surrey,http://id.esd.org.uk/service/1465,Council expenditure,06/01/2016,TRANSPORT,DESIGNS SIGNAGE SO,42,VEHICLE REPAIRS AND MAINTENANCE,"COMMERCIAL ART, GRAPHICS, PHOTOGRAPHY",7333
29/04/2016,http://opendatacommunities.org/id/county-council/surrey,Surrey,http://id.esd.org.uk/service/1465,Council expenditure,06/01/2016,ROW MAINTENANCE,ARGOS LTD,19.98,EQUIPMENT,DISCOUNT STORES,5310
29/04/2016,http://opendatacommunities.org/id/county-council/surrey,Surrey,http://id.esd.org.uk/service/1465,Council expenditure,06/01/2016,HOPE SERVICE - EAST,HRP,9,EDUC VISITS/HOLS/CAMPS/TOYS,RECREATION SERVICES (NOT ELSEWHERE CLASSIFIED),7999
29/04/2016,http://opendatacommunities.org/id/county-council/surrey,Surrey,http://id.esd.org.uk/service/1465,Council expenditure,06/01/2016,MALLOW CRESCENT,HOSPITAL METALCRAF,25.8,EQUIPMENT,"HEALTH PRACTITIONERS, MEDICAL SRVCS-NOT ELSEWHERE",8099
29/04/2016,http://opendatacommunities.org/id/county-council/surrey,Surrey,http://id.esd.org.uk/service/1465,Council expenditure,06/01/2016,HOPE SERVICE - EAST,CH&CO CATERING LTD,7.15,REFRESHMENT COSTS,CATERERS,5811
29/04/2016,http://opendatacommunities.org/id/county-council/surrey,Surrey,http://id.esd.org.uk/service/1465,Council expenditure,06/01/2016,YSS YOUTH CENTRE IMPROVEMENTS,ASDA SUPERSTORE,46.76,EQUIPMENT,"GROCERY STORES, SUPERMARKETS",5411
29/04/2016,http://opendatacommunities.org/id/county-council/surrey,Surrey,http://id.esd.org.uk/service/1465,Council expenditure,06/01/2016,PROGRAMME TEAM,WWW.MANTRALINGUA.COM,520,EQUIPMENT,DIRECT MARKETING-CATALOG MERCHANTS,5964
29/04/2016,http://opendatacommunities.org/id/county-council/surrey,Surrey,http://id.esd.org.uk/service/1465,Council expenditure,06/01/2016,COMMUNICATIONS TEAM,FINANCIAL TIMES LT,278.2,SUBSCRIPTIONS,DIRECT MARKETING-COMBINATION CATALOG/RETAIL MERCH.,5965
29/04/2016,http://opendatacommunities.org/id/county-council/surrey,Surrey,http://id.esd.org.uk/service/1465,Council expenditure,06/01/2016,RESOURCES STATIONERY                    ,OAK HILL PUBLISHING LT,330,EQUIPMENT,BOOK STORES,5942
29/04/2016,http://opendatacommunities.org/id/county-council/surrey,Surrey,http://id.esd.org.uk/service/1465,Council expenditure,06/01/2016,ESTATES DELIVERY MANAGER,ARBORICULTURAL ASSOCIA,310,SUBSCRIPTIONS,"ORGANIZATIONS, CHARITABLE AND SOCIAL SERVICES",8398
29/04/2016,http://opendatacommunities.org/id/county-council/surrey,Surrey,http://id.esd.org.uk/service/1465,Council expenditure,06/01/2016,TRANSPORT,AMAZON UK MARKETPLACE,11.92,FURNITURE,BOOK STORES,5942
29/04/2016,http://opendatacommunities.org/id/county-council/surrey,Surrey,http://id.esd.org.uk/service/1465,Council expenditure,06/01/2016,BURBANK COMMUNITY HOME,W M MORRISONS,15.88,PURCHASE OF FOOD (RAW MATERIALS),"GROCERY STORES, SUPERMARKETS",5411
29/04/2016,http://opendatacommunities.org/id/county-council/surrey,Surrey,http://id.esd.org.uk/service/1465,Council expenditure,06/01/2016,HILLSIDE,CURRYS.DIGITAL,59.99,EQUIPMENT,ELECTRONIC SALES,5732
29/04/2016,http://opendatacommunities.org/id/county-council/surrey,Surrey,http://id.esd.org.uk/service/1465,Council expenditure,06/01/2016,CHEYNE WALK COMMUNITY HOME,SAINSBURYS 0026,16.55,PURCHASE OF FOOD (RAW MATERIALS),"GROCERY STORES, SUPERMARKETS",5411
29/04/2016,http://opendatacommunities.org/id/county-council/surrey,Surrey,http://id.esd.org.uk/service/1465,Council expenditure,06/01/2016,ELMBRIDGE STAFFING,AMAZON UK MARKETPLACE,89.5,EQUIPMENT,BOOK STORES,5942
29/04/2016,http://opendatacommunities.org/id/county-council/surrey,Surrey,http://id.esd.org.uk/service/1465,Council expenditure,06/01/2016,CHILDREN'S RIGHTS TEAM,LOVE2SHOP.CO.UK,494.25,STATIONERY,"ASSOCIATIONS-CIVIC, SOCIAL, AND FRATERNAL",8641
29/04/2016,http://opendatacommunities.org/id/county-council/surrey,Surrey,http://id.esd.org.uk/service/1465,Council expenditure,06/01/2016,CRANLEIGH YC,HOBBYCRAFT GROUP L,16,STATIONERY,"ARTIST SUPPLY STORES, CRAFT SHOPS",5970
29/04/2016,http://opendatacommunities.org/id/county-council/surrey,Surrey,http://id.esd.org.uk/service/1465,Council expenditure,06/01/2016,ELMBRIDGE STAFFING,AMAZON EU,47.87,EQUIPMENT,DIRECT MARKETING-OTHER DIRECT MARKETERS/NOT ELSEW.,5969
29/04/2016,http://opendatacommunities.org/id/county-council/surrey,Surrey,http://id.esd.org.uk/service/1465,Council expenditure,06/01/2016,PROPERTY OPERATIONS TEAM,B & Q,27.98,PURCHASE OF BUILDING MATERIALS,"BUILDING MATERIALS, LUMBER STORES",5211
29/04/2016,http://opendatacommunities.org/id/county-council/surrey,Surrey,http://id.esd.org.uk/service/1465,Council expenditure,06/01/2016,HILLSIDE,CEX,4.5,EDUC VISITS/HOLS/CAMPS/TOYS,ELECTRICAL PARTS AND EQUIPMENT,5065
29/04/2016,http://opendatacommunities.org/id/county-council/surrey,Surrey,http://id.esd.org.uk/service/1465,Council expenditure,06/01/2016,MALLOW CRESCENT,WWW.FIRSTAIDTRAININGSE,16,EQUIPMENT,SCHOOLS & EDUCATIONAL SVC-NOT ELSEWHERE CLASSIFIED,8299
29/04/2016,http://opendatacommunities.org/id/county-council/surrey,Surrey,http://id.esd.org.uk/service/1465,Council expenditure,06/01/2016,MALLOW CRESCENT,SAINSBURYS TO YOU 0686,101.81,PURCHASE OF FOOD (RAW MATERIALS),"GROCERY STORES, SUPERMARKETS",5411
29/04/2016,http://opendatacommunities.org/id/county-council/surrey,Surrey,http://id.esd.org.uk/service/1465,Council expenditure,06/01/2016,ENSURING QUALITY - PLAY,WWW.HEALTHANDCARE.CO.U,807.92,EDUC VISITS/HOLS/CAMPS/TOYS,DENTAL/LAB/MED/OPHTHALMIC HOSP EQUIP & SUPPLIES,5047
29/04/2016,http://opendatacommunities.org/id/county-council/surrey,Surrey,http://id.esd.org.uk/service/1465,Council expenditure,06/01/2016,PROPERTY OPERATIONS TEAM,SAINSBURYS PFS0591,40.2,PURCHASE OF BUILDING MATERIALS,SERVICE STATIONS WITH OR WITHOUT ANCILLARY SERVICE,5541
29/04/2016,http://opendatacommunities.org/id/county-council/surrey,Surrey,http://id.esd.org.uk/service/1465,Council expenditure,06/01/2016,HOPE SERVICE - WEST,SAINSBURYS SACAT(4409),1.1,PURCHASE OF FOOD (RAW MATERIALS),"GROCERY STORES, SUPERMARKETS",5411
29/04/2016,http://opendatacommunities.org/id/county-council/surrey,Surrey,http://id.esd.org.uk/service/1465,Council expenditure,06/01/2016,TARGETED INTERVENTION,THE HUB CAFE,5.3,EDUC VISITS/HOLS/CAMPS/TOYS,"EATING PLACES, RESTAURANTS",5812
29/04/2016,http://opendatacommunities.org/id/county-council/surrey,Surrey,http://id.esd.org.uk/service/1465,Council expenditure,06/01/2016,WOODLANDS COMMUNITY HOME,AMAZON EU,58.02,BOOKS,DIRECT MARKETING-OTHER DIRECT MARKETERS/NOT ELSEW.,5969
29/04/2016,http://opendatacommunities.org/id/county-council/surrey,Surrey,http://id.esd.org.uk/service/1465,Council expenditure,06/01/2016,COUNTY HALL,B & Q NEW PLC,63.16,DAY TO DAY MAINTENANCE,"BUILDING MATERIALS, LUMBER STORES",5211
29/04/2016,http://opendatacommunities.org/id/county-council/surrey,Surrey,http://id.esd.org.uk/service/1465,Council expenditure,06/01/2016,ELMBRIDGE STAFFING,AMAZON UK MARKETPLACE,11.06,EQUIPMENT,BOOK STORES,5942
29/04/2016,http://opendatacommunities.org/id/county-council/surrey,Surrey,http://id.esd.org.uk/service/1465,Council expenditure,06/01/2016,TRANSPORT,CALLANCOTE LTD,792,OPERATIONAL FIRE EQUIPMENT,INDUSTRIAL SUPPLIES NOT ELSEWHERE CLASSIFIED,5085
29/04/2016,http://opendatacommunities.org/id/county-council/surrey,Surrey,http://id.esd.org.uk/service/1465,Council expenditure,06/01/2016,ELMBRIDGE STAFFING,WWW.MIND.ORG.UK,220,CURRICULUM CONSUMABLES,"ORGANIZATIONS, CHARITABLE AND SOCIAL SERVICES",8398
29/04/2016,http://opendatacommunities.org/id/county-council/surrey,Surrey,http://id.esd.org.uk/service/1465,Council expenditure,06/01/2016,LOCAL DELIVERY GROUP,AMAZON UK MARKETPLACE,12.24,EQUIPMENT,BOOK STORES,5942
29/04/2016,http://opendatacommunities.org/id/county-council/surrey,Surrey,http://id.esd.org.uk/service/1465,Council expenditure,06/01/2016,EXTENDED HOPE,RYMAN 1138,46.85,STATIONERY,"OFFICE, SCHOOL SUPPLY, AND STATIONERY STORES",5943
29/04/2016,http://opendatacommunities.org/id/county-council/surrey,Surrey,http://id.esd.org.uk/service/1465,Council expenditure,06/01/2016,EXTENDED HOPE,BIDDLES OF GUILDFORD,18.56,STATIONERY,"OFFICE, SCHOOL SUPPLY, AND STATIONERY STORES",5943
29/04/2016,http://opendatacommunities.org/id/county-council/surrey,Surrey,http://id.esd.org.uk/service/1465,Council expenditure,06/01/2016,PROPERTY OPERATIONS TEAM,SCREWFIX GUILDFORD,91.85,PURCHASE OF BUILDING MATERIALS,"BUILDING MATERIALS, LUMBER STORES",5211
29/04/2016,http://opendatacommunities.org/id/county-council/surrey,Surrey,http://id.esd.org.uk/service/1465,Council expenditure,06/01/2016,CHEYNE WALK COMMUNITY HOME,SAINSBURYS 0026,20.2,PURCHASE OF FOOD (RAW MATERIALS),"GROCERY STORES, SUPERMARKETS",5411
29/04/2016,http://opendatacommunities.org/id/county-council/surrey,Surrey,http://id.esd.org.uk/service/1465,Council expenditure,06/01/2016,TRANSPORT,AMAZON UK MARKETPLACE,35,FURNITURE,BOOK STORES,5942
29/04/2016,http://opendatacommunities.org/id/county-council/surrey,Surrey,http://id.esd.org.uk/service/1465,Council expenditure,06/01/2016,SW CARE - LAC,TRAVELODGE,83.95,CHILDREN ACT SEC 17 PAYMENTS,TRAVELODGE,3615
29/04/2016,http://opendatacommunities.org/id/county-council/surrey,Surrey,http://id.esd.org.uk/service/1465,Council expenditure,06/01/2016,BUSINESS AND COMPLIANCE TEAM            ,WWW.MOLEVALLEYFARMERS.,192,EQUIPMENT,"BUILDING MATERIALS, LUMBER STORES",5211
29/04/2016,http://opendatacommunities.org/id/county-council/surrey,Surrey,http://id.esd.org.uk/service/1465,Council expenditure,06/01/2016,PE/CDT MAINTENANCE OVERHEADS,SWISH BASKETBALL,159.1,ITEMS PURCHASED FOR RE-SALE,SPORTING GOODS STORES,5941
29/04/2016,http://opendatacommunities.org/id/county-council/surrey,Surrey,http://id.esd.org.uk/service/1465,Council expenditure,06/01/2016,ELMBRIDGE STAFFING,AMAZON UK MARKETPLACE,88.63,EQUIPMENT,BOOK STORES,5942
29/04/2016,http://opendatacommunities.org/id/county-council/surrey,Surrey,http://id.esd.org.uk/service/1465,Council expenditure,06/01/2016,TRANSPORT,ARGOS REIGATE,169.99,EQUIPMENT,DISCOUNT STORES,5310
29/04/2016,http://opendatacommunities.org/id/county-council/surrey,Surrey,http://id.esd.org.uk/service/1465,Council expenditure,06/01/2016,ASSISTED PURCHASE SCHEME,HOWARTH OF LONDON,"2,923.00",EQUIPMENT,"MUSIC STORES-INSTRUMENTS, PIANOS, SHEET MUSIC",5733
29/04/2016,http://opendatacommunities.org/id/county-council/surrey,Surrey,http://id.esd.org.uk/service/1465,Council expenditure,06/01/2016,COUNTRYSIDE PARTNERSHIPS TEAM,EB SURREY COUNTRYSIDE,54,SUBSISTENCE AND CONFERENCE EXPENSES,BUSINESS SERVICES-NOT ELSEWHERE CLASSIFIED,7399
29/04/2016,http://opendatacommunities.org/id/county-council/surrey,Surrey,http://id.esd.org.uk/service/1465,Council expenditure,06/01/2016,ARUNDEL,TESCO STORES 5999,108.04,REFRESHMENT COSTS,"GROCERY STORES, SUPERMARKETS",5411
29/04/2016,http://opendatacommunities.org/id/county-council/surrey,Surrey,http://id.esd.org.uk/service/1465,Council expenditure,06/01/2016,PERMANENTLY SURPLUS LAND,GUILDFORD LOCK & SAFE,35.6,EQUIPMENT,HARDWARE EQUIPMENT AND SUPPLIES,5072
29/04/2016,http://opendatacommunities.org/id/county-council/surrey,Surrey,http://id.esd.org.uk/service/1465,Council expenditure,06/01/2016,COVEHAM,SAINSBURYS TO YOU 0687,115.96,PURCHASE OF FOOD (RAW MATERIALS),"GROCERY STORES, SUPERMARKETS",5411
29/04/2016,http://opendatacommunities.org/id/county-council/surrey,Surrey,http://id.esd.org.uk/service/1465,Council expenditure,06/01/2016,ENSURING PROVISION INCLUSIVE - CAP,AMAZON UK MARKETPLACE,141.48,EDUC VISITS/HOLS/CAMPS/TOYS,BOOK STORES,5942
29/04/2016,http://opendatacommunities.org/id/county-council/surrey,Surrey,http://id.esd.org.uk/service/1465,Council expenditure,06/01/2016,SURREY ARTS GENERAL,HOMEBASE LTD,33.65,EQUIPMENT,"BUILDING MATERIALS, LUMBER STORES",5211
29/04/2016,http://opendatacommunities.org/id/county-council/surrey,Surrey,http://id.esd.org.uk/service/1465,Council expenditure,06/01/2016,TRANSPORT,MOBILE FLEETWASH UK LT,108,VEHICLE REPAIRS AND MAINTENANCE,CAR WASHES,7542
29/04/2016,http://opendatacommunities.org/id/county-council/surrey,Surrey,http://id.esd.org.uk/service/1465,Council expenditure,06/01/2016,TRAINING COMMUNICATIONS,EB HOW TO WRITE BETTE,249,TRAINING EXPENSES EXTERNAL GENERAL,BUSINESS SERVICES-NOT ELSEWHERE CLASSIFIED,7399
29/04/2016,http://opendatacommunities.org/id/county-council/surrey,Surrey,http://id.esd.org.uk/service/1465,Council expenditure,06/01/2016,CHEYNE WALK COMMUNITY HOME,COX SKIPS LTD,262.8,EQUIPMENT,"EQUIPMENT RENTAL&LEASING SVS, FURNTURE/TOOL RENTAL",7394
29/04/2016,http://opendatacommunities.org/id/county-council/surrey,Surrey,http://id.esd.org.uk/service/1465,Council expenditure,06/01/2016,ORDER TO CASH TEAMS,WWW.GOV.UK,10,FEES,PROFESSIONAL SERVICES-NOT ELSEWHERE CLASSIFIED,8999
29/04/2016,http://opendatacommunities.org/id/county-council/surrey,Surrey,http://id.esd.org.uk/service/1465,Council expenditure,06/01/2016,CSF COMMUNICATIONS TEAM,HOOTSUITE MEDIA INC.,9.59,SUBSCRIPTIONS,BUSINESS SERVICES-NOT ELSEWHERE CLASSIFIED,7399
29/04/2016,http://opendatacommunities.org/id/county-council/surrey,Surrey,http://id.esd.org.uk/service/1465,Council expenditure,06/01/2016,SECTOR MANAGER,FAYE (UK) LTD,"1,589.76",ITEMS PURCHASED FOR RE-SALE,LEATHER GOODS AND LUGGAGE STORES,5948
29/04/2016,http://opendatacommunities.org/id/county-council/surrey,Surrey,http://id.esd.org.uk/service/1465,Council expenditure,06/01/2016,PINEHURST RESIDENTIAL CARE,ARGOS RETAIL GROUP,189.99,EQUIPMENT,DISCOUNT STORES,5310
29/04/2016,http://opendatacommunities.org/id/county-council/surrey,Surrey,http://id.esd.org.uk/service/1465,Council expenditure,06/01/2016,SW LOOKED AFTER TEAM,AMAZON UK MARKETPLACE,5.98,COMPUTER CONSUMABLES,BOOK STORES,5942
29/04/2016,http://opendatacommunities.org/id/county-council/surrey,Surrey,http://id.esd.org.uk/service/1465,Council expenditure,06/01/2016,ASH YC,AMAZON EU,25.06,BOOKS,DIRECT MARKETING-OTHER DIRECT MARKETERS/NOT ELSEW.,5969
29/04/2016,http://opendatacommunities.org/id/county-council/surrey,Surrey,http://id.esd.org.uk/service/1465,Council expenditure,06/01/2016,E&I - RECYCLING                         ,GOOGLE  ADWS2060179426,98.35,PUBLICITY,DIRECT MARKETING-CONTINUITY/SUBSCRIPTION MERCHANTS,5968
29/04/2016,http://opendatacommunities.org/id/county-council/surrey,Surrey,http://id.esd.org.uk/service/1465,Council expenditure,06/01/2016,FRIMLEY YC,ONE STOP 1396,2.66,PURCHASE OF FOOD (RAW MATERIALS),"GROCERY STORES, SUPERMARKETS",5411
29/04/2016,http://opendatacommunities.org/id/county-council/surrey,Surrey,http://id.esd.org.uk/service/1465,Council expenditure,06/01/2016,HILLSIDE,BHS 148,24.05,"CLOTHING, UNIFORM AND LAUNDRY",DEPARTMENT STORES,5311
29/04/2016,http://opendatacommunities.org/id/county-council/surrey,Surrey,http://id.esd.org.uk/service/1465,Council expenditure,06/01/2016,TRAINING-POLICY AND PERFORMANCE TEAM,SOLACE LTD,203,SUBSCRIPTIONS,"ORGANIZATIONS, MEMBERSHIP-NOT ELSEWHERE CLASSIFIED",8699
29/04/2016,http://opendatacommunities.org/id/county-council/surrey,Surrey,http://id.esd.org.uk/service/1465,Council expenditure,06/01/2016,HILLSIDE,SAINSBURYS SACAT 0784,3.95,PURCHASE OF FOOD (RAW MATERIALS),"GROCERY STORES, SUPERMARKETS",5411
29/04/2016,http://opendatacommunities.org/id/county-council/surrey,Surrey,http://id.esd.org.uk/service/1465,Council expenditure,06/01/2016,AD OPERATIONS HIGHWAYS AND COUNTRYSIDE,FMG SUPPORT (RRRM) HA,153.75,VEHICLE REPAIRS AND MAINTENANCE,TOWING SERVICES,7549
29/04/2016,http://opendatacommunities.org/id/county-council/surrey,Surrey,http://id.esd.org.uk/service/1465,Council expenditure,06/01/2016,SE EDUCATION PSYCHOLOGISTS,AMAZON UK MARKETPLACE,66,EQUIPMENT,BOOK STORES,5942
29/04/2016,http://opendatacommunities.org/id/county-council/surrey,Surrey,http://id.esd.org.uk/service/1465,Council expenditure,06/01/2016,ELMBRIDGE STAFFING,AMAZON EU,6,EQUIPMENT,DIRECT MARKETING-OTHER DIRECT MARKETERS/NOT ELSEW.,5969
29/04/2016,http://opendatacommunities.org/id/county-council/surrey,Surrey,http://id.esd.org.uk/service/1465,Council expenditure,06/01/2016,CRANLEIGH YC,WAITROSE 216,2.58,REFRESHMENT COSTS,"GROCERY STORES, SUPERMARKETS",5411
29/04/2016,http://opendatacommunities.org/id/county-council/surrey,Surrey,http://id.esd.org.uk/service/1465,Council expenditure,06/01/2016,NORTH EAST AREA TEAM,BUDGENS SHEPPERTON,5.45,EDUC VISITS/HOLS/CAMPS/TOYS,"MISC FOOD STORE-CONVENIENCE,MRKT,SPLTY,VENDNG MACS",5499
29/04/2016,http://opendatacommunities.org/id/county-council/surrey,Surrey,http://id.esd.org.uk/service/1465,Council expenditure,06/01/2016,NE EDUCATION WELFARE OFFICERS,AMAZON UK MARKETPLACE,15,EQUIPMENT,BOOK STORES,5942
29/04/2016,http://opendatacommunities.org/id/county-council/surrey,Surrey,http://id.esd.org.uk/service/1465,Council expenditure,07/01/2016,SOLD ESTATES MANAGEMENT,C BREWER & SONS,40.19,DAY TO DAY MAINTENANCE,"BUILDING MATERIALS, LUMBER STORES",5211
29/04/2016,http://opendatacommunities.org/id/county-council/surrey,Surrey,http://id.esd.org.uk/service/1465,Council expenditure,07/01/2016,CLAYGATE YC,HKS HALFWAY,3.49,PURCHASE OF FOOD (RAW MATERIALS),SERVICE STATIONS WITH OR WITHOUT ANCILLARY SERVICE,5541
29/04/2016,http://opendatacommunities.org/id/county-council/surrey,Surrey,http://id.esd.org.uk/service/1465,Council expenditure,07/01/2016,COUNTY HALL,TVLICENSING.CO.UK,145.5,LICENCE FEES,"CONSULTING, MANAGEMENT, AND PUBLIC RELATIONS SVCS",7392
29/04/2016,http://opendatacommunities.org/id/county-council/surrey,Surrey,http://id.esd.org.uk/service/1465,Council expenditure,07/01/2016,DOWNLANDS COUNTRYSIDE PROJECT,WWW.GOOUTDOORS.CO.UK,90,"CLOTHING, UNIFORM AND LAUNDRY","SPORTS APPAREL, RIDING APPAREL STORES",5655
29/04/2016,http://opendatacommunities.org/id/county-council/surrey,Surrey,http://id.esd.org.uk/service/1465,Council expenditure,07/01/2016,HR - STRATEGIC SUPPORT,AMAZON EU,174.48,COMPUTER CONSUMABLES,DIRECT MARKETING-OTHER DIRECT MARKETERS/NOT ELSEW.,5969
29/04/2016,http://opendatacommunities.org/id/county-council/surrey,Surrey,http://id.esd.org.uk/service/1465,Council expenditure,07/01/2016,RUTH HOUSE,ARGOS LTD,0.98,EQUIPMENT,DISCOUNT STORES,5310
29/04/2016,http://opendatacommunities.org/id/county-council/surrey,Surrey,http://id.esd.org.uk/service/1465,Council expenditure,07/01/2016,NORTH EAST AREA TEAM,TOP GOLF LTD,38.5,EDUC VISITS/HOLS/CAMPS/TOYS,"CLUBS-CNTRY,MBRSHIP(ATHLET,REC,SPRTS,PRIVATE GOLF",7997
29/04/2016,http://opendatacommunities.org/id/county-council/surrey,Surrey,http://id.esd.org.uk/service/1465,Council expenditure,07/01/2016,TRANSPORT,SCREWFIX DIRECT,54.99,DAY TO DAY MAINTENANCE,"BUILDING MATERIALS, LUMBER STORES",5211
29/04/2016,http://opendatacommunities.org/id/county-council/surrey,Surrey,http://id.esd.org.uk/service/1465,Council expenditure,07/01/2016,RUTH HOUSE,ARGOS LTD,89.93,EQUIPMENT,DISCOUNT STORES,5310
29/04/2016,http://opendatacommunities.org/id/county-council/surrey,Surrey,http://id.esd.org.uk/service/1465,Council expenditure,07/01/2016,SERVICE DELIVERY SENIOR MANAGEMENT,AMAZON UK MARKETPLACE,2.56,EQUIPMENT,BOOK STORES,5942
29/04/2016,http://opendatacommunities.org/id/county-council/surrey,Surrey,http://id.esd.org.uk/service/1465,Council expenditure,07/01/2016,RUTH HOUSE,WH SMITH,11.96,EDUC VISITS/HOLS/CAMPS/TOYS,NEWS DEALERS AND NEWSSTANDS,5994
29/04/2016,http://opendatacommunities.org/id/county-council/surrey,Surrey,http://id.esd.org.uk/service/1465,Council expenditure,07/01/2016,LOCAL DELIVERY GROUP,AMAZON EU,28.44,EQUIPMENT,DIRECT MARKETING-OTHER DIRECT MARKETERS/NOT ELSEW.,5969
29/04/2016,http://opendatacommunities.org/id/county-council/surrey,Surrey,http://id.esd.org.uk/service/1465,Council expenditure,07/01/2016,STANWELL YOUTH CLUB,TESCO STORES-2047,9.98,PURCHASE OF FOOD (RAW MATERIALS),"GROCERY STORES, SUPERMARKETS",5411
29/04/2016,http://opendatacommunities.org/id/county-council/surrey,Surrey,http://id.esd.org.uk/service/1465,Council expenditure,07/01/2016,SERVICE DELIVERY MANAGER,B I F M,238,SUBSCRIPTIONS,"ASSOCIATIONS-CIVIC, SOCIAL, AND FRATERNAL",8641
29/04/2016,http://opendatacommunities.org/id/county-council/surrey,Surrey,http://id.esd.org.uk/service/1465,Council expenditure,07/01/2016,STANWELL YOUTH CLUB,TESCO STORE 2047,4.04,PURCHASE OF FOOD (RAW MATERIALS),"GROCERY STORES, SUPERMARKETS",5411
29/04/2016,http://opendatacommunities.org/id/county-council/surrey,Surrey,http://id.esd.org.uk/service/1465,Council expenditure,07/01/2016,ROW AREA3 MV EPS ELM                    ,FORESTRY COMMISS - LYN,480,LICENCE FEES,GOVERNMENT SERVICES-NOT ELSEWHERE CLASSIFIED,9399
29/04/2016,http://opendatacommunities.org/id/county-council/surrey,Surrey,http://id.esd.org.uk/service/1465,Council expenditure,07/01/2016,PE/CDT MAINTENANCE OVERHEADS,SCREWFIX DIRECT,199.99,EQUIPMENT,"BUILDING MATERIALS, LUMBER STORES",5211
29/04/2016,http://opendatacommunities.org/id/county-council/surrey,Surrey,http://id.esd.org.uk/service/1465,Council expenditure,07/01/2016,ELMBRIDGE STAFFING,AMAZON UK MARKETPLACE,40.38,EQUIPMENT,BOOK STORES,5942
29/04/2016,http://opendatacommunities.org/id/county-council/surrey,Surrey,http://id.esd.org.uk/service/1465,Council expenditure,07/01/2016,ACL CENTRAL EXPENDITURE,AMAZON UK MARKETPLACE,20.14,EQUIPMENT,BOOK STORES,5942
29/04/2016,http://opendatacommunities.org/id/county-council/surrey,Surrey,http://id.esd.org.uk/service/1465,Council expenditure,07/01/2016,KARIBU COMMUNITY HOME,NOTONTHEHIGHSTREETUK,35.8,EQUIPMENT,MISCELLANEOUS AND SPECIALTY RETAIL STORES,5999
29/04/2016,http://opendatacommunities.org/id/county-council/surrey,Surrey,http://id.esd.org.uk/service/1465,Council expenditure,07/01/2016,TARGETED INTERVENTION,MCDONALDS,10.03,EDUC VISITS/HOLS/CAMPS/TOYS,FAST FOOD RESTAURANTS,5814
29/04/2016,http://opendatacommunities.org/id/county-council/surrey,Surrey,http://id.esd.org.uk/service/1465,Council expenditure,07/01/2016,HERITAGE PUBLIC SERVICE,W M MORRISONS,72.63,PURCHASE OF FOOD (RAW MATERIALS),"GROCERY STORES, SUPERMARKETS",5411
29/04/2016,http://opendatacommunities.org/id/county-council/surrey,Surrey,http://id.esd.org.uk/service/1465,Council expenditure,07/01/2016,SOLD ESTATES MANAGEMENT,SCREWFIX DIRECT,14.98,DAY TO DAY MAINTENANCE,"BUILDING MATERIALS, LUMBER STORES",5211
29/04/2016,http://opendatacommunities.org/id/county-council/surrey,Surrey,http://id.esd.org.uk/service/1465,Council expenditure,07/01/2016,TRANSPORT,VINES OF REDHILL,96.92,VEHICLE REPAIRS AND MAINTENANCE,AUTOMOTIVE SERVICE SHOPS,7538
29/04/2016,http://opendatacommunities.org/id/county-council/surrey,Surrey,http://id.esd.org.uk/service/1465,Council expenditure,07/01/2016,ORDER TO CASH TEAMS,WWW.GOV.UK,10,FEES,PROFESSIONAL SERVICES-NOT ELSEWHERE CLASSIFIED,8999
29/04/2016,http://opendatacommunities.org/id/county-council/surrey,Surrey,http://id.esd.org.uk/service/1465,Council expenditure,07/01/2016,MALLOW CRESCENT,SAINSBURYS SACAT 0652,9,EQUIPMENT,"GROCERY STORES, SUPERMARKETS",5411
29/04/2016,http://opendatacommunities.org/id/county-council/surrey,Surrey,http://id.esd.org.uk/service/1465,Council expenditure,07/01/2016,MALLOW CRESCENT,SAINSBURYS SACAT 0652,0.45,PURCHASE OF FOOD (RAW MATERIALS),"GROCERY STORES, SUPERMARKETS",5411
29/04/2016,http://opendatacommunities.org/id/county-council/surrey,Surrey,http://id.esd.org.uk/service/1465,Council expenditure,07/01/2016,TARGETED INTERVENTION,CINEWORLD CRA CP,9.7,EDUC VISITS/HOLS/CAMPS/TOYS,"THEATRICAL PRODUCERS(EXCL MOTION PIX),TICKET AGNCY",7922
29/04/2016,http://opendatacommunities.org/id/county-council/surrey,Surrey,http://id.esd.org.uk/service/1465,Council expenditure,07/01/2016,COUNTY HALL,ALL RIGHT NOW LTD,346,COMPUTER CONSUMABLES,STATIONERY/OFFICE SUPPLIES/PRINTING & WRITING PAP.,5111
29/04/2016,http://opendatacommunities.org/id/county-council/surrey,Surrey,http://id.esd.org.uk/service/1465,Council expenditure,07/01/2016,BURBANK COMMUNITY HOME,AMAZON UK MARKETPLACE,34.99,EQUIPMENT,BOOK STORES,5942
29/04/2016,http://opendatacommunities.org/id/county-council/surrey,Surrey,http://id.esd.org.uk/service/1465,Council expenditure,07/01/2016,IMT CRITICAL ENVIRONMENTS,AMAZON UK MARKETPLACE,5.98,COMPUTER HARDWARE,BOOK STORES,5942
29/04/2016,http://opendatacommunities.org/id/county-council/surrey,Surrey,http://id.esd.org.uk/service/1465,Council expenditure,07/01/2016,ACL CENTRAL EXPENDITURE,AMAZON UK MARKETPLACE,100.61,EQUIPMENT,BOOK STORES,5942
29/04/2016,http://opendatacommunities.org/id/county-council/surrey,Surrey,http://id.esd.org.uk/service/1465,Council expenditure,07/01/2016,ACL CENTRAL EXPENDITURE,AMAZON UK MARKETPLACE,100.63,EQUIPMENT,BOOK STORES,5942
29/04/2016,http://opendatacommunities.org/id/county-council/surrey,Surrey,http://id.esd.org.uk/service/1465,Council expenditure,07/01/2016,TRANSPORT,AMAZON EU,22.65,FURNITURE,DIRECT MARKETING-OTHER DIRECT MARKETERS/NOT ELSEW.,5969
29/04/2016,http://opendatacommunities.org/id/county-council/surrey,Surrey,http://id.esd.org.uk/service/1465,Council expenditure,07/01/2016,PROPERTY BUSINESS & PERFORMANCE TEAM,FARNHAM HOG'S BACK,592.5,VENUE COSTS (INCLUDING HIRE OF ROOMS),"LODGING-HOTELS,MOTELS,RESORTS-NOT CLASSIFIED",7011
29/04/2016,http://opendatacommunities.org/id/county-council/surrey,Surrey,http://id.esd.org.uk/service/1465,Council expenditure,07/01/2016,TRANSPORT,AMAZON EU,19.72,FURNITURE,DIRECT MARKETING-OTHER DIRECT MARKETERS/NOT ELSEW.,5969
29/04/2016,http://opendatacommunities.org/id/county-council/surrey,Surrey,http://id.esd.org.uk/service/1465,Council expenditure,07/01/2016,ARUNDEL,TESCO STORES 5999,90.89,REFRESHMENT COSTS,"GROCERY STORES, SUPERMARKETS",5411
29/04/2016,http://opendatacommunities.org/id/county-council/surrey,Surrey,http://id.esd.org.uk/service/1465,Council expenditure,07/01/2016,AEO MANAGEMENT TEAM (NW),AMAZON EU,35.95,EQUIPMENT,DIRECT MARKETING-OTHER DIRECT MARKETERS/NOT ELSEW.,5969
29/04/2016,http://opendatacommunities.org/id/county-council/surrey,Surrey,http://id.esd.org.uk/service/1465,Council expenditure,07/01/2016,CHEYNE WALK COMMUNITY HOME,IKEA,-35,FURNITURE,MISCELLANEOUS HOUSE FURNISHING SPECIALTY SHOPS,5719
29/04/2016,http://opendatacommunities.org/id/county-council/surrey,Surrey,http://id.esd.org.uk/service/1465,Council expenditure,07/01/2016,WOODLANDS COMMUNITY HOME,AMAZON UK MARKETPLACE,18.99,STATIONERY,BOOK STORES,5942
29/04/2016,http://opendatacommunities.org/id/county-council/surrey,Surrey,http://id.esd.org.uk/service/1465,Council expenditure,07/01/2016,CHEYNE WALK COMMUNITY HOME,TESCO STORE 2560,9.1,PURCHASE OF FOOD (RAW MATERIALS),"GROCERY STORES, SUPERMARKETS",5411
29/04/2016,http://opendatacommunities.org/id/county-council/surrey,Surrey,http://id.esd.org.uk/service/1465,Council expenditure,07/01/2016,BUSINESS UNIT,EB SURREY COUNTRYSIDE,54,SUBSISTENCE AND CONFERENCE EXPENSES,BUSINESS SERVICES-NOT ELSEWHERE CLASSIFIED,7399
29/04/2016,http://opendatacommunities.org/id/county-council/surrey,Surrey,http://id.esd.org.uk/service/1465,Council expenditure,07/01/2016,ACL CENTRAL EXPENDITURE,TESCO STORE 3220,119.69,PURCHASE OF FOOD (RAW MATERIALS),"GROCERY STORES, SUPERMARKETS",5411
29/04/2016,http://opendatacommunities.org/id/county-council/surrey,Surrey,http://id.esd.org.uk/service/1465,Council expenditure,07/01/2016,NORTH EAST AREA TEAM,VUE NCS CITB HS&E TEST,19.5,EDUC VISITS/HOLS/CAMPS/TOYS,SCHOOLS & EDUCATIONAL SVC-NOT ELSEWHERE CLASSIFIED,8299
29/04/2016,http://opendatacommunities.org/id/county-council/surrey,Surrey,http://id.esd.org.uk/service/1465,Council expenditure,07/01/2016,ROW VOLUNTEERS EAST                     ,CO-OP GROUP FOOD,9.71,REFRESHMENT COSTS,"GROCERY STORES, SUPERMARKETS",5411
29/04/2016,http://opendatacommunities.org/id/county-council/surrey,Surrey,http://id.esd.org.uk/service/1465,Council expenditure,07/01/2016,HILLSIDE,SAINSBURYS 0675,26.45,PURCHASE OF FOOD (RAW MATERIALS),"GROCERY STORES, SUPERMARKETS",5411
29/04/2016,http://opendatacommunities.org/id/county-council/surrey,Surrey,http://id.esd.org.uk/service/1465,Council expenditure,07/01/2016,TRANSPORT,SCREWFIX DIRECT LT,11.98,DAY TO DAY MAINTENANCE,"BUILDING MATERIALS, LUMBER STORES",5211
29/04/2016,http://opendatacommunities.org/id/county-council/surrey,Surrey,http://id.esd.org.uk/service/1465,Council expenditure,07/01/2016,DEMOCRATIC SERVICES TEAM,AMAZON UK MARKETPLACE,31.25,CLEANING AND DOMESTIC SUPPLIES,BOOK STORES,5942
29/04/2016,http://opendatacommunities.org/id/county-council/surrey,Surrey,http://id.esd.org.uk/service/1465,Council expenditure,07/01/2016,ELMBRIDGE STAFFING,AMAZON UK MARKETPLACE,46.58,EQUIPMENT,BOOK STORES,5942
29/04/2016,http://opendatacommunities.org/id/county-council/surrey,Surrey,http://id.esd.org.uk/service/1465,Council expenditure,07/01/2016,WORKPLACE COMMERCIAL TEAM,IMMEDIATE MEDIA CO,952.8,PUBLICITY,"BOOKS,PERIODICALS AND NEWSPAPERS",5192
29/04/2016,http://opendatacommunities.org/id/county-council/surrey,Surrey,http://id.esd.org.uk/service/1465,Council expenditure,07/01/2016,CHILDMINDING,PAYPAL  AMPULLA LTD,36.99,EDUC VISITS/HOLS/CAMPS/TOYS,CHEMICALS/ALLIED PRODUCTS NOT ELSEWHERE CLASSIFIED,5169
29/04/2016,http://opendatacommunities.org/id/county-council/surrey,Surrey,http://id.esd.org.uk/service/1465,Council expenditure,07/01/2016,THE BRIDGE YC,TESCO STORES 2812,16.73,PURCHASE OF FOOD (RAW MATERIALS),"GROCERY STORES, SUPERMARKETS",5411
29/04/2016,http://opendatacommunities.org/id/county-council/surrey,Surrey,http://id.esd.org.uk/service/1465,Council expenditure,07/01/2016,ROAD SAFETY TEAM,AMAZON UK MARKETPLACE,9.18,EQUIPMENT,BOOK STORES,5942
29/04/2016,http://opendatacommunities.org/id/county-council/surrey,Surrey,http://id.esd.org.uk/service/1465,Council expenditure,07/01/2016,TARGETED INTERVENTION,THE BEANSHACK,6,EDUC VISITS/HOLS/CAMPS/TOYS,FAST FOOD RESTAURANTS,5814
29/04/2016,http://opendatacommunities.org/id/county-council/surrey,Surrey,http://id.esd.org.uk/service/1465,Council expenditure,07/01/2016,CHEYNE WALK COMMUNITY HOME,STARBUCKS,6.1,REFRESHMENT COSTS,FAST FOOD RESTAURANTS,5814
29/04/2016,http://opendatacommunities.org/id/county-council/surrey,Surrey,http://id.esd.org.uk/service/1465,Council expenditure,07/01/2016,TARGETED INTERVENTION,WOKING SNOOKER CENTRE,10.75,EDUC VISITS/HOLS/CAMPS/TOYS,RECREATIONAL AND SPORTING CAMPS,7032
29/04/2016,http://opendatacommunities.org/id/county-council/surrey,Surrey,http://id.esd.org.uk/service/1465,Council expenditure,07/01/2016,IMT CRITICAL ENVIRONMENTS,WWW TONER24 CO UK,26.35,EQUIPMENT,"OFFICE, SCHOOL SUPPLY, AND STATIONERY STORES",5943
29/04/2016,http://opendatacommunities.org/id/county-council/surrey,Surrey,http://id.esd.org.uk/service/1465,Council expenditure,07/01/2016,SURREY LOCAL RESILIENCE FORUM EMT,PRISM ENCLOSURES LTD,767.48,COMPUTER HARDWARE,"COMMERCIAL EQUIPMENT, NOT ELSEWHERE CLASSIFIED",5046
29/04/2016,http://opendatacommunities.org/id/county-council/surrey,Surrey,http://id.esd.org.uk/service/1465,Council expenditure,07/01/2016,TRAINING COMMUNICATIONS,CHARTERED INS OF,690,TRAINING EXPENSES EXTERNAL GENERAL,MISCELLANEOUS GENERAL MERCHANDISE,5399
29/04/2016,http://opendatacommunities.org/id/county-council/surrey,Surrey,http://id.esd.org.uk/service/1465,Council expenditure,07/01/2016,CHEYNE WALK COMMUNITY HOME,IKEA,85.15,EQUIPMENT,MISCELLANEOUS HOUSE FURNISHING SPECIALTY SHOPS,5719
29/04/2016,http://opendatacommunities.org/id/county-council/surrey,Surrey,http://id.esd.org.uk/service/1465,Council expenditure,07/01/2016,PLD TRANSITION CARE,TRAVELODGE,946.5,OTHER COMMUNITY CARE VOL,TRAVELODGE,3615
29/04/2016,http://opendatacommunities.org/id/county-council/surrey,Surrey,http://id.esd.org.uk/service/1465,Council expenditure,07/01/2016,MALLOW CRESCENT,SAINSBURYS SACAT 0652,4.99,EQUIPMENT,"GROCERY STORES, SUPERMARKETS",5411
29/04/2016,http://opendatacommunities.org/id/county-council/surrey,Surrey,http://id.esd.org.uk/service/1465,Council expenditure,07/01/2016,MALLOW CRESCENT,SAINSBURYS 0652,-4.99,PURCHASE OF FOOD (RAW MATERIALS),"GROCERY STORES, SUPERMARKETS",5411
29/04/2016,http://opendatacommunities.org/id/county-council/surrey,Surrey,http://id.esd.org.uk/service/1465,Council expenditure,07/01/2016,HOPE SERVICE - EAST,CHESSINGTON GARDEN CNT,13.75,REFRESHMENT COSTS,LAWN AND GARDEN SUPPLY STORES,5261
29/04/2016,http://opendatacommunities.org/id/county-council/surrey,Surrey,http://id.esd.org.uk/service/1465,Council expenditure,07/01/2016,TARGETED INTERVENTION,P & H MOTORCYCLES,50,EDUC VISITS/HOLS/CAMPS/TOYS,MOTORCYCLE SHOPS AND DEALERS,5571
29/04/2016,http://opendatacommunities.org/id/county-council/surrey,Surrey,http://id.esd.org.uk/service/1465,Council expenditure,07/01/2016,NE CARE - LAC,LEBARA,20,TELECOMMUNICATION CHARGES,TELECOM INCL PREPAID/RECURRING PHONE SVCS,4814
29/04/2016,http://opendatacommunities.org/id/county-council/surrey,Surrey,http://id.esd.org.uk/service/1465,Council expenditure,07/01/2016,SW SECTION 17 CARE,TRAVELODGE,865,CHILDREN ACT SEC 17 PAYMENTS,TRAVELODGE,3615
29/04/2016,http://opendatacommunities.org/id/county-council/surrey,Surrey,http://id.esd.org.uk/service/1465,Council expenditure,07/01/2016,WOODLANDS COMMUNITY HOME,SAINSBURYS 0686,11,EQUIPMENT,"GROCERY STORES, SUPERMARKETS",5411
29/04/2016,http://opendatacommunities.org/id/county-council/surrey,Surrey,http://id.esd.org.uk/service/1465,Council expenditure,07/01/2016,WOODLANDS COMMUNITY HOME,SAINSBURYS 0686,23.8,PURCHASE OF FOOD (RAW MATERIALS),"GROCERY STORES, SUPERMARKETS",5411
29/04/2016,http://opendatacommunities.org/id/county-council/surrey,Surrey,http://id.esd.org.uk/service/1465,Council expenditure,07/01/2016,WOODLANDS COMMUNITY HOME,SAINSBURYS 0686,179.59,PURCHASE OF FOOD (RAW MATERIALS),"GROCERY STORES, SUPERMARKETS",5411
29/04/2016,http://opendatacommunities.org/id/county-council/surrey,Surrey,http://id.esd.org.uk/service/1465,Council expenditure,07/01/2016,NW CARE - CP & COURT LAC,D & S APPLIANCES,417,FURNITURE,HOUSEHOLD APPLIANCE STORES,5722
29/04/2016,http://opendatacommunities.org/id/county-council/surrey,Surrey,http://id.esd.org.uk/service/1465,Council expenditure,07/01/2016,ASSET PLANNING GROUP,AMAZON EU,39.96,EQUIPMENT,DIRECT MARKETING-OTHER DIRECT MARKETERS/NOT ELSEW.,5969
29/04/2016,http://opendatacommunities.org/id/county-council/surrey,Surrey,http://id.esd.org.uk/service/1465,Council expenditure,07/01/2016,PROGRAMME TEAM,GOVKNOW EVENTS LIMITED,207,TRAINING EXPENSES EXTERNAL GENERAL,BUSINESS SERVICES-NOT ELSEWHERE CLASSIFIED,7399
29/04/2016,http://opendatacommunities.org/id/county-council/surrey,Surrey,http://id.esd.org.uk/service/1465,Council expenditure,07/01/2016,HOPE SERVICE - EAST,CO-OP GROUP FOOD,2.15,PURCHASE OF FOOD (RAW MATERIALS),"GROCERY STORES, SUPERMARKETS",5411
29/04/2016,http://opendatacommunities.org/id/county-council/surrey,Surrey,http://id.esd.org.uk/service/1465,Council expenditure,07/01/2016,HILLSIDE,SAINSBURYS 0675,53.66,PURCHASE OF FOOD (RAW MATERIALS),"GROCERY STORES, SUPERMARKETS",5411
29/04/2016,http://opendatacommunities.org/id/county-council/surrey,Surrey,http://id.esd.org.uk/service/1465,Council expenditure,07/01/2016,HILLSIDE,SAINSBURYS 0675,4.6,PURCHASE OF FOOD (RAW MATERIALS),"GROCERY STORES, SUPERMARKETS",5411
29/04/2016,http://opendatacommunities.org/id/county-council/surrey,Surrey,http://id.esd.org.uk/service/1465,Council expenditure,07/01/2016,COUNTY HALL,B I F M,148,SUBSCRIPTIONS,"ASSOCIATIONS-CIVIC, SOCIAL, AND FRATERNAL",8641
29/04/2016,http://opendatacommunities.org/id/county-council/surrey,Surrey,http://id.esd.org.uk/service/1465,Council expenditure,07/01/2016,NW FOSTERING CARE,G & S BY VALENTINO,154.31,CHILDREN ACT SEC 17 PAYMENTS,WOMEN'S ACCESSORY AND SPECIALTY STORES,5631
29/04/2016,http://opendatacommunities.org/id/county-council/surrey,Surrey,http://id.esd.org.uk/service/1465,Council expenditure,07/01/2016,ROW VOLUNTEERS WEST                     ,WICKES,40.17,FEES,"BUILDING MATERIALS, LUMBER STORES",5211
29/04/2016,http://opendatacommunities.org/id/county-council/surrey,Surrey,http://id.esd.org.uk/service/1465,Council expenditure,07/01/2016,BUILDING WORLDCLASS WORKFORCE,AMAZON UK MARKETPLACE,-36.58,EQUIPMENT,MISCELLANEOUS AND SPECIALTY RETAIL STORES,5999
29/04/2016,http://opendatacommunities.org/id/county-council/surrey,Surrey,http://id.esd.org.uk/service/1465,Council expenditure,07/01/2016,CHILDCARE TRAINING & DEVELOPMENT,AMAZON UK MARKETPLACE,130.9,BOOKS,BOOK STORES,5942
29/04/2016,http://opendatacommunities.org/id/county-council/surrey,Surrey,http://id.esd.org.uk/service/1465,Council expenditure,08/01/2016,NW CARE - LAC,GRO HM PASSPORT OFFICE,-18.5,FEES,GOVERNMENT SERVICES-NOT ELSEWHERE CLASSIFIED,9399
29/04/2016,http://opendatacommunities.org/id/county-council/surrey,Surrey,http://id.esd.org.uk/service/1465,Council expenditure,08/01/2016,TS SERVICE MANAGEMENT,WWW.CELLPACKSOLUTIONS.,106.56,EQUIPMENT,INDUSTRIAL SUPPLIES NOT ELSEWHERE CLASSIFIED,5085
29/04/2016,http://opendatacommunities.org/id/county-council/surrey,Surrey,http://id.esd.org.uk/service/1465,Council expenditure,08/01/2016,E&I - COUNTRYSIDE                       ,PAYPAL  HOOTSUITE,9.59,SUBSCRIPTIONS,COMPUTER NETWORK/INFORMATION SERVICES,4816
29/04/2016,http://opendatacommunities.org/id/county-council/surrey,Surrey,http://id.esd.org.uk/service/1465,Council expenditure,08/01/2016,TRANSPORT,SJS SUPPLIES,552,OPERATIONAL FIRE EQUIPMENT,"COLLEGES, UNIV, PRO SCHOOLS, JUNIOR COLLEGES",8220
29/04/2016,http://opendatacommunities.org/id/county-council/surrey,Surrey,http://id.esd.org.uk/service/1465,Council expenditure,08/01/2016,YSS YOUTH CENTRE IMPROVEMENTS,AMAZON UK MARKETPLACE,9.47,EQUIPMENT,BOOK STORES,5942
29/04/2016,http://opendatacommunities.org/id/county-council/surrey,Surrey,http://id.esd.org.uk/service/1465,Council expenditure,08/01/2016,SW CARE - NON-LAC CP & COURT,JOHN GUNNER & CO LTD,246,OTHER COMMUNITY CARE VOL,MISCELLANEOUS AND SPECIALTY RETAIL STORES,5999
29/04/2016,http://opendatacommunities.org/id/county-council/surrey,Surrey,http://id.esd.org.uk/service/1465,Council expenditure,08/01/2016,PROPERTY OPERATIONS TEAM,TRAVIS PERKINS,198.59,PURCHASE OF BUILDING MATERIALS,"BUILDING MATERIALS, LUMBER STORES",5211
29/04/2016,http://opendatacommunities.org/id/county-council/surrey,Surrey,http://id.esd.org.uk/service/1465,Council expenditure,08/01/2016,HILLSIDE,SAINSBURYS 0675,67.5,PURCHASE OF FOOD (RAW MATERIALS),"GROCERY STORES, SUPERMARKETS",5411
29/04/2016,http://opendatacommunities.org/id/county-council/surrey,Surrey,http://id.esd.org.uk/service/1465,Council expenditure,08/01/2016,HILLSIDE,SAINSBURYS 0675,4,PURCHASE OF FOOD (RAW MATERIALS),"GROCERY STORES, SUPERMARKETS",5411
29/04/2016,http://opendatacommunities.org/id/county-council/surrey,Surrey,http://id.esd.org.uk/service/1465,Council expenditure,08/01/2016,EPSOM LIBRARY SHOP,PP PAPERBIRD,115.84,ITEMS PURCHASED FOR RE-SALE,"OFFICE, SCHOOL SUPPLY, AND STATIONERY STORES",5943
29/04/2016,http://opendatacommunities.org/id/county-council/surrey,Surrey,http://id.esd.org.uk/service/1465,Council expenditure,08/01/2016,TRANSPORT,CURRYS,79.99,EQUIPMENT,ELECTRONIC SALES,5732
29/04/2016,http://opendatacommunities.org/id/county-council/surrey,Surrey,http://id.esd.org.uk/service/1465,Council expenditure,08/01/2016,CHIEF PROPERTY OFFICER,AMAZON UK MARKETPLACE,82.88,EQUIPMENT,BOOK STORES,5942
29/04/2016,http://opendatacommunities.org/id/county-council/surrey,Surrey,http://id.esd.org.uk/service/1465,Council expenditure,08/01/2016,TARGETED INTERVENTION,VUE BSL LTD,11.99,EDUC VISITS/HOLS/CAMPS/TOYS,MOTION PICTURE THEATERS,7832
29/04/2016,http://opendatacommunities.org/id/county-council/surrey,Surrey,http://id.esd.org.uk/service/1465,Council expenditure,08/01/2016,DEVELOPMENT TEAM,AMAZON UK MARKETPLACE,61.89,STATIONERY,BOOK STORES,5942
29/04/2016,http://opendatacommunities.org/id/county-council/surrey,Surrey,http://id.esd.org.uk/service/1465,Council expenditure,08/01/2016,HOPE SERVICE - EAST,TESCO PFS 3381,1,PURCHASE OF FOOD (RAW MATERIALS),SERVICE STATIONS WITH OR WITHOUT ANCILLARY SERVICE,5541
29/04/2016,http://opendatacommunities.org/id/county-council/surrey,Surrey,http://id.esd.org.uk/service/1465,Council expenditure,08/01/2016,TARGETED INTERVENTION,J D SPORTS   280,20.05,EXAMINATION FEES,SPORTING GOODS STORES,5941
29/04/2016,http://opendatacommunities.org/id/county-council/surrey,Surrey,http://id.esd.org.uk/service/1465,Council expenditure,08/01/2016,TARGETED INTERVENTION,VUE BSL LTD,35.16,EDUC VISITS/HOLS/CAMPS/TOYS,MOTION PICTURE THEATERS,7832
29/04/2016,http://opendatacommunities.org/id/county-council/surrey,Surrey,http://id.esd.org.uk/service/1465,Council expenditure,08/01/2016,HR - BUSINESS SERVICES AND TRAINING,AMAZON EU,25.04,STATIONERY,DIRECT MARKETING-OTHER DIRECT MARKETERS/NOT ELSEW.,5969
29/04/2016,http://opendatacommunities.org/id/county-council/surrey,Surrey,http://id.esd.org.uk/service/1465,Council expenditure,08/01/2016,DOWNLANDS COUNTRYSIDE PROJECT,TESCO STORES,15.11,REFRESHMENT COSTS,"GROCERY STORES, SUPERMARKETS",5411
29/04/2016,http://opendatacommunities.org/id/county-council/surrey,Surrey,http://id.esd.org.uk/service/1465,Council expenditure,08/01/2016,ARUNDEL,TESCO STORES 5999,107.45,REFRESHMENT COSTS,"GROCERY STORES, SUPERMARKETS",5411
29/04/2016,http://opendatacommunities.org/id/county-council/surrey,Surrey,http://id.esd.org.uk/service/1465,Council expenditure,08/01/2016,NE EDUCATION WELFARE OFFICERS,AMAZON EU,11.87,EQUIPMENT,DIRECT MARKETING-OTHER DIRECT MARKETERS/NOT ELSEW.,5969
29/04/2016,http://opendatacommunities.org/id/county-council/surrey,Surrey,http://id.esd.org.uk/service/1465,Council expenditure,08/01/2016,HOPE SERVICE - WEST,SAINSBURYS SACAT(4409),8.39,NEWSPAPER AND PERIODICALS,"GROCERY STORES, SUPERMARKETS",5411
29/04/2016,http://opendatacommunities.org/id/county-council/surrey,Surrey,http://id.esd.org.uk/service/1465,Council expenditure,08/01/2016,TRAINING AND DEVELOPMENT,VARIDESK - GBP,335,EQUIPMENT,MISCELLANEOUS GENERAL MERCHANDISE,5399
29/04/2016,http://opendatacommunities.org/id/county-council/surrey,Surrey,http://id.esd.org.uk/service/1465,Council expenditure,08/01/2016,LIBERTAS COMMUNITY HOME,MITIE HEALTHCARE,4.59,REFRESHMENT COSTS,BUSINESS SERVICES-NOT ELSEWHERE CLASSIFIED,7399
29/04/2016,http://opendatacommunities.org/id/county-council/surrey,Surrey,http://id.esd.org.uk/service/1465,Council expenditure,08/01/2016,HOPE SERVICE - EAST,TESCO STORES 6320,1.6,PURCHASE OF FOOD (RAW MATERIALS),"GROCERY STORES, SUPERMARKETS",5411
29/04/2016,http://opendatacommunities.org/id/county-council/surrey,Surrey,http://id.esd.org.uk/service/1465,Council expenditure,08/01/2016,SERVICE DELIVERY SENIOR MANAGEMENT,AMAZON UK MARKETPLACE,30.94,EQUIPMENT,BOOK STORES,5942
29/04/2016,http://opendatacommunities.org/id/county-council/surrey,Surrey,http://id.esd.org.uk/service/1465,Council expenditure,08/01/2016,TRAINING AND DEVELOPMENT,PEPPERS,108,REFRESHMENT COSTS,CATERERS,5811
29/04/2016,http://opendatacommunities.org/id/county-council/surrey,Surrey,http://id.esd.org.uk/service/1465,Council expenditure,08/01/2016,CONSERVATION,AMAZON UK MARKETPLACE,17.49,EQUIPMENT,BOOK STORES,5942
29/04/2016,http://opendatacommunities.org/id/county-council/surrey,Surrey,http://id.esd.org.uk/service/1465,Council expenditure,08/01/2016,TRANSPORT,CPC,16.33,COMPUTER CONSUMABLES,ELECTRICAL PARTS AND EQUIPMENT,5065
29/04/2016,http://opendatacommunities.org/id/county-council/surrey,Surrey,http://id.esd.org.uk/service/1465,Council expenditure,08/01/2016,LIBERTAS COMMUNITY HOME,SAINSBURYS 0652,12.05,PURCHASE OF FOOD (RAW MATERIALS),"GROCERY STORES, SUPERMARKETS",5411
29/04/2016,http://opendatacommunities.org/id/county-council/surrey,Surrey,http://id.esd.org.uk/service/1465,Council expenditure,08/01/2016,LIBERTAS COMMUNITY HOME,SAINSBURYS 0652,9.5,EQUIPMENT,"GROCERY STORES, SUPERMARKETS",5411
29/04/2016,http://opendatacommunities.org/id/county-council/surrey,Surrey,http://id.esd.org.uk/service/1465,Council expenditure,08/01/2016,LIBERTAS COMMUNITY HOME,SAINSBURYS 0652,135.76,PURCHASE OF FOOD (RAW MATERIALS),"GROCERY STORES, SUPERMARKETS",5411
29/04/2016,http://opendatacommunities.org/id/county-council/surrey,Surrey,http://id.esd.org.uk/service/1465,Council expenditure,08/01/2016,NE EDUCATION WELFARE OFFICERS,AMAZON EU,32.98,EQUIPMENT,DIRECT MARKETING-OTHER DIRECT MARKETERS/NOT ELSEW.,5969
29/04/2016,http://opendatacommunities.org/id/county-council/surrey,Surrey,http://id.esd.org.uk/service/1465,Council expenditure,08/01/2016,MALLOW CRESCENT,SAINSBURYS SACAT 0661,5,EQUIPMENT,"GROCERY STORES, SUPERMARKETS",5411
29/04/2016,http://opendatacommunities.org/id/county-council/surrey,Surrey,http://id.esd.org.uk/service/1465,Council expenditure,08/01/2016,HEAD OF SERVICES FOR YOUNG PEOPLE,EASTMIDLANDSTRAINS,166.5,MISCELLANEOUS STAFF TRAVEL,PASSENGER RAILWAYS,4112
29/04/2016,http://opendatacommunities.org/id/county-council/surrey,Surrey,http://id.esd.org.uk/service/1465,Council expenditure,08/01/2016,ORDER TO CASH TEAMS,WWW.GOV.UK,10,FEES,PROFESSIONAL SERVICES-NOT ELSEWHERE CLASSIFIED,8999
29/04/2016,http://opendatacommunities.org/id/county-council/surrey,Surrey,http://id.esd.org.uk/service/1465,Council expenditure,08/01/2016,TRANSPORT,TEMPLETON TOOLS & MACH,65.09,VEHICLE REPAIRS AND MAINTENANCE,INDUSTRIAL SUPPLIES NOT ELSEWHERE CLASSIFIED,5085
29/04/2016,http://opendatacommunities.org/id/county-council/surrey,Surrey,http://id.esd.org.uk/service/1465,Council expenditure,08/01/2016,ACCOMMODATION CLEANING AND REFURBISHMENT,AMAZON UK MARKETPLACE,198.75,"CLOTHING, UNIFORM AND LAUNDRY",BOOK STORES,5942
29/04/2016,http://opendatacommunities.org/id/county-council/surrey,Surrey,http://id.esd.org.uk/service/1465,Council expenditure,08/01/2016,TARGETED INTERVENTION,CREAMS CAFE,30.5,EDUC VISITS/HOLS/CAMPS/TOYS,"EATING PLACES, RESTAURANTS",5812
29/04/2016,http://opendatacommunities.org/id/county-council/surrey,Surrey,http://id.esd.org.uk/service/1465,Council expenditure,08/01/2016,LIBERTAS COMMUNITY HOME,EMPARK UK LTD,12,NON-STAFF RELATED TRANSPORT COSTS,AUTOMOBILE PARKING LOTS AND GARAGES,7523
29/04/2016,http://opendatacommunities.org/id/county-council/surrey,Surrey,http://id.esd.org.uk/service/1465,Council expenditure,08/01/2016,"SW REF, ASS & INT SERVICE - HUB 1",AMAZON UK MARKETPLACE,408.55,COMPUTER HARDWARE,BOOK STORES,5942
29/04/2016,http://opendatacommunities.org/id/county-council/surrey,Surrey,http://id.esd.org.uk/service/1465,Council expenditure,08/01/2016,KARIBU COMMUNITY HOME,WH SMITH,16.97,EDUC VISITS/HOLS/CAMPS/TOYS,NEWS DEALERS AND NEWSSTANDS,5994
29/04/2016,http://opendatacommunities.org/id/county-council/surrey,Surrey,http://id.esd.org.uk/service/1465,Council expenditure,08/01/2016,CHIEF PROPERTY OFFICER,AMAZON EU,25.91,EQUIPMENT,DIRECT MARKETING-OTHER DIRECT MARKETERS/NOT ELSEW.,5969
29/04/2016,http://opendatacommunities.org/id/county-council/surrey,Surrey,http://id.esd.org.uk/service/1465,Council expenditure,08/01/2016,COUNTY HALL,PARRS,90,ADVERTISING (STATUTORY NOTICES),HARDWARE STORES,5251
29/04/2016,http://opendatacommunities.org/id/county-council/surrey,Surrey,http://id.esd.org.uk/service/1465,Council expenditure,08/01/2016,TRANSPORT,AMAZON EU,6.24,STATIONERY,DIRECT MARKETING-OTHER DIRECT MARKETERS/NOT ELSEW.,5969
29/04/2016,http://opendatacommunities.org/id/county-council/surrey,Surrey,http://id.esd.org.uk/service/1465,Council expenditure,08/01/2016,TRANSPORT,B & Q,36,DAY TO DAY MAINTENANCE,"BUILDING MATERIALS, LUMBER STORES",5211
29/04/2016,http://opendatacommunities.org/id/county-council/surrey,Surrey,http://id.esd.org.uk/service/1465,Council expenditure,08/01/2016,PE/CDT MAINTENANCE OVERHEADS,PORTER VALMIC,268.5,ITEMS PURCHASED FOR RE-SALE,"FURNITURE-REUPHOLSTERY AND REPAIR, REFINISHING",7641
29/04/2016,http://opendatacommunities.org/id/county-council/surrey,Surrey,http://id.esd.org.uk/service/1465,Council expenditure,08/01/2016,ASYLUM SEEKERS 16-17,PREMIER INN,87.99,CHILDREN ACT SEC 17 PAYMENTS,PREMIER INN,3811
29/04/2016,http://opendatacommunities.org/id/county-council/surrey,Surrey,http://id.esd.org.uk/service/1465,Council expenditure,08/01/2016,NE EDUCATION WELFARE OFFICERS,AMAZON EU,32.98,EQUIPMENT,DIRECT MARKETING-OTHER DIRECT MARKETERS/NOT ELSEW.,5969
29/04/2016,http://opendatacommunities.org/id/county-council/surrey,Surrey,http://id.esd.org.uk/service/1465,Council expenditure,08/01/2016,LIBERTAS COMMUNITY HOME,MITIE HEALTHCARE,4.6,PURCHASE OF FOOD (RAW MATERIALS),BUSINESS SERVICES-NOT ELSEWHERE CLASSIFIED,7399
29/04/2016,http://opendatacommunities.org/id/county-council/surrey,Surrey,http://id.esd.org.uk/service/1465,Council expenditure,08/01/2016,RUTH HOUSE,ASDA  STORES 4775,88.25,"CLOTHING, UNIFORM AND LAUNDRY","GROCERY STORES, SUPERMARKETS",5411
29/04/2016,http://opendatacommunities.org/id/county-council/surrey,Surrey,http://id.esd.org.uk/service/1465,Council expenditure,08/01/2016,TRANSPORT,LINTON FUEL OILS,404.13,OPERATIONAL FIRE EQUIPMENT,"FUEL DEALERS-COAL, FUEL OIL, LIQ PETROLEUM, WOOD",5983
29/04/2016,http://opendatacommunities.org/id/county-council/surrey,Surrey,http://id.esd.org.uk/service/1465,Council expenditure,08/01/2016,KARIBU COMMUNITY HOME,SUPERDRUG STORES PLC,66.58,EQUIPMENT,"DRUG STORES, PHARMACIES",5912
29/04/2016,http://opendatacommunities.org/id/county-council/surrey,Surrey,http://id.esd.org.uk/service/1465,Council expenditure,08/01/2016,IMT CRITICAL ENVIRONMENTS,WWW.MILKANDMORE.CO.UK,6.24,REFRESHMENT COSTS,DIRECT MARKETING-CONTINUITY/SUBSCRIPTION MERCHANTS,5968
29/04/2016,http://opendatacommunities.org/id/county-council/surrey,Surrey,http://id.esd.org.uk/service/1465,Council expenditure,08/01/2016,OTHER NON CWD HOME COSTS,AMAZON UK MARKETPLACE,117.6,FURNITURE,BOOK STORES,5942
29/04/2016,http://opendatacommunities.org/id/county-council/surrey,Surrey,http://id.esd.org.uk/service/1465,Council expenditure,08/01/2016,TRANSPORT,LAERDAL MEDICAL,203.4,OPERATIONAL FIRE EQUIPMENT,DENTAL/LAB/MED/OPHTHALMIC HOSP EQUIP & SUPPLIES,5047
29/04/2016,http://opendatacommunities.org/id/county-council/surrey,Surrey,http://id.esd.org.uk/service/1465,Council expenditure,08/01/2016,COUNTYWIDE MANAGED PRINT SERVICE,AMAZON EU,39.02,COMPUTER CONSUMABLES,DIRECT MARKETING-OTHER DIRECT MARKETERS/NOT ELSEW.,5969
29/04/2016,http://opendatacommunities.org/id/county-council/surrey,Surrey,http://id.esd.org.uk/service/1465,Council expenditure,08/01/2016,NW CARE - LAC,GRO HM PASSPORT OFFICE,18.5,FEES,GOVERNMENT SERVICES-NOT ELSEWHERE CLASSIFIED,9399
29/04/2016,http://opendatacommunities.org/id/county-council/surrey,Surrey,http://id.esd.org.uk/service/1465,Council expenditure,08/01/2016,FINANCE CHANGE AND PERFORMANCE GROUP,AMAZON UK MARKETPLACE,11.98,EQUIPMENT,BOOK STORES,5942
29/04/2016,http://opendatacommunities.org/id/county-council/surrey,Surrey,http://id.esd.org.uk/service/1465,Council expenditure,08/01/2016,CHIEF PROPERTY OFFICER,AMAZON EU,86.8,COMPUTER CONSUMABLES,DIRECT MARKETING-OTHER DIRECT MARKETERS/NOT ELSEW.,5969
29/04/2016,http://opendatacommunities.org/id/county-council/surrey,Surrey,http://id.esd.org.uk/service/1465,Council expenditure,09/01/2016,HILLSIDE,TESCO STORE 3149,179.16,PURCHASE OF FOOD (RAW MATERIALS),"GROCERY STORES, SUPERMARKETS",5411
29/04/2016,http://opendatacommunities.org/id/county-council/surrey,Surrey,http://id.esd.org.uk/service/1465,Council expenditure,09/01/2016,HILLSIDE,TESCO STORE 3149,58.64,PURCHASE OF FOOD (RAW MATERIALS),"GROCERY STORES, SUPERMARKETS",5411
29/04/2016,http://opendatacommunities.org/id/county-council/surrey,Surrey,http://id.esd.org.uk/service/1465,Council expenditure,09/01/2016,FAIRCROFT COMMUNITY HOME,SPORTSDIRECT 234,12,"CLOTHING, UNIFORM AND LAUNDRY",SPORTING GOODS STORES,5941
29/04/2016,http://opendatacommunities.org/id/county-council/surrey,Surrey,http://id.esd.org.uk/service/1465,Council expenditure,09/01/2016,HOLLAND CLOSE RESIDENTIAL HOME,TESCO-STORES 6647,-2.25,PURCHASE OF FOOD (RAW MATERIALS),"GROCERY STORES, SUPERMARKETS",5411
29/04/2016,http://opendatacommunities.org/id/county-council/surrey,Surrey,http://id.esd.org.uk/service/1465,Council expenditure,09/01/2016,C&C SAFER AND STRONGER TEAM,EB SETTING UP A WEBSI,67.2,TRAINING EXPENSES EXTERNAL GENERAL,BUSINESS SERVICES-NOT ELSEWHERE CLASSIFIED,7399
29/04/2016,http://opendatacommunities.org/id/county-council/surrey,Surrey,http://id.esd.org.uk/service/1465,Council expenditure,09/01/2016,CONSERVATION,AMAZON UK MARKETPLACE,339.7,EQUIPMENT,BOOK STORES,5942
29/04/2016,http://opendatacommunities.org/id/county-council/surrey,Surrey,http://id.esd.org.uk/service/1465,Council expenditure,09/01/2016,SUPERFAST BROADBAND ECONOMIC DEVELOPMENT,LAYERSHIFT,60,COMPUTER SERVICES,COMPUTER NETWORK/INFORMATION SERVICES,4816
29/04/2016,http://opendatacommunities.org/id/county-council/surrey,Surrey,http://id.esd.org.uk/service/1465,Council expenditure,09/01/2016,KARIBU COMMUNITY HOME,LESTER BOWDEN (1898) L,25.9,"CLOTHING, UNIFORM AND LAUNDRY",MEN'S AND BOY'S CLOTHING AND ACCESSORIES STORES,5611
29/04/2016,http://opendatacommunities.org/id/county-council/surrey,Surrey,http://id.esd.org.uk/service/1465,Council expenditure,09/01/2016,COMMUNICATIONS TEAM,AMAZON EU,-47.49,STATIONERY,DIRECT MARKETING-OTHER DIRECT MARKETERS/NOT ELSEW.,5969
29/04/2016,http://opendatacommunities.org/id/county-council/surrey,Surrey,http://id.esd.org.uk/service/1465,Council expenditure,09/01/2016,KARIBU COMMUNITY HOME,AMFBOWLING.CO.UK,46.15,EDUC VISITS/HOLS/CAMPS/TOYS,BOWLING ALLEYS,7933
29/04/2016,http://opendatacommunities.org/id/county-council/surrey,Surrey,http://id.esd.org.uk/service/1465,Council expenditure,09/01/2016,ROW MAINTENANCE,CURRYS,12.99,EQUIPMENT,ELECTRONIC SALES,5732
29/04/2016,http://opendatacommunities.org/id/county-council/surrey,Surrey,http://id.esd.org.uk/service/1465,Council expenditure,09/01/2016,KARIBU COMMUNITY HOME,SAINSBURYS 0683,61.89,PURCHASE OF FOOD (RAW MATERIALS),"GROCERY STORES, SUPERMARKETS",5411
29/04/2016,http://opendatacommunities.org/id/county-council/surrey,Surrey,http://id.esd.org.uk/service/1465,Council expenditure,09/01/2016,LIBERTAS COMMUNITY HOME,EMPARK UK LTD,6.5,NON-STAFF RELATED TRANSPORT COSTS,AUTOMOBILE PARKING LOTS AND GARAGES,7523
29/04/2016,http://opendatacommunities.org/id/county-council/surrey,Surrey,http://id.esd.org.uk/service/1465,Council expenditure,09/01/2016,HOLLAND CLOSE RESIDENTIAL HOME,TESCO-STORES 6647,187.11,PURCHASE OF FOOD (RAW MATERIALS),"GROCERY STORES, SUPERMARKETS",5411
29/04/2016,http://opendatacommunities.org/id/county-council/surrey,Surrey,http://id.esd.org.uk/service/1465,Council expenditure,09/01/2016,WOODLANDS COMMUNITY HOME,CINEWORLD,47.55,EDUC VISITS/HOLS/CAMPS/TOYS,"THEATRICAL PRODUCERS(EXCL MOTION PIX),TICKET AGNCY",7922
29/04/2016,http://opendatacommunities.org/id/county-council/surrey,Surrey,http://id.esd.org.uk/service/1465,Council expenditure,09/01/2016,TRANSPORT,AMAZON UK MARKETPLACE,22.99,COMPUTER CONSUMABLES,BOOK STORES,5942
29/04/2016,http://opendatacommunities.org/id/county-council/surrey,Surrey,http://id.esd.org.uk/service/1465,Council expenditure,09/01/2016,YSS YOUTH CENTRE IMPROVEMENTS,AMAZON UK MARKETPLACE,56.59,EQUIPMENT,BOOK STORES,5942
29/04/2016,http://opendatacommunities.org/id/county-council/surrey,Surrey,http://id.esd.org.uk/service/1465,Council expenditure,09/01/2016,SERVICE DELIVERY SENIOR MANAGEMENT,AMAZON UK MARKETPLACE,20.98,EQUIPMENT,BOOK STORES,5942
29/04/2016,http://opendatacommunities.org/id/county-council/surrey,Surrey,http://id.esd.org.uk/service/1465,Council expenditure,09/01/2016,C&C SAFER AND STRONGER TEAM,EB SETTING UP A WEBSI,67.2,TRAINING EXPENSES EXTERNAL GENERAL,BUSINESS SERVICES-NOT ELSEWHERE CLASSIFIED,7399
29/04/2016,http://opendatacommunities.org/id/county-council/surrey,Surrey,http://id.esd.org.uk/service/1465,Council expenditure,09/01/2016,CONSERVATION,AMAZON UK MARKETPLACE,203,EQUIPMENT,BOOK STORES,5942
29/04/2016,http://opendatacommunities.org/id/county-council/surrey,Surrey,http://id.esd.org.uk/service/1465,Council expenditure,09/01/2016,"SW REF, ASS & INT SERVICE - HUB 1",AMAZON UK MARKETPLACE,95.33,COMPUTER HARDWARE,BOOK STORES,5942
29/04/2016,http://opendatacommunities.org/id/county-council/surrey,Surrey,http://id.esd.org.uk/service/1465,Council expenditure,10/01/2016,BURBANK COMMUNITY HOME,WOKING BREWERY ROAD,3,MISCELLANEOUS STAFF TRAVEL,AUTOMOBILE PARKING LOTS AND GARAGES,7523
29/04/2016,http://opendatacommunities.org/id/county-council/surrey,Surrey,http://id.esd.org.uk/service/1465,Council expenditure,10/01/2016,HEAD OF CHILDREN'S SERVICE,SURVEYMONKEY.COM,299,SUBSCRIPTIONS,COMPUTER NETWORK/INFORMATION SERVICES,4816
29/04/2016,http://opendatacommunities.org/id/county-council/surrey,Surrey,http://id.esd.org.uk/service/1465,Council expenditure,10/01/2016,FAIRCROFT COMMUNITY HOME,KFC,38.91,REFRESHMENT COSTS,FAST FOOD RESTAURANTS,5814
29/04/2016,http://opendatacommunities.org/id/county-council/surrey,Surrey,http://id.esd.org.uk/service/1465,Council expenditure,10/01/2016,CHEYNE WALK COMMUNITY HOME,SAINSBURYS TO YOU 0026,166.7,PURCHASE OF FOOD (RAW MATERIALS),"GROCERY STORES, SUPERMARKETS",5411
29/04/2016,http://opendatacommunities.org/id/county-council/surrey,Surrey,http://id.esd.org.uk/service/1465,Council expenditure,10/01/2016,ACL CENTRAL EXPENDITURE,W M MORRISONS,66.22,REFRESHMENT COSTS,"GROCERY STORES, SUPERMARKETS",5411
29/04/2016,http://opendatacommunities.org/id/county-council/surrey,Surrey,http://id.esd.org.uk/service/1465,Council expenditure,10/01/2016,FAIRCROFT COMMUNITY HOME,EL MEXICANA,19.37,REFRESHMENT COSTS,"EATING PLACES, RESTAURANTS",5812
29/04/2016,http://opendatacommunities.org/id/county-council/surrey,Surrey,http://id.esd.org.uk/service/1465,Council expenditure,10/01/2016,BURBANK COMMUNITY HOME,ARGOS LTD,4.99,LIBRARY RESOURCES,DISCOUNT STORES,5310
29/04/2016,http://opendatacommunities.org/id/county-council/surrey,Surrey,http://id.esd.org.uk/service/1465,Council expenditure,10/01/2016,FAIRCROFT COMMUNITY HOME,EL MEXICANA,2.99,REFRESHMENT COSTS,"EATING PLACES, RESTAURANTS",5812
29/04/2016,http://opendatacommunities.org/id/county-council/surrey,Surrey,http://id.esd.org.uk/service/1465,Council expenditure,10/01/2016,HR - SURREY ACADEMY,AMAZON UK MARKETPLACE,47.62,EQUIPMENT,BOOK STORES,5942
29/04/2016,http://opendatacommunities.org/id/county-council/surrey,Surrey,http://id.esd.org.uk/service/1465,Council expenditure,10/01/2016,LIBERTAS COMMUNITY HOME,WELCOME BREAK STARBUCK,6.29,REFRESHMENT COSTS,"MISC FOOD STORE-CONVENIENCE,MRKT,SPLTY,VENDNG MACS",5499
29/04/2016,http://opendatacommunities.org/id/county-council/surrey,Surrey,http://id.esd.org.uk/service/1465,Council expenditure,10/01/2016,HOLLAND CLOSE RESIDENTIAL HOME,NETFLIX.COM,7.49,SUBSCRIPTIONS,DIRECT MARKETING-CONTINUITY/SUBSCRIPTION MERCHANTS,5968
29/04/2016,http://opendatacommunities.org/id/county-council/surrey,Surrey,http://id.esd.org.uk/service/1465,Council expenditure,10/01/2016,FAIRCROFT COMMUNITY HOME,HARRY RAMSDENS,7.99,REFRESHMENT COSTS,"MISC FOOD STORE-CONVENIENCE,MRKT,SPLTY,VENDNG MACS",5499
29/04/2016,http://opendatacommunities.org/id/county-council/surrey,Surrey,http://id.esd.org.uk/service/1465,Council expenditure,10/01/2016,OTHER NON CWD HOME COSTS,WWW.PINESOLUTIONS.CO.U,650,FURNITURE,"EQUIP, FURNITURE, HOME FURNSHNGS STRS (EXCPT APPL)",5712
29/04/2016,http://opendatacommunities.org/id/county-council/surrey,Surrey,http://id.esd.org.uk/service/1465,Council expenditure,11/01/2016,OTHER NON CWD HOME COSTS,TOP FURNITURE LTD,267.95,FURNITURE,"EQUIP, FURNITURE, HOME FURNSHNGS STRS (EXCPT APPL)",5712
29/04/2016,http://opendatacommunities.org/id/county-council/surrey,Surrey,http://id.esd.org.uk/service/1465,Council expenditure,11/01/2016,ASH YC,CO-OP GROUP FOOD,5.35,CURRICULUM CONSUMABLES,"GROCERY STORES, SUPERMARKETS",5411
29/04/2016,http://opendatacommunities.org/id/county-council/surrey,Surrey,http://id.esd.org.uk/service/1465,Council expenditure,11/01/2016,WOODLANDS COMMUNITY HOME,SAINSBURYS 0686,172.1,PURCHASE OF FOOD (RAW MATERIALS),"GROCERY STORES, SUPERMARKETS",5411
29/04/2016,http://opendatacommunities.org/id/county-council/surrey,Surrey,http://id.esd.org.uk/service/1465,Council expenditure,11/01/2016,COVEHAM,SAINSBURYS TO YOU 0687,-1.5,PURCHASE OF FOOD (RAW MATERIALS),"GROCERY STORES, SUPERMARKETS",5411
29/04/2016,http://opendatacommunities.org/id/county-council/surrey,Surrey,http://id.esd.org.uk/service/1465,Council expenditure,11/01/2016,THE STREET YC,WM MORRISONS,28.28,PURCHASE OF FOOD (RAW MATERIALS),"GROCERY STORES, SUPERMARKETS",5411
29/04/2016,http://opendatacommunities.org/id/county-council/surrey,Surrey,http://id.esd.org.uk/service/1465,Council expenditure,11/01/2016,APPLEWOOD,ASDA HOME SHOPPING,-7.06,PURCHASE OF FOOD (RAW MATERIALS),"GROCERY STORES, SUPERMARKETS",5411
29/04/2016,http://opendatacommunities.org/id/county-council/surrey,Surrey,http://id.esd.org.uk/service/1465,Council expenditure,11/01/2016,OTHER NON CWD HOME COSTS,IKEA,71,FURNITURE,MISCELLANEOUS HOUSE FURNISHING SPECIALTY SHOPS,5719
29/04/2016,http://opendatacommunities.org/id/county-council/surrey,Surrey,http://id.esd.org.uk/service/1465,Council expenditure,11/01/2016,KARIBU COMMUNITY HOME,PARENTPAY.COM,40,PURCHASE OF FOOD (RAW MATERIALS),"COLLEGES, UNIV, PRO SCHOOLS, JUNIOR COLLEGES",8220
29/04/2016,http://opendatacommunities.org/id/county-council/surrey,Surrey,http://id.esd.org.uk/service/1465,Council expenditure,11/01/2016,TRANSPORT,AMAZON UK MARKETPLACE,295,FURNITURE,BOOK STORES,5942
29/04/2016,http://opendatacommunities.org/id/county-council/surrey,Surrey,http://id.esd.org.uk/service/1465,Council expenditure,11/01/2016,ACL CENTRAL EXPENDITURE,WAITROSE 181,20.43,REFRESHMENT COSTS,"GROCERY STORES, SUPERMARKETS",5411
29/04/2016,http://opendatacommunities.org/id/county-council/surrey,Surrey,http://id.esd.org.uk/service/1465,Council expenditure,11/01/2016,ACCESS 2 EDUCATION NW NON-MEDICAL,WWW.TASKMASTERONLINE.C,172.62,EDUC VISITS/HOLS/CAMPS/TOYS,SCHOOLS & EDUCATIONAL SVC-NOT ELSEWHERE CLASSIFIED,8299
29/04/2016,http://opendatacommunities.org/id/county-council/surrey,Surrey,http://id.esd.org.uk/service/1465,Council expenditure,11/01/2016,WOODLANDS COMMUNITY HOME,IKEA,19.25,FURNITURE,MISCELLANEOUS HOUSE FURNISHING SPECIALTY SHOPS,5719
29/04/2016,http://opendatacommunities.org/id/county-council/surrey,Surrey,http://id.esd.org.uk/service/1465,Council expenditure,11/01/2016,SPELTHORNE LOCALITY TEAM,TRAVELODGE,91.45,OTHER COMMUNITY CARE PRIV,TRAVELODGE,3615
29/04/2016,http://opendatacommunities.org/id/county-council/surrey,Surrey,http://id.esd.org.uk/service/1465,Council expenditure,11/01/2016,LIBERTAS COMMUNITY HOME,SAINSBURYS 0652,15.75,PURCHASE OF FOOD (RAW MATERIALS),"GROCERY STORES, SUPERMARKETS",5411
29/04/2016,http://opendatacommunities.org/id/county-council/surrey,Surrey,http://id.esd.org.uk/service/1465,Council expenditure,11/01/2016,LIBERTAS COMMUNITY HOME,SAINSBURYS 0652,115.9,PURCHASE OF FOOD (RAW MATERIALS),"GROCERY STORES, SUPERMARKETS",5411
29/04/2016,http://opendatacommunities.org/id/county-council/surrey,Surrey,http://id.esd.org.uk/service/1465,Council expenditure,11/01/2016,PLD TRANSITION CARE,TRAVELODGE,0.5,OTHER COMMUNITY CARE VOL,TRAVELODGE,3615
29/04/2016,http://opendatacommunities.org/id/county-council/surrey,Surrey,http://id.esd.org.uk/service/1465,Council expenditure,11/01/2016,FRIMLEY YC,MCDONALDS,3.18,REFRESHMENT COSTS,FAST FOOD RESTAURANTS,5814
29/04/2016,http://opendatacommunities.org/id/county-council/surrey,Surrey,http://id.esd.org.uk/service/1465,Council expenditure,11/01/2016,MALLOW CRESCENT,SAINSBURYS TO YOU 0686,15.6,PURCHASE OF FOOD (RAW MATERIALS),"GROCERY STORES, SUPERMARKETS",5411
29/04/2016,http://opendatacommunities.org/id/county-council/surrey,Surrey,http://id.esd.org.uk/service/1465,Council expenditure,11/01/2016,MALLOW CRESCENT,SAINSBURYS TO YOU 0686,91.65,PURCHASE OF FOOD (RAW MATERIALS),"GROCERY STORES, SUPERMARKETS",5411
29/04/2016,http://opendatacommunities.org/id/county-council/surrey,Surrey,http://id.esd.org.uk/service/1465,Council expenditure,11/01/2016,PROPERTY OPERATIONS TEAM,WICKES,78.15,PURCHASE OF BUILDING MATERIALS,"BUILDING MATERIALS, LUMBER STORES",5211
29/04/2016,http://opendatacommunities.org/id/county-council/surrey,Surrey,http://id.esd.org.uk/service/1465,Council expenditure,11/01/2016,BURBANK COMMUNITY HOME,WWW.UKFLAIR.COM,62.49,EDUC VISITS/HOLS/CAMPS/TOYS,"SPORTS APPAREL, RIDING APPAREL STORES",5655
29/04/2016,http://opendatacommunities.org/id/county-council/surrey,Surrey,http://id.esd.org.uk/service/1465,Council expenditure,11/01/2016,CHEYNE WALK COMMUNITY HOME,WAITROSE 233,42.72,PURCHASE OF FOOD (RAW MATERIALS),"GROCERY STORES, SUPERMARKETS",5411
29/04/2016,http://opendatacommunities.org/id/county-council/surrey,Surrey,http://id.esd.org.uk/service/1465,Council expenditure,11/01/2016,PE/CDT MAINTENANCE OVERHEADS,SITA HOLDINGS UK,253.44,TRADE REFUSE,"CLEANING AND MAINTENANCE, JANITORIAL SERVICES",7349
29/04/2016,http://opendatacommunities.org/id/county-council/surrey,Surrey,http://id.esd.org.uk/service/1465,Council expenditure,11/01/2016,BURBANK COMMUNITY HOME,WWW.UKFLAIR.COM,53.96,EDUC VISITS/HOLS/CAMPS/TOYS,"SPORTS APPAREL, RIDING APPAREL STORES",5655
29/04/2016,http://opendatacommunities.org/id/county-council/surrey,Surrey,http://id.esd.org.uk/service/1465,Council expenditure,11/01/2016,KARIBU COMMUNITY HOME,AMAZON UK MARKETPLACE,22.79,EQUIPMENT,BOOK STORES,5942
29/04/2016,http://opendatacommunities.org/id/county-council/surrey,Surrey,http://id.esd.org.uk/service/1465,Council expenditure,11/01/2016,FRIMLEY YC,POUNDLAND LTD 1357,2.5,PURCHASE OF FOOD (RAW MATERIALS),DISCOUNT STORES,5310
29/04/2016,http://opendatacommunities.org/id/county-council/surrey,Surrey,http://id.esd.org.uk/service/1465,Council expenditure,11/01/2016,HOPE SERVICE - EAST,SAINSBURYS 0683,105.32,PURCHASE OF FOOD (RAW MATERIALS),"GROCERY STORES, SUPERMARKETS",5411
29/04/2016,http://opendatacommunities.org/id/county-council/surrey,Surrey,http://id.esd.org.uk/service/1465,Council expenditure,11/01/2016,HOPE SERVICE - EAST,SAINSBURYS 0683,3.3,PURCHASE OF FOOD (RAW MATERIALS),"GROCERY STORES, SUPERMARKETS",5411
29/04/2016,http://opendatacommunities.org/id/county-council/surrey,Surrey,http://id.esd.org.uk/service/1465,Council expenditure,11/01/2016,MAYFORD CENTRE - BUSINESS,HOMEBASE LTD 050,9.57,DAY TO DAY MAINTENANCE,"BUILDING MATERIALS, LUMBER STORES",5211
29/04/2016,http://opendatacommunities.org/id/county-council/surrey,Surrey,http://id.esd.org.uk/service/1465,Council expenditure,11/01/2016,"SE REF, ASS & INT SERVICE - HUB 1",TRAVELODGE,"1,455.60",INDEPENDENT LIVING PLACEMENTS,TRAVELODGE,3615
29/04/2016,http://opendatacommunities.org/id/county-council/surrey,Surrey,http://id.esd.org.uk/service/1465,Council expenditure,11/01/2016,MALLOW CRESCENT,SAINSBURYS TO YOU 0686,17.7,PURCHASE OF FOOD (RAW MATERIALS),"GROCERY STORES, SUPERMARKETS",5411
29/04/2016,http://opendatacommunities.org/id/county-council/surrey,Surrey,http://id.esd.org.uk/service/1465,Council expenditure,11/01/2016,MALLOW CRESCENT,SAINSBURYS TO YOU 0686,108.75,PURCHASE OF FOOD (RAW MATERIALS),"GROCERY STORES, SUPERMARKETS",5411
29/04/2016,http://opendatacommunities.org/id/county-council/surrey,Surrey,http://id.esd.org.uk/service/1465,Council expenditure,11/01/2016,SW EDUCATION PSYCHOLOGISTS,PP 4312CODE,1,SPECIALIST EDUCATIONAL STATIONERY,PROFESSIONAL SERVICES-NOT ELSEWHERE CLASSIFIED,8999
29/04/2016,http://opendatacommunities.org/id/county-council/surrey,Surrey,http://id.esd.org.uk/service/1465,Council expenditure,11/01/2016,TARGETED INTERVENTION,W M MORRISONS CAFE,6.15,EDUC VISITS/HOLS/CAMPS/TOYS,"EATING PLACES, RESTAURANTS",5812
29/04/2016,http://opendatacommunities.org/id/county-council/surrey,Surrey,http://id.esd.org.uk/service/1465,Council expenditure,11/01/2016,WOODLANDS COMMUNITY HOME,SAINSBURYS 0686,8.31,EQUIPMENT,"GROCERY STORES, SUPERMARKETS",5411
29/04/2016,http://opendatacommunities.org/id/county-council/surrey,Surrey,http://id.esd.org.uk/service/1465,Council expenditure,11/01/2016,MALLOW CRESCENT,SAINSBURYS TO YOU 0686,4,PURCHASE OF FOOD (RAW MATERIALS),"GROCERY STORES, SUPERMARKETS",5411
29/04/2016,http://opendatacommunities.org/id/county-council/surrey,Surrey,http://id.esd.org.uk/service/1465,Council expenditure,11/01/2016,MALLOW CRESCENT,SAINSBURYS TO YOU 0686,100.4,PURCHASE OF FOOD (RAW MATERIALS),"GROCERY STORES, SUPERMARKETS",5411
29/04/2016,http://opendatacommunities.org/id/county-council/surrey,Surrey,http://id.esd.org.uk/service/1465,Council expenditure,11/01/2016,DEPUTYSHIP TEAM,WWW.BEAUCARE.COM,40.93,3RD PARTY PAYMENTS PRIVATE INDIV,"HEALTH PRACTITIONERS, MEDICAL SRVCS-NOT ELSEWHERE",8099
29/04/2016,http://opendatacommunities.org/id/county-council/surrey,Surrey,http://id.esd.org.uk/service/1465,Council expenditure,11/01/2016,APPLEWOOD,ASDA HOME SHOPPING,139.73,PURCHASE OF FOOD (RAW MATERIALS),"GROCERY STORES, SUPERMARKETS",5411
29/04/2016,http://opendatacommunities.org/id/county-council/surrey,Surrey,http://id.esd.org.uk/service/1465,Council expenditure,11/01/2016,FRIMLEY YC,SAINSBURYS SACAT 0784,5.55,PURCHASE OF FOOD (RAW MATERIALS),"GROCERY STORES, SUPERMARKETS",5411
29/04/2016,http://opendatacommunities.org/id/county-council/surrey,Surrey,http://id.esd.org.uk/service/1465,Council expenditure,11/01/2016,PROPERTY OPERATIONS TEAM,SAINSBURYS PFS 0068,20.01,PURCHASE OF BUILDING MATERIALS,SERVICE STATIONS WITH OR WITHOUT ANCILLARY SERVICE,5541
29/04/2016,http://opendatacommunities.org/id/county-council/surrey,Surrey,http://id.esd.org.uk/service/1465,Council expenditure,11/01/2016,CHILDREN'S RIGHTS TEAM,TESCO STORES 6542,13.3,REFRESHMENT COSTS,"GROCERY STORES, SUPERMARKETS",5411
29/04/2016,http://opendatacommunities.org/id/county-council/surrey,Surrey,http://id.esd.org.uk/service/1465,Council expenditure,11/01/2016,APPLEWOOD,WWW.STAPLES.CO.UK,48.97,STATIONERY,"OFFICE, SCHOOL SUPPLY, AND STATIONERY STORES",5943
29/04/2016,http://opendatacommunities.org/id/county-council/surrey,Surrey,http://id.esd.org.uk/service/1465,Council expenditure,11/01/2016,TRANSPORT,CPC,13.97,COMPUTER CONSUMABLES,ELECTRICAL PARTS AND EQUIPMENT,5065
29/04/2016,http://opendatacommunities.org/id/county-council/surrey,Surrey,http://id.esd.org.uk/service/1465,Council expenditure,11/01/2016,TARGETED INTERVENTION,TESCO STORE 3149,6.95,EDUC VISITS/HOLS/CAMPS/TOYS,"GROCERY STORES, SUPERMARKETS",5411
29/04/2016,http://opendatacommunities.org/id/county-council/surrey,Surrey,http://id.esd.org.uk/service/1465,Council expenditure,11/01/2016,IMT CRITICAL ENVIRONMENTS,WWW.MILKANDMORE.CO.UK,37.57,REFRESHMENT COSTS,"MISC FOOD STORE-CONVENIENCE,MRKT,SPLTY,VENDNG MACS",5499
29/04/2016,http://opendatacommunities.org/id/county-council/surrey,Surrey,http://id.esd.org.uk/service/1465,Council expenditure,11/01/2016,OTHER NON CWD HOME COSTS,IKEA ONLINE,295,FURNITURE,MISCELLANEOUS HOUSE FURNISHING SPECIALTY SHOPS,5719
29/04/2016,http://opendatacommunities.org/id/county-council/surrey,Surrey,http://id.esd.org.uk/service/1465,Council expenditure,11/01/2016,TRANSPORT,WWW.DVLA.GOV.UK,202.5,VEHICLE REPAIRS AND MAINTENANCE,GOVERNMENT SERVICES-NOT ELSEWHERE CLASSIFIED,9399
29/04/2016,http://opendatacommunities.org/id/county-council/surrey,Surrey,http://id.esd.org.uk/service/1465,Council expenditure,11/01/2016,HARRY'S YC,SPORTSDIRECT.COM,5.97,EQUIPMENT,SPORTING GOODS STORES,5941
29/04/2016,http://opendatacommunities.org/id/county-council/surrey,Surrey,http://id.esd.org.uk/service/1465,Council expenditure,11/01/2016,WOODLANDS COMMUNITY HOME,IKEA,60,FURNITURE,MISCELLANEOUS HOUSE FURNISHING SPECIALTY SHOPS,5719
29/04/2016,http://opendatacommunities.org/id/county-council/surrey,Surrey,http://id.esd.org.uk/service/1465,Council expenditure,11/01/2016,TRANSPORT,LIDL UK,14.96,DAY TO DAY MAINTENANCE,"GROCERY STORES, SUPERMARKETS",5411
29/04/2016,http://opendatacommunities.org/id/county-council/surrey,Surrey,http://id.esd.org.uk/service/1465,Council expenditure,11/01/2016,CHILDCARE TRAINING & DEVELOPMENT,WWW.ELKLAN.CO.UK,74,BOOKS,SCHOOLS & EDUCATIONAL SVC-NOT ELSEWHERE CLASSIFIED,8299
29/04/2016,http://opendatacommunities.org/id/county-council/surrey,Surrey,http://id.esd.org.uk/service/1465,Council expenditure,11/01/2016,TARGETED INTERVENTION,W M MORRISONS,5.42,EDUC VISITS/HOLS/CAMPS/TOYS,"GROCERY STORES, SUPERMARKETS",5411
29/04/2016,http://opendatacommunities.org/id/county-council/surrey,Surrey,http://id.esd.org.uk/service/1465,Council expenditure,11/01/2016,HILLSIDE,SAINSBURYS 0784,40.65,PURCHASE OF FOOD (RAW MATERIALS),"GROCERY STORES, SUPERMARKETS",5411
29/04/2016,http://opendatacommunities.org/id/county-council/surrey,Surrey,http://id.esd.org.uk/service/1465,Council expenditure,11/01/2016,HILLSIDE,SAINSBURYS 0784,3.9,PURCHASE OF FOOD (RAW MATERIALS),"GROCERY STORES, SUPERMARKETS",5411
29/04/2016,http://opendatacommunities.org/id/county-council/surrey,Surrey,http://id.esd.org.uk/service/1465,Council expenditure,11/01/2016,HOPE SERVICE - EAST,AMAZON UK MARKETPLACE,14,CURRICULUM CONSUMABLES,BOOK STORES,5942
29/04/2016,http://opendatacommunities.org/id/county-council/surrey,Surrey,http://id.esd.org.uk/service/1465,Council expenditure,11/01/2016,COVEHAM,SAINSBURYS TO YOU 0687,135.49,PURCHASE OF FOOD (RAW MATERIALS),"GROCERY STORES, SUPERMARKETS",5411
29/04/2016,http://opendatacommunities.org/id/county-council/surrey,Surrey,http://id.esd.org.uk/service/1465,Council expenditure,11/01/2016,OTHER NON CWD HOME COSTS,IKEA ONLINE,449,FURNITURE,MISCELLANEOUS HOUSE FURNISHING SPECIALTY SHOPS,5719
29/04/2016,http://opendatacommunities.org/id/county-council/surrey,Surrey,http://id.esd.org.uk/service/1465,Council expenditure,11/01/2016,HR - BUSINESS SERVICES AND TRAINING,AMAZON UK MARKETPLACE,53.13,EQUIPMENT,BOOK STORES,5942
29/04/2016,http://opendatacommunities.org/id/county-council/surrey,Surrey,http://id.esd.org.uk/service/1465,Council expenditure,11/01/2016,WOKING LIBRARY,FAST GLASS (LONDON) LT,456,SECURITY ALARM MAINTENANCE,"CONTRACTORS,SPECIAL TRADE-NOT ELSEWHERE CLASSIFIED",1799
29/04/2016,http://opendatacommunities.org/id/county-council/surrey,Surrey,http://id.esd.org.uk/service/1465,Council expenditure,11/01/2016,AD OPERATIONS HIGHWAYS AND COUNTRYSIDE,WWW.NEOPOST.CO.UK,309,POSTAGE AND COURIER CHARGES,STATIONERY/OFFICE SUPPLIES/PRINTING & WRITING PAP.,5111
29/04/2016,http://opendatacommunities.org/id/county-council/surrey,Surrey,http://id.esd.org.uk/service/1465,Council expenditure,11/01/2016,COMPLIANCE,CIBSE SERVICES LTD,43.2,SUBSCRIPTIONS,"ORGANIZATIONS, MEMBERSHIP-NOT ELSEWHERE CLASSIFIED",8699
29/04/2016,http://opendatacommunities.org/id/county-council/surrey,Surrey,http://id.esd.org.uk/service/1465,Council expenditure,11/01/2016,FINANCE CHANGE AND PERFORMANCE GROUP,AMAZON EU,17.37,EQUIPMENT,DIRECT MARKETING-OTHER DIRECT MARKETERS/NOT ELSEW.,5969
29/04/2016,http://opendatacommunities.org/id/county-council/surrey,Surrey,http://id.esd.org.uk/service/1465,Council expenditure,11/01/2016,FRIMLEY YC,SAINSBURYS SACAT 0784,2.35,PURCHASE OF FOOD (RAW MATERIALS),"GROCERY STORES, SUPERMARKETS",5411
29/04/2016,http://opendatacommunities.org/id/county-council/surrey,Surrey,http://id.esd.org.uk/service/1465,Council expenditure,11/01/2016,WOODLANDS COMMUNITY HOME,IKEA,63,EQUIPMENT,MISCELLANEOUS HOUSE FURNISHING SPECIALTY SHOPS,5719
29/04/2016,http://opendatacommunities.org/id/county-council/surrey,Surrey,http://id.esd.org.uk/service/1465,Council expenditure,11/01/2016,PE/CDT MAINTENANCE OVERHEADS,INDUSTRIAL RUBBER,833.33,EQUIPMENT,MISCELLANEOUS AND SPECIALTY RETAIL STORES,5999
29/04/2016,http://opendatacommunities.org/id/county-council/surrey,Surrey,http://id.esd.org.uk/service/1465,Council expenditure,11/01/2016,NW EDUCATION PSYCHOLOGISTS,AMAZON EU,12.99,BOOKS,DIRECT MARKETING-OTHER DIRECT MARKETERS/NOT ELSEW.,5969
29/04/2016,http://opendatacommunities.org/id/county-council/surrey,Surrey,http://id.esd.org.uk/service/1465,Council expenditure,11/01/2016,TRANSPORT,BRITISH STANDARDS,264,OPERATIONAL FIRE EQUIPMENT,BUSINESS SERVICES-NOT ELSEWHERE CLASSIFIED,7399
29/04/2016,http://opendatacommunities.org/id/county-council/surrey,Surrey,http://id.esd.org.uk/service/1465,Council expenditure,11/01/2016,HOPE SERVICE - WEST,SAINSBURYS SACAT(4409),28.55,PURCHASE OF FOOD (RAW MATERIALS),"GROCERY STORES, SUPERMARKETS",5411
29/04/2016,http://opendatacommunities.org/id/county-council/surrey,Surrey,http://id.esd.org.uk/service/1465,Council expenditure,11/01/2016,CHEYNE WALK COMMUNITY HOME,SUSSEX UNIFORMS LIMITE,-8,"CLOTHING, UNIFORM AND LAUNDRY",MEN'S/WOMEN'S/CHILDREN'S UNIFORMS/COMMERCIAL CLOTH,5137
29/04/2016,http://opendatacommunities.org/id/county-council/surrey,Surrey,http://id.esd.org.uk/service/1465,Council expenditure,11/01/2016,PLD TRANSITION CARE,TRAVELODGE,650,OTHER COMMUNITY CARE VOL,TRAVELODGE,3615
29/04/2016,http://opendatacommunities.org/id/county-council/surrey,Surrey,http://id.esd.org.uk/service/1465,Council expenditure,11/01/2016,TARGETED INTERVENTION,SAINSBURYS 0686,10.45,EDUC VISITS/HOLS/CAMPS/TOYS,"GROCERY STORES, SUPERMARKETS",5411
29/04/2016,http://opendatacommunities.org/id/county-council/surrey,Surrey,http://id.esd.org.uk/service/1465,Council expenditure,12/01/2016,SOLD ESTATES MANAGEMENT,BP MEMBURY EAST MWSA,11.59,VEHICLE RUNNING COSTS,SERVICE STATIONS WITH OR WITHOUT ANCILLARY SERVICE,5541
29/04/2016,http://opendatacommunities.org/id/county-council/surrey,Surrey,http://id.esd.org.uk/service/1465,Council expenditure,12/01/2016,HILLSIDE,MARKS & SPENCER,4.35,PURCHASE OF FOOD (RAW MATERIALS),"GROCERY STORES, SUPERMARKETS",5411
29/04/2016,http://opendatacommunities.org/id/county-council/surrey,Surrey,http://id.esd.org.uk/service/1465,Council expenditure,12/01/2016,SW SECTION 17 CARE,TRAVELODGE,525.65,CHILDREN ACT SEC 17 PAYMENTS,TRAVELODGE,3615
29/04/2016,http://opendatacommunities.org/id/county-council/surrey,Surrey,http://id.esd.org.uk/service/1465,Council expenditure,12/01/2016,YSS YOUTH CENTRE IMPROVEMENTS,AO RETAIL LIMITED,334.96,EQUIPMENT,HOUSEHOLD APPLIANCE STORES,5722
29/04/2016,http://opendatacommunities.org/id/county-council/surrey,Surrey,http://id.esd.org.uk/service/1465,Council expenditure,12/01/2016,CHEYNE WALK COMMUNITY HOME,AARON CARS,90,HIRE OF VEHICLES,LIMOUSINES AND TAXICABS,4121
29/04/2016,http://opendatacommunities.org/id/county-council/surrey,Surrey,http://id.esd.org.uk/service/1465,Council expenditure,12/01/2016,TARGETED INTERVENTION,TESCO STORES 2017,3,EDUC VISITS/HOLS/CAMPS/TOYS,"GROCERY STORES, SUPERMARKETS",5411
29/04/2016,http://opendatacommunities.org/id/county-council/surrey,Surrey,http://id.esd.org.uk/service/1465,Council expenditure,12/01/2016,ACL CENTRAL EXPENDITURE,ASDA  STORES 4775,116.02,REFRESHMENT COSTS,"GROCERY STORES, SUPERMARKETS",5411
29/04/2016,http://opendatacommunities.org/id/county-council/surrey,Surrey,http://id.esd.org.uk/service/1465,Council expenditure,12/01/2016,ORDER TO CASH TEAMS,WWW.GOV.UK,10,FEES,PROFESSIONAL SERVICES-NOT ELSEWHERE CLASSIFIED,8999
29/04/2016,http://opendatacommunities.org/id/county-council/surrey,Surrey,http://id.esd.org.uk/service/1465,Council expenditure,12/01/2016,WORKING TOGETHER,4CHILDREN,112.8,NEWSPAPER AND PERIODICALS,"ORGANIZATIONS, CHARITABLE AND SOCIAL SERVICES",8398
29/04/2016,http://opendatacommunities.org/id/county-council/surrey,Surrey,http://id.esd.org.uk/service/1465,Council expenditure,12/01/2016,WOODLANDS COMMUNITY HOME,DUNELM LTD,55.99,EQUIPMENT,"DRAPERY, UPOLSTERY, AND WINDOW COVERINGS STORES",5714
29/04/2016,http://opendatacommunities.org/id/county-council/surrey,Surrey,http://id.esd.org.uk/service/1465,Council expenditure,12/01/2016,MALLOW CRESCENT,SAINSBURYS SAC 4118,3,REFRESHMENT COSTS,"GROCERY STORES, SUPERMARKETS",5411
29/04/2016,http://opendatacommunities.org/id/county-council/surrey,Surrey,http://id.esd.org.uk/service/1465,Council expenditure,12/01/2016,SURREY HILLS AONB,TESCO STORE 2675,33.55,REFRESHMENT COSTS,"GROCERY STORES, SUPERMARKETS",5411
29/04/2016,http://opendatacommunities.org/id/county-council/surrey,Surrey,http://id.esd.org.uk/service/1465,Council expenditure,12/01/2016,HOPE SERVICE - WEST,AMAZON EU,13,CURRICULUM CONSUMABLES,DIRECT MARKETING-OTHER DIRECT MARKETERS/NOT ELSEW.,5969
29/04/2016,http://opendatacommunities.org/id/county-council/surrey,Surrey,http://id.esd.org.uk/service/1465,Council expenditure,12/01/2016,EMERGENCY MANAGEMENT,THE EMERGENCY PLAN,120,SUBSCRIPTIONS,"ORGANIZATIONS, MEMBERSHIP-NOT ELSEWHERE CLASSIFIED",8699
29/04/2016,http://opendatacommunities.org/id/county-council/surrey,Surrey,http://id.esd.org.uk/service/1465,Council expenditure,12/01/2016,RUTH HOUSE,SAINSBURYS TO YOU 0686,33.5,PURCHASE OF FOOD (RAW MATERIALS),"GROCERY STORES, SUPERMARKETS",5411
29/04/2016,http://opendatacommunities.org/id/county-council/surrey,Surrey,http://id.esd.org.uk/service/1465,Council expenditure,12/01/2016,RUTH HOUSE,SAINSBURYS TO YOU 0686,151.15,PURCHASE OF FOOD (RAW MATERIALS),"GROCERY STORES, SUPERMARKETS",5411
29/04/2016,http://opendatacommunities.org/id/county-council/surrey,Surrey,http://id.esd.org.uk/service/1465,Council expenditure,12/01/2016,NORTH EAST AREA TEAM,FREEDOM LEISURE,14.4,EDUC VISITS/HOLS/CAMPS/TOYS,GOVERNMENT SERVICES-NOT ELSEWHERE CLASSIFIED,9399
29/04/2016,http://opendatacommunities.org/id/county-council/surrey,Surrey,http://id.esd.org.uk/service/1465,Council expenditure,12/01/2016,SPELTHORNE LOCALITY TEAM,TRAVELODGE,87,OTHER COMMUNITY CARE PRIV,TRAVELODGE,3615
29/04/2016,http://opendatacommunities.org/id/county-council/surrey,Surrey,http://id.esd.org.uk/service/1465,Council expenditure,12/01/2016,FAIRCROFT COMMUNITY HOME,ORTHO CLINIC SURREY LT,26,EQUIPMENT,"DENTISTS, ORTHODONTISTS",8021
29/04/2016,http://opendatacommunities.org/id/county-council/surrey,Surrey,http://id.esd.org.uk/service/1465,Council expenditure,12/01/2016,DOWNLANDS COUNTRYSIDE PROJECT,NORTHPOINT VET SERVICE,181.8,FEES,VETERINARY SERVICES,742
29/04/2016,http://opendatacommunities.org/id/county-council/surrey,Surrey,http://id.esd.org.uk/service/1465,Council expenditure,12/01/2016,YSS YOUTH CENTRE IMPROVEMENTS,AMAZON PRIME,-79,EQUIPMENT,DIRECT MARKETING-CONTINUITY/SUBSCRIPTION MERCHANTS,5968
29/04/2016,http://opendatacommunities.org/id/county-council/surrey,Surrey,http://id.esd.org.uk/service/1465,Council expenditure,12/01/2016,SW AREA SEN MANAGEMENT TEAM,AMAZON UK MARKETPLACE,15.98,COMPUTER HARDWARE,BOOK STORES,5942
29/04/2016,http://opendatacommunities.org/id/county-council/surrey,Surrey,http://id.esd.org.uk/service/1465,Council expenditure,12/01/2016,CAMHS SOCIAL WORKERS,VIRTUAL EVENTS,59,OTHER COMMUNITY CARE PRIV,PROFESSIONAL SERVICES-NOT ELSEWHERE CLASSIFIED,8999
29/04/2016,http://opendatacommunities.org/id/county-council/surrey,Surrey,http://id.esd.org.uk/service/1465,Council expenditure,12/01/2016,BUSINESS UNIT,SOUTHBANK CENTRE,51.75,SUBSISTENCE AND CONFERENCE EXPENSES,"THEATRICAL PRODUCERS(EXCL MOTION PIX),TICKET AGNCY",7922
29/04/2016,http://opendatacommunities.org/id/county-council/surrey,Surrey,http://id.esd.org.uk/service/1465,Council expenditure,12/01/2016,HERITAGE ENTERPRISE (SCAU),WW.THEGARDENSUPERSTORE,46.63,EQUIPMENT,LAWN AND GARDEN SUPPLY STORES,5261
29/04/2016,http://opendatacommunities.org/id/county-council/surrey,Surrey,http://id.esd.org.uk/service/1465,Council expenditure,12/01/2016,TRAINING AND DEVELOPMENT,WWW.LOCAL.GOV.UK,474,SUBSISTENCE AND CONFERENCE EXPENSES,BUSINESS SERVICES-NOT ELSEWHERE CLASSIFIED,7399
29/04/2016,http://opendatacommunities.org/id/county-council/surrey,Surrey,http://id.esd.org.uk/service/1465,Council expenditure,12/01/2016,SW TEACHERS,AMAZON UK MARKETPLACE,16.58,BOOKS,BOOK STORES,5942
29/04/2016,http://opendatacommunities.org/id/county-council/surrey,Surrey,http://id.esd.org.uk/service/1465,Council expenditure,12/01/2016,YSS YOUTH CENTRE IMPROVEMENTS,AMAZON PRIME,7.99,POSTAGE AND COURIER CHARGES,DIRECT MARKETING-CONTINUITY/SUBSCRIPTION MERCHANTS,5968
29/04/2016,http://opendatacommunities.org/id/county-council/surrey,Surrey,http://id.esd.org.uk/service/1465,Council expenditure,12/01/2016,LOCAL DELIVERY GROUP,AMAZON UK MARKETPLACE,20.58,EQUIPMENT,BOOK STORES,5942
29/04/2016,http://opendatacommunities.org/id/county-council/surrey,Surrey,http://id.esd.org.uk/service/1465,Council expenditure,12/01/2016,BURBANK COMMUNITY HOME,LONDIS,7.68,PURCHASE OF FOOD (RAW MATERIALS),"GROCERY STORES, SUPERMARKETS",5411
29/04/2016,http://opendatacommunities.org/id/county-council/surrey,Surrey,http://id.esd.org.uk/service/1465,Council expenditure,12/01/2016,SW TEACHERS,AMAZON UK MARKETPLACE,4.98,BOOKS,BOOK STORES,5942
29/04/2016,http://opendatacommunities.org/id/county-council/surrey,Surrey,http://id.esd.org.uk/service/1465,Council expenditure,12/01/2016,TARGETED INTERVENTION,WELCOME BREAK STARBUCK,11.2,EDUC VISITS/HOLS/CAMPS/TOYS,"MISC FOOD STORE-CONVENIENCE,MRKT,SPLTY,VENDNG MACS",5499
29/04/2016,http://opendatacommunities.org/id/county-council/surrey,Surrey,http://id.esd.org.uk/service/1465,Council expenditure,12/01/2016,HOPE SERVICE - EAST,WAITROSE 189,7.54,PURCHASE OF FOOD (RAW MATERIALS),"GROCERY STORES, SUPERMARKETS",5411
29/04/2016,http://opendatacommunities.org/id/county-council/surrey,Surrey,http://id.esd.org.uk/service/1465,Council expenditure,12/01/2016,CSF - ADOPTION & FOSTERING              ,NETMUMS LTD,194.4,PUBLICITY,PROFESSIONAL SERVICES-NOT ELSEWHERE CLASSIFIED,8999
29/04/2016,http://opendatacommunities.org/id/county-council/surrey,Surrey,http://id.esd.org.uk/service/1465,Council expenditure,12/01/2016,THE BRIDGE YC,TESCO STORES 2812,13.45,PURCHASE OF FOOD (RAW MATERIALS),"GROCERY STORES, SUPERMARKETS",5411
29/04/2016,http://opendatacommunities.org/id/county-council/surrey,Surrey,http://id.esd.org.uk/service/1465,Council expenditure,12/01/2016,BURBANK COMMUNITY HOME,IKEA,169,EQUIPMENT,MISCELLANEOUS HOUSE FURNISHING SPECIALTY SHOPS,5719
29/04/2016,http://opendatacommunities.org/id/county-council/surrey,Surrey,http://id.esd.org.uk/service/1465,Council expenditure,12/01/2016,HOPE SERVICE - WEST,AMAZON UK MARKETPLACE,3.01,CURRICULUM CONSUMABLES,BOOK STORES,5942
29/04/2016,http://opendatacommunities.org/id/county-council/surrey,Surrey,http://id.esd.org.uk/service/1465,Council expenditure,12/01/2016,CHEYNE WALK COMMUNITY HOME,CURRYS,254.99,EQUIPMENT,ELECTRONIC SALES,5732
29/04/2016,http://opendatacommunities.org/id/county-council/surrey,Surrey,http://id.esd.org.uk/service/1465,Council expenditure,12/01/2016,HILLSIDE,SAINSBURYS 0675,88.22,PURCHASE OF FOOD (RAW MATERIALS),"GROCERY STORES, SUPERMARKETS",5411
29/04/2016,http://opendatacommunities.org/id/county-council/surrey,Surrey,http://id.esd.org.uk/service/1465,Council expenditure,12/01/2016,ACL CENTRAL EXPENDITURE,AMAZON UK MARKETPLACE,66.67,CURRICULUM EQUIPMENT AND FURNITURE,BOOK STORES,5942
29/04/2016,http://opendatacommunities.org/id/county-council/surrey,Surrey,http://id.esd.org.uk/service/1465,Council expenditure,12/01/2016,HOLLAND CLOSE RESIDENTIAL HOME,WILKO RETAIL LIMIT,9.99,EQUIPMENT,HOUSEHOLD APPLIANCE STORES,5722
29/04/2016,http://opendatacommunities.org/id/county-council/surrey,Surrey,http://id.esd.org.uk/service/1465,Council expenditure,12/01/2016,TARGETED INTERVENTION,THE HUB CAFE,4.8,EDUC VISITS/HOLS/CAMPS/TOYS,"EATING PLACES, RESTAURANTS",5812
29/04/2016,http://opendatacommunities.org/id/county-council/surrey,Surrey,http://id.esd.org.uk/service/1465,Council expenditure,12/01/2016,THE EDGE YC,AMAZON UK MARKETPLACE,37.98,EQUIPMENT,BOOK STORES,5942
29/04/2016,http://opendatacommunities.org/id/county-council/surrey,Surrey,http://id.esd.org.uk/service/1465,Council expenditure,12/01/2016,IMT CRITICAL ENVIRONMENTS,TALKTALK BUSINESS,"5,000.00",TELECOMMUNICATION CHARGES,TELECOM INCL PREPAID/RECURRING PHONE SVCS,4814
29/04/2016,http://opendatacommunities.org/id/county-council/surrey,Surrey,http://id.esd.org.uk/service/1465,Council expenditure,12/01/2016,NW TEACHERS,PAYPAL  NAPLIC,190,TRAINING EXPENSES EXTERNAL GENERAL,"ORGANIZATIONS, CHARITABLE AND SOCIAL SERVICES",8398
29/04/2016,http://opendatacommunities.org/id/county-council/surrey,Surrey,http://id.esd.org.uk/service/1465,Council expenditure,12/01/2016,TRANSPORT,NORBAR TORQUE TOOLS LT,119.08,OPERATIONAL FIRE EQUIPMENT,"ARCHITECTURAL, ENGINEERING, AND SURVEYING SERVICES",8911
29/04/2016,http://opendatacommunities.org/id/county-council/surrey,Surrey,http://id.esd.org.uk/service/1465,Council expenditure,12/01/2016,FAIRCROFT COMMUNITY HOME,TESCO STORES-2160,10.5,EQUIPMENT,"GROCERY STORES, SUPERMARKETS",5411
29/04/2016,http://opendatacommunities.org/id/county-council/surrey,Surrey,http://id.esd.org.uk/service/1465,Council expenditure,12/01/2016,NE TEACHERS,D I TRADING LTD,45.6,CURRIC BOOKS,PROFESSIONAL SERVICES-NOT ELSEWHERE CLASSIFIED,8999
29/04/2016,http://opendatacommunities.org/id/county-council/surrey,Surrey,http://id.esd.org.uk/service/1465,Council expenditure,12/01/2016,DOWNLANDS COUNTRYSIDE PROJECT,MCVEIGH PARKER & CO LT,272.08,EQUIPMENT,GENERAL CONTRACTORS/RESIDENTIAL BUILDINGS,1520
29/04/2016,http://opendatacommunities.org/id/county-council/surrey,Surrey,http://id.esd.org.uk/service/1465,Council expenditure,12/01/2016,ASH YC,TESCO STORES 2025,10.58,CURRICULUM CONSUMABLES,"GROCERY STORES, SUPERMARKETS",5411
29/04/2016,http://opendatacommunities.org/id/county-council/surrey,Surrey,http://id.esd.org.uk/service/1465,Council expenditure,12/01/2016,TRANSPORT,PAYPAL  ASHARMA2003,424,EQUIPMENT,PROFESSIONAL SERVICES-NOT ELSEWHERE CLASSIFIED,8999
29/04/2016,http://opendatacommunities.org/id/county-council/surrey,Surrey,http://id.esd.org.uk/service/1465,Council expenditure,12/01/2016,FAIRCROFT COMMUNITY HOME,TESCO STORE 2160,210.69,PURCHASE OF FOOD (RAW MATERIALS),"GROCERY STORES, SUPERMARKETS",5411
29/04/2016,http://opendatacommunities.org/id/county-council/surrey,Surrey,http://id.esd.org.uk/service/1465,Council expenditure,12/01/2016,KARIBU COMMUNITY HOME,PARENTPAY.COM,50,PURCHASE OF FOOD (RAW MATERIALS),"COLLEGES, UNIV, PRO SCHOOLS, JUNIOR COLLEGES",8220
29/04/2016,http://opendatacommunities.org/id/county-council/surrey,Surrey,http://id.esd.org.uk/service/1465,Council expenditure,12/01/2016,TARGETED INTERVENTION,WOKING SNOOKER CENTRE,8.88,EDUC VISITS/HOLS/CAMPS/TOYS,RECREATIONAL AND SPORTING CAMPS,7032
29/04/2016,http://opendatacommunities.org/id/county-council/surrey,Surrey,http://id.esd.org.uk/service/1465,Council expenditure,12/01/2016,OTHER NON CWD HOME COSTS,DUNELM LTD,546.02,EQUIPMENT,"DRAPERY, UPOLSTERY, AND WINDOW COVERINGS STORES",5714
29/04/2016,http://opendatacommunities.org/id/county-council/surrey,Surrey,http://id.esd.org.uk/service/1465,Council expenditure,12/01/2016,ELMBRIDGE STAFFING,AMAZON UK MARKETPLACE,-40.38,EQUIPMENT,MISCELLANEOUS AND SPECIALTY RETAIL STORES,5999
29/04/2016,http://opendatacommunities.org/id/county-council/surrey,Surrey,http://id.esd.org.uk/service/1465,Council expenditure,12/01/2016,FAIRCROFT COMMUNITY HOME,KIT-SHOP LTD,33.5,"CLOTHING, UNIFORM AND LAUNDRY",CHILDREN'S AND INFANT'S WEAR STORES,5641
29/04/2016,http://opendatacommunities.org/id/county-council/surrey,Surrey,http://id.esd.org.uk/service/1465,Council expenditure,12/01/2016,WORKPLACE COMMERCIAL TEAM,WWW.CIPS.ORG,178.5,SUBSCRIPTIONS,"ORGANIZATIONS, MEMBERSHIP-NOT ELSEWHERE CLASSIFIED",8699
29/04/2016,http://opendatacommunities.org/id/county-council/surrey,Surrey,http://id.esd.org.uk/service/1465,Council expenditure,12/01/2016,HOPE SERVICE - WEST,SAINSBURYS SACAT(4409),20.39,PURCHASE OF FOOD (RAW MATERIALS),"GROCERY STORES, SUPERMARKETS",5411
29/04/2016,http://opendatacommunities.org/id/county-council/surrey,Surrey,http://id.esd.org.uk/service/1465,Council expenditure,12/01/2016,DEPUTYSHIP TEAM,ARGOS RETAIL GROUP,78.94,3RD PARTY PAYMENTS PRIVATE INDIV,DISCOUNT STORES,5310
29/04/2016,http://opendatacommunities.org/id/county-council/surrey,Surrey,http://id.esd.org.uk/service/1465,Council expenditure,12/01/2016,SURREY HILLS AONB,MOLE COUNTRY STORES,6.9,REFRESHMENT COSTS,AGRICULTURAL COOPERATIVES,763
29/04/2016,http://opendatacommunities.org/id/county-council/surrey,Surrey,http://id.esd.org.uk/service/1465,Council expenditure,12/01/2016,E&I - RECYCLING                         ,GOOGLE  ADWS2060179426,500,PUBLICITY,DIRECT MARKETING-CONTINUITY/SUBSCRIPTION MERCHANTS,5968
29/04/2016,http://opendatacommunities.org/id/county-council/surrey,Surrey,http://id.esd.org.uk/service/1465,Council expenditure,12/01/2016,PROPERTY OPERATIONS TEAM,SCREWFIX DIRECT,26.73,PURCHASE OF BUILDING MATERIALS,"BUILDING MATERIALS, LUMBER STORES",5211
29/04/2016,http://opendatacommunities.org/id/county-council/surrey,Surrey,http://id.esd.org.uk/service/1465,Council expenditure,12/01/2016,FRIMLEY YC,ONE STOP 1396,1,PURCHASE OF FOOD (RAW MATERIALS),"GROCERY STORES, SUPERMARKETS",5411
29/04/2016,http://opendatacommunities.org/id/county-council/surrey,Surrey,http://id.esd.org.uk/service/1465,Council expenditure,12/01/2016,POLICY AND OPERATIONS TEAM              ,RBI INVOICE PAYMENTS,170.1,SUBSCRIPTIONS,MISCELLANEOUS PUBLISHING AND PRINTING,2741
29/04/2016,http://opendatacommunities.org/id/county-council/surrey,Surrey,http://id.esd.org.uk/service/1465,Council expenditure,13/01/2016,SE CARE - LAC,SURREY CC CARD PAY,-9,CHILDREN ACT SEC 17 PAYMENTS,COMPUTER NETWORK/INFORMATION SERVICES,4816
29/04/2016,http://opendatacommunities.org/id/county-council/surrey,Surrey,http://id.esd.org.uk/service/1465,Council expenditure,13/01/2016,LAC INITIATIVES,MACDONALD HOTELS MANCH,94,TRAINING EXPENSES EXTERNAL GENERAL,"LODGING-HOTELS,MOTELS,RESORTS-NOT CLASSIFIED",7011
29/04/2016,http://opendatacommunities.org/id/county-council/surrey,Surrey,http://id.esd.org.uk/service/1465,Council expenditure,13/01/2016,ARUNDEL,TESCO STORES 5999,123.54,REFRESHMENT COSTS,"GROCERY STORES, SUPERMARKETS",5411
29/04/2016,http://opendatacommunities.org/id/county-council/surrey,Surrey,http://id.esd.org.uk/service/1465,Council expenditure,13/01/2016,MULBERRY YC,SAINSBURYS SACAT 0764,7.8,PURCHASE OF FOOD (RAW MATERIALS),"GROCERY STORES, SUPERMARKETS",5411
29/04/2016,http://opendatacommunities.org/id/county-council/surrey,Surrey,http://id.esd.org.uk/service/1465,Council expenditure,13/01/2016,IMT CRITICAL ENVIRONMENTS,TALKTALK BUSINESS,"1,763.76",TELECOMMUNICATION CHARGES,TELECOM INCL PREPAID/RECURRING PHONE SVCS,4814
29/04/2016,http://opendatacommunities.org/id/county-council/surrey,Surrey,http://id.esd.org.uk/service/1465,Council expenditure,13/01/2016,OTHER NON CWD HOME COSTS,BOUF.COM,88.98,EQUIPMENT,VARIETY STORES,5331
29/04/2016,http://opendatacommunities.org/id/county-council/surrey,Surrey,http://id.esd.org.uk/service/1465,Council expenditure,13/01/2016,HOPE SERVICE - WEST,SAINSBURYS TO YOU 0686,91.48,PURCHASE OF FOOD (RAW MATERIALS),"GROCERY STORES, SUPERMARKETS",5411
29/04/2016,http://opendatacommunities.org/id/county-council/surrey,Surrey,http://id.esd.org.uk/service/1465,Council expenditure,13/01/2016,BURBANK COMMUNITY HOME,SAINSBURYS TO YOU 0686,199.7,PURCHASE OF FOOD (RAW MATERIALS),"GROCERY STORES, SUPERMARKETS",5411
29/04/2016,http://opendatacommunities.org/id/county-council/surrey,Surrey,http://id.esd.org.uk/service/1465,Council expenditure,13/01/2016,MALLOW CRESCENT,SAINSBURYS TO YOU 0686,15.6,PURCHASE OF FOOD (RAW MATERIALS),"GROCERY STORES, SUPERMARKETS",5411
29/04/2016,http://opendatacommunities.org/id/county-council/surrey,Surrey,http://id.esd.org.uk/service/1465,Council expenditure,13/01/2016,MALLOW CRESCENT,SAINSBURYS TO YOU 0686,88.48,PURCHASE OF FOOD (RAW MATERIALS),"GROCERY STORES, SUPERMARKETS",5411
29/04/2016,http://opendatacommunities.org/id/county-council/surrey,Surrey,http://id.esd.org.uk/service/1465,Council expenditure,13/01/2016,C&C DIRECTORATE SUPPORT,AMAZON UK MARKETPLACE,10.27,EQUIPMENT,BOOK STORES,5942
29/04/2016,http://opendatacommunities.org/id/county-council/surrey,Surrey,http://id.esd.org.uk/service/1465,Council expenditure,13/01/2016,BURBANK COMMUNITY HOME,PARENTPAY.COM,50,REFRESHMENT COSTS,"COLLEGES, UNIV, PRO SCHOOLS, JUNIOR COLLEGES",8220
29/04/2016,http://opendatacommunities.org/id/county-council/surrey,Surrey,http://id.esd.org.uk/service/1465,Council expenditure,13/01/2016,TRANSPORT,PAYPAL  EASYLOCKS,34.44,DAY TO DAY MAINTENANCE,"DURABLE GOODS, NOT ELSEWHERE CLASSIFIED",5099
29/04/2016,http://opendatacommunities.org/id/county-council/surrey,Surrey,http://id.esd.org.uk/service/1465,Council expenditure,13/01/2016,FARNHAM YC,SAINSBURYS SACAT 0060,8.85,PURCHASE OF FOOD (RAW MATERIALS),"GROCERY STORES, SUPERMARKETS",5411
29/04/2016,http://opendatacommunities.org/id/county-council/surrey,Surrey,http://id.esd.org.uk/service/1465,Council expenditure,13/01/2016,TARGETED INTERVENTION,TICKETOFFICESALE,10.1,EDUC VISITS/HOLS/CAMPS/TOYS,PASSENGER RAILWAYS,4112
29/04/2016,http://opendatacommunities.org/id/county-council/surrey,Surrey,http://id.esd.org.uk/service/1465,Council expenditure,13/01/2016,TARGETED INTERVENTION,THE HUB CAFE,1.8,EDUC VISITS/HOLS/CAMPS/TOYS,"EATING PLACES, RESTAURANTS",5812
29/04/2016,http://opendatacommunities.org/id/county-council/surrey,Surrey,http://id.esd.org.uk/service/1465,Council expenditure,13/01/2016,FAIRCROFT COMMUNITY HOME,TESCO STORE 2160,148.32,CLEANING AND DOMESTIC SUPPLIES,"GROCERY STORES, SUPERMARKETS",5411
29/04/2016,http://opendatacommunities.org/id/county-council/surrey,Surrey,http://id.esd.org.uk/service/1465,Council expenditure,13/01/2016,COUNTY HALL,WICKES 266,13.18,DAY TO DAY MAINTENANCE,HOME SUPPLY WAREHOUSE STORES,5200
29/04/2016,http://opendatacommunities.org/id/county-council/surrey,Surrey,http://id.esd.org.uk/service/1465,Council expenditure,13/01/2016,TS SERVICE MANAGEMENT,THE CENTRE,151.2,VENUE COSTS (INCLUDING HIRE OF ROOMS),RECREATION SERVICES (NOT ELSEWHERE CLASSIFIED),7999
29/04/2016,http://opendatacommunities.org/id/county-council/surrey,Surrey,http://id.esd.org.uk/service/1465,Council expenditure,13/01/2016,YSS YOUTH CENTRE IMPROVEMENTS,ARGOS RETAIL GROUP,46.99,EQUIPMENT,DISCOUNT STORES,5310
29/04/2016,http://opendatacommunities.org/id/county-council/surrey,Surrey,http://id.esd.org.uk/service/1465,Council expenditure,13/01/2016,RUTH HOUSE,TOYS R US,59.99,EDUC VISITS/HOLS/CAMPS/TOYS,MISCELLANEOUS GENERAL MERCHANDISE,5399
29/04/2016,http://opendatacommunities.org/id/county-council/surrey,Surrey,http://id.esd.org.uk/service/1465,Council expenditure,13/01/2016,SERVICE DELIVERY MANAGER,AMAZON UK MARKETPLACE,152.91,EQUIPMENT,BOOK STORES,5942
29/04/2016,http://opendatacommunities.org/id/county-council/surrey,Surrey,http://id.esd.org.uk/service/1465,Council expenditure,13/01/2016,SW EDUCATION PSYCHOLOGISTS,PAYPAL  REAL GROUP,46.52,SPECIALIST EDUCATIONAL STATIONERY,"DEBT, MARRIAGE, PERSONAL-COUNSELING SERVICE",7277
29/04/2016,http://opendatacommunities.org/id/county-council/surrey,Surrey,http://id.esd.org.uk/service/1465,Council expenditure,13/01/2016,TARGETED INTERVENTION,THE HUB CAFE,3.8,EDUC VISITS/HOLS/CAMPS/TOYS,"EATING PLACES, RESTAURANTS",5812
29/04/2016,http://opendatacommunities.org/id/county-council/surrey,Surrey,http://id.esd.org.uk/service/1465,Council expenditure,13/01/2016,CHIEF PROPERTY OFFICER,AMAZON EU,22.55,EQUIPMENT,DIRECT MARKETING-OTHER DIRECT MARKETERS/NOT ELSEW.,5969
29/04/2016,http://opendatacommunities.org/id/county-council/surrey,Surrey,http://id.esd.org.uk/service/1465,Council expenditure,13/01/2016,HOPE SERVICE - WEST,WICKES,30.14,CURRICULUM EQUIPMENT AND FURNITURE,"BUILDING MATERIALS, LUMBER STORES",5211
29/04/2016,http://opendatacommunities.org/id/county-council/surrey,Surrey,http://id.esd.org.uk/service/1465,Council expenditure,13/01/2016,SERVICE DELIVERY SENIOR MANAGEMENT,POST OFFICE COUNTER,2.8,POSTAGE AND COURIER CHARGES,POSTAL SERVICES-GOVERNMENT ONLY,9402
29/04/2016,http://opendatacommunities.org/id/county-council/surrey,Surrey,http://id.esd.org.uk/service/1465,Council expenditure,13/01/2016,ASSESSMENT TEAM,AMAZON UK MARKETPLACE,2,EQUIPMENT,BOOK STORES,5942
29/04/2016,http://opendatacommunities.org/id/county-council/surrey,Surrey,http://id.esd.org.uk/service/1465,Council expenditure,13/01/2016,PROPERTY OPERATIONS TEAM,CITY PLUMBING,3.49,PURCHASE OF BUILDING MATERIALS,"BUILDING MATERIALS, LUMBER STORES",5211
29/04/2016,http://opendatacommunities.org/id/county-council/surrey,Surrey,http://id.esd.org.uk/service/1465,Council expenditure,13/01/2016,SMOKING AND TOBACCO,WH SMITH,460,PURCHASE CARD TRANSACTION LOG DEFAULT,NEWS DEALERS AND NEWSSTANDS,5994
29/04/2016,http://opendatacommunities.org/id/county-council/surrey,Surrey,http://id.esd.org.uk/service/1465,Council expenditure,13/01/2016,SE CARE - LAC,SURREY CC CARD PAY,31,CHILDREN ACT SEC 17 PAYMENTS,COMPUTER NETWORK/INFORMATION SERVICES,4816
29/04/2016,http://opendatacommunities.org/id/county-council/surrey,Surrey,http://id.esd.org.uk/service/1465,Council expenditure,13/01/2016,CHEYNE WALK COMMUNITY HOME,AMAZON UK MARKETPLACE,6.99,EQUIPMENT,BOOK STORES,5942
29/04/2016,http://opendatacommunities.org/id/county-council/surrey,Surrey,http://id.esd.org.uk/service/1465,Council expenditure,13/01/2016,SURREY ARTS                             ,EB ADUK CONFERENCE OU,354,TRAINING EXPENSES EXTERNAL GENERAL,BUSINESS SERVICES-NOT ELSEWHERE CLASSIFIED,7399
29/04/2016,http://opendatacommunities.org/id/county-council/surrey,Surrey,http://id.esd.org.uk/service/1465,Council expenditure,13/01/2016,OTHER NON CWD HOME COSTS,OAKFURNITURELAND.C,"3,097.39",FURNITURE,"EQUIP, FURNITURE, HOME FURNSHNGS STRS (EXCPT APPL)",5712
29/04/2016,http://opendatacommunities.org/id/county-council/surrey,Surrey,http://id.esd.org.uk/service/1465,Council expenditure,13/01/2016,ACL CENTRAL EXPENDITURE,TESCO STORE 3220,76.32,PURCHASE OF FOOD (RAW MATERIALS),"GROCERY STORES, SUPERMARKETS",5411
29/04/2016,http://opendatacommunities.org/id/county-council/surrey,Surrey,http://id.esd.org.uk/service/1465,Council expenditure,13/01/2016,CRANLEIGH YC,WAITROSE 216,6.99,CHILDCARE CATERING,"GROCERY STORES, SUPERMARKETS",5411
29/04/2016,http://opendatacommunities.org/id/county-council/surrey,Surrey,http://id.esd.org.uk/service/1465,Council expenditure,13/01/2016,LAKERS YC,WAITROSE 181,13,REFRESHMENT COSTS,"GROCERY STORES, SUPERMARKETS",5411
29/04/2016,http://opendatacommunities.org/id/county-council/surrey,Surrey,http://id.esd.org.uk/service/1465,Council expenditure,13/01/2016,FARNHAM LIBRARY,AMAZON UK MARKETPLACE,27.98,EQUIPMENT,BOOK STORES,5942
29/04/2016,http://opendatacommunities.org/id/county-council/surrey,Surrey,http://id.esd.org.uk/service/1465,Council expenditure,13/01/2016,LIBERTAS COMMUNITY HOME,TILLINGS,189.96,EQUIPMENT,"EATING PLACES, RESTAURANTS",5812
29/04/2016,http://opendatacommunities.org/id/county-council/surrey,Surrey,http://id.esd.org.uk/service/1465,Council expenditure,13/01/2016,ASHTEAD YC,TESCO PFS 2485,16.68,REFRESHMENT COSTS,SERVICE STATIONS WITH OR WITHOUT ANCILLARY SERVICE,5541
29/04/2016,http://opendatacommunities.org/id/county-council/surrey,Surrey,http://id.esd.org.uk/service/1465,Council expenditure,13/01/2016,HOPE SERVICE - WEST,SAINSBURYS TO YOU 0686,-3.45,PURCHASE OF FOOD (RAW MATERIALS),"GROCERY STORES, SUPERMARKETS",5411
29/04/2016,http://opendatacommunities.org/id/county-council/surrey,Surrey,http://id.esd.org.uk/service/1465,Council expenditure,13/01/2016,PROPERTY OPERATIONS TEAM,GUILDFORD SIGNS LT,96,PURCHASE OF BUILDING MATERIALS,"PHOTO DEVELOPING, PHOTOFINISHING LABORATORIES",7395
29/04/2016,http://opendatacommunities.org/id/county-council/surrey,Surrey,http://id.esd.org.uk/service/1465,Council expenditure,13/01/2016,SPELTHORNE LOCAL CARE PD,TRAVELODGE,49,RESIDENTIAL PRIV,TRAVELODGE,3615
29/04/2016,http://opendatacommunities.org/id/county-council/surrey,Surrey,http://id.esd.org.uk/service/1465,Council expenditure,13/01/2016,HILLSIDE,SAINSBURYS SACAT 0675,6.4,PURCHASE OF FOOD (RAW MATERIALS),"GROCERY STORES, SUPERMARKETS",5411
29/04/2016,http://opendatacommunities.org/id/county-council/surrey,Surrey,http://id.esd.org.uk/service/1465,Council expenditure,13/01/2016,ACL CENTRAL EXPENDITURE,WWW.CRAFTSMANMAGAZINE.,108,PUBLICITY,"OFFICE, SCHOOL SUPPLY, AND STATIONERY STORES",5943
29/04/2016,http://opendatacommunities.org/id/county-council/surrey,Surrey,http://id.esd.org.uk/service/1465,Council expenditure,13/01/2016,TRAINING AND DEVELOPMENT,WWW.TRAIN-AID.CO.UK,690,TRAINING EXPENSES EXTERNAL GENERAL,SCHOOLS & EDUCATIONAL SVC-NOT ELSEWHERE CLASSIFIED,8299
29/04/2016,http://opendatacommunities.org/id/county-council/surrey,Surrey,http://id.esd.org.uk/service/1465,Council expenditure,13/01/2016,WOODLANDS COMMUNITY HOME,CURRYS ONLINE,614.99,EQUIPMENT,ELECTRONIC SALES,5732
29/04/2016,http://opendatacommunities.org/id/county-council/surrey,Surrey,http://id.esd.org.uk/service/1465,Council expenditure,13/01/2016,OTHER NON CWD HOME COSTS,NEXT DIRECTORY,325,FURNITURE,FAMILY CLOTHING STORES,5651
29/04/2016,http://opendatacommunities.org/id/county-council/surrey,Surrey,http://id.esd.org.uk/service/1465,Council expenditure,13/01/2016,WOODLANDS COMMUNITY HOME,NEXT DIRECTORY,8,POSTAGE AND COURIER CHARGES,FAMILY CLOTHING STORES,5651
29/04/2016,http://opendatacommunities.org/id/county-council/surrey,Surrey,http://id.esd.org.uk/service/1465,Council expenditure,13/01/2016,OTHER NON CWD HOME COSTS,WWW.SOFASOFA.CO.UK,897,FURNITURE,"EQUIP, FURNITURE, HOME FURNSHNGS STRS (EXCPT APPL)",5712
29/04/2016,http://opendatacommunities.org/id/county-council/surrey,Surrey,http://id.esd.org.uk/service/1465,Council expenditure,13/01/2016,TRANSPORT,COLEMAN MILNE,135.36,VEHICLE REPAIRS AND MAINTENANCE,"AUTOMOTIVE PARTS, ACCESSORIES STORES",5533
29/04/2016,http://opendatacommunities.org/id/county-council/surrey,Surrey,http://id.esd.org.uk/service/1465,Council expenditure,13/01/2016,SECTOR MANAGER,ROYAL MAIL,"1,650.60",ITEMS PURCHASED FOR RE-SALE,POSTAL SERVICES-GOVERNMENT ONLY,9402
29/04/2016,http://opendatacommunities.org/id/county-council/surrey,Surrey,http://id.esd.org.uk/service/1465,Council expenditure,13/01/2016,SPELTHORNE LOCAL CARE PD,TRAVELODGE,261,RESIDENTIAL PRIV,TRAVELODGE,3615
29/04/2016,http://opendatacommunities.org/id/county-council/surrey,Surrey,http://id.esd.org.uk/service/1465,Council expenditure,13/01/2016,COUNTY HALL,AKRO LIMITED,72.6,DAY TO DAY MAINTENANCE,HARDWARE EQUIPMENT AND SUPPLIES,5072
29/04/2016,http://opendatacommunities.org/id/county-council/surrey,Surrey,http://id.esd.org.uk/service/1465,Council expenditure,13/01/2016,OTHER NON CWD HOME COSTS,AMAZON UK MARKETPLACE,897,FURNITURE,BOOK STORES,5942
29/04/2016,http://opendatacommunities.org/id/county-council/surrey,Surrey,http://id.esd.org.uk/service/1465,Council expenditure,13/01/2016,HOPE SERVICE - EAST,DENBIES WINE ESTAT,9.8,REFRESHMENT COSTS,"EATING PLACES, RESTAURANTS",5812
29/04/2016,http://opendatacommunities.org/id/county-council/surrey,Surrey,http://id.esd.org.uk/service/1465,Council expenditure,13/01/2016,HILLSIDE,SAINSBURYS 0675,52,PURCHASE OF FOOD (RAW MATERIALS),"GROCERY STORES, SUPERMARKETS",5411
29/04/2016,http://opendatacommunities.org/id/county-council/surrey,Surrey,http://id.esd.org.uk/service/1465,Council expenditure,13/01/2016,FAIRCROFT COMMUNITY HOME,SAINSBURYS 0687,8.48,EQUIPMENT,"GROCERY STORES, SUPERMARKETS",5411
29/04/2016,http://opendatacommunities.org/id/county-council/surrey,Surrey,http://id.esd.org.uk/service/1465,Council expenditure,13/01/2016,CHEYNE WALK COMMUNITY HOME,SAINSBURYS TO YOU 0026,218.01,PURCHASE OF FOOD (RAW MATERIALS),"GROCERY STORES, SUPERMARKETS",5411
29/04/2016,http://opendatacommunities.org/id/county-council/surrey,Surrey,http://id.esd.org.uk/service/1465,Council expenditure,13/01/2016,ARUNDEL,NOEL COWARD THEATRE,40,EDUC VISITS/HOLS/CAMPS/TOYS,"THEATRICAL PRODUCERS(EXCL MOTION PIX),TICKET AGNCY",7922
29/04/2016,http://opendatacommunities.org/id/county-council/surrey,Surrey,http://id.esd.org.uk/service/1465,Council expenditure,13/01/2016,COMMUNICATIONS TEAM,DANIELS SILVERMAN,-87.09,STATIONERY,OTHER SERVICES (NOT ELSEWHERE CLASSIFIED),7299
29/04/2016,http://opendatacommunities.org/id/county-council/surrey,Surrey,http://id.esd.org.uk/service/1465,Council expenditure,13/01/2016,CHIEF PROPERTY OFFICER,AMAZON EU,25.91,EQUIPMENT,DIRECT MARKETING-OTHER DIRECT MARKETERS/NOT ELSEW.,5969
29/04/2016,http://opendatacommunities.org/id/county-council/surrey,Surrey,http://id.esd.org.uk/service/1465,Council expenditure,13/01/2016,PROPERTY OPERATIONS TEAM,B & Q,3.5,PURCHASE OF BUILDING MATERIALS,"BUILDING MATERIALS, LUMBER STORES",5211
29/04/2016,http://opendatacommunities.org/id/county-council/surrey,Surrey,http://id.esd.org.uk/service/1465,Council expenditure,13/01/2016,BURBANK COMMUNITY HOME,WWW.SURREYCC.GOV.UK,50,REFRESHMENT COSTS,GOVERNMENT SERVICES-NOT ELSEWHERE CLASSIFIED,9399
29/04/2016,http://opendatacommunities.org/id/county-council/surrey,Surrey,http://id.esd.org.uk/service/1465,Council expenditure,13/01/2016,TARGETED INTERVENTION,THE HUB CAFE,2.2,EDUC VISITS/HOLS/CAMPS/TOYS,"EATING PLACES, RESTAURANTS",5812
29/04/2016,http://opendatacommunities.org/id/county-council/surrey,Surrey,http://id.esd.org.uk/service/1465,Council expenditure,13/01/2016,OTHER NON CWD HOME COSTS,LONGACRES NURSERY,159.96,EQUIPMENT,LAWN AND GARDEN SUPPLY STORES,5261
29/04/2016,http://opendatacommunities.org/id/county-council/surrey,Surrey,http://id.esd.org.uk/service/1465,Council expenditure,13/01/2016,HR - FOSTER CARE TRAINING,FOSTER PARENT COLLEGE,141.67,TRAINING EXPENSES EXTERNAL GENERAL,SCHOOLS & EDUCATIONAL SVC-NOT ELSEWHERE CLASSIFIED,8299
29/04/2016,http://opendatacommunities.org/id/county-council/surrey,Surrey,http://id.esd.org.uk/service/1465,Council expenditure,14/01/2016,TARGETED INTERVENTION,WOKING BOROUGH COUNCIL,3.9,EDUC VISITS/HOLS/CAMPS/TOYS,AUTOMOBILE PARKING LOTS AND GARAGES,7523
29/04/2016,http://opendatacommunities.org/id/county-council/surrey,Surrey,http://id.esd.org.uk/service/1465,Council expenditure,14/01/2016,TARGETED INTERVENTION,WOKING BOROUGH COUNCIL,5.2,EDUC VISITS/HOLS/CAMPS/TOYS,AUTOMOBILE PARKING LOTS AND GARAGES,7523
29/04/2016,http://opendatacommunities.org/id/county-council/surrey,Surrey,http://id.esd.org.uk/service/1465,Council expenditure,14/01/2016,THE STREET YC,BP OAKTREE CONNECT,3,REFRESHMENT COSTS,SERVICE STATIONS WITH OR WITHOUT ANCILLARY SERVICE,5541
29/04/2016,http://opendatacommunities.org/id/county-council/surrey,Surrey,http://id.esd.org.uk/service/1465,Council expenditure,14/01/2016,LEAVING CARE TEAM,BRITISH A,195.04,OTHER COMMUNITY CARE VOL,BRITISH A,3005
29/04/2016,http://opendatacommunities.org/id/county-council/surrey,Surrey,http://id.esd.org.uk/service/1465,Council expenditure,14/01/2016,THE BRIDGE YC,TESCO STORES 2812,16.95,PURCHASE OF FOOD (RAW MATERIALS),"GROCERY STORES, SUPERMARKETS",5411
29/04/2016,http://opendatacommunities.org/id/county-council/surrey,Surrey,http://id.esd.org.uk/service/1465,Council expenditure,14/01/2016,SERVICE DELIVERY RESOURCES,NITON EQUIPMENT LTD,629.96,OPERATIONAL FIRE EQUIPMENT,ACCESSORY AND APPAREL STORES-MISCELLANEOUS,5699
29/04/2016,http://opendatacommunities.org/id/county-council/surrey,Surrey,http://id.esd.org.uk/service/1465,Council expenditure,14/01/2016,ARUNDEL,TESCO STORES 5999,83.49,REFRESHMENT COSTS,"GROCERY STORES, SUPERMARKETS",5411
29/04/2016,http://opendatacommunities.org/id/county-council/surrey,Surrey,http://id.esd.org.uk/service/1465,Council expenditure,14/01/2016,ARUNDEL,TESCO STORES 5999,18.75,REFRESHMENT COSTS,"GROCERY STORES, SUPERMARKETS",5411
29/04/2016,http://opendatacommunities.org/id/county-council/surrey,Surrey,http://id.esd.org.uk/service/1465,Council expenditure,14/01/2016,WALTON YC,SANBEI WALTON,13.98,EQUIPMENT,TELECOMMUNICATION EQUIPMENT INCL TELEPHONE SALES,4812
29/04/2016,http://opendatacommunities.org/id/county-council/surrey,Surrey,http://id.esd.org.uk/service/1465,Council expenditure,14/01/2016,OTHER NON CWD HOME COSTS,ARGOS LTD,917.93,EQUIPMENT,DISCOUNT STORES,5310
29/04/2016,http://opendatacommunities.org/id/county-council/surrey,Surrey,http://id.esd.org.uk/service/1465,Council expenditure,14/01/2016,ASSET PLANNING - OPERATIONS,AMAZON EU,196,EQUIPMENT,DIRECT MARKETING-OTHER DIRECT MARKETERS/NOT ELSEW.,5969
29/04/2016,http://opendatacommunities.org/id/county-council/surrey,Surrey,http://id.esd.org.uk/service/1465,Council expenditure,14/01/2016,TARGETED INTERVENTION,BROOK LANDS MUSEUM TRU,23,EDUC VISITS/HOLS/CAMPS/TOYS,RECREATION SERVICES (NOT ELSEWHERE CLASSIFIED),7999
29/04/2016,http://opendatacommunities.org/id/county-council/surrey,Surrey,http://id.esd.org.uk/service/1465,Council expenditure,14/01/2016,YSS YOUTH CENTRE IMPROVEMENTS,AMAZON UK MARKETPLACE,18.94,EQUIPMENT,BOOK STORES,5942
29/04/2016,http://opendatacommunities.org/id/county-council/surrey,Surrey,http://id.esd.org.uk/service/1465,Council expenditure,14/01/2016,NORTH WEST AREA TEAM,VUE NCS CITB HS&E TEST,19.5,EDUC VISITS/HOLS/CAMPS/TOYS,SCHOOLS & EDUCATIONAL SVC-NOT ELSEWHERE CLASSIFIED,8299
29/04/2016,http://opendatacommunities.org/id/county-council/surrey,Surrey,http://id.esd.org.uk/service/1465,Council expenditure,14/01/2016,TRANSPORT,INSULATED TOOLS LTD,99.48,OPERATIONAL FIRE EQUIPMENT,HARDWARE EQUIPMENT AND SUPPLIES,5072
29/04/2016,http://opendatacommunities.org/id/county-council/surrey,Surrey,http://id.esd.org.uk/service/1465,Council expenditure,14/01/2016,NORTH EAST AREA TEAM,TESCO STORES 3220,5.63,EDUC VISITS/HOLS/CAMPS/TOYS,"GROCERY STORES, SUPERMARKETS",5411
29/04/2016,http://opendatacommunities.org/id/county-council/surrey,Surrey,http://id.esd.org.uk/service/1465,Council expenditure,14/01/2016,HILLSIDE,WILKO RETAIL LIMIT,10,EQUIPMENT,HOUSEHOLD APPLIANCE STORES,5722
29/04/2016,http://opendatacommunities.org/id/county-council/surrey,Surrey,http://id.esd.org.uk/service/1465,Council expenditure,14/01/2016,FAIRCROFT COMMUNITY HOME,ARGOS RETAIL GROUP,268.4,EQUIPMENT,DISCOUNT STORES,5310
29/04/2016,http://opendatacommunities.org/id/county-council/surrey,Surrey,http://id.esd.org.uk/service/1465,Council expenditure,14/01/2016,TRANSPORT,PAYPAL  SHENZHENEST,5.94,COMPUTER CONSUMABLES,VARIETY STORES,5331
29/04/2016,http://opendatacommunities.org/id/county-council/surrey,Surrey,http://id.esd.org.uk/service/1465,Council expenditure,14/01/2016,WALTON YC,SAINSBURYS SACAT 2663,8.45,REFRESHMENT COSTS,"GROCERY STORES, SUPERMARKETS",5411
29/04/2016,http://opendatacommunities.org/id/county-council/surrey,Surrey,http://id.esd.org.uk/service/1465,Council expenditure,14/01/2016,YSS YOUTH CENTRE IMPROVEMENTS,ARGOS RETAIL GROUP,199.99,EQUIPMENT,DISCOUNT STORES,5310
29/04/2016,http://opendatacommunities.org/id/county-council/surrey,Surrey,http://id.esd.org.uk/service/1465,Council expenditure,14/01/2016,SFRS-SERVICE DELIVERY,WWW.AFOA.CO.UK,300,SUBSISTENCE AND CONFERENCE EXPENSES,"ORGANIZATIONS, MEMBERSHIP-NOT ELSEWHERE CLASSIFIED",8699
29/04/2016,http://opendatacommunities.org/id/county-council/surrey,Surrey,http://id.esd.org.uk/service/1465,Council expenditure,14/01/2016,EQUIPMENT SCC BUDGET,FIRSTCHOICE CATERING S,177.04,EQUIPMENT,INDUSTRIAL SUPPLIES NOT ELSEWHERE CLASSIFIED,5085
29/04/2016,http://opendatacommunities.org/id/county-council/surrey,Surrey,http://id.esd.org.uk/service/1465,Council expenditure,14/01/2016,WALTON YC,HOMEBASE LTD 067,16.96,EQUIPMENT,"BUILDING MATERIALS, LUMBER STORES",5211
29/04/2016,http://opendatacommunities.org/id/county-council/surrey,Surrey,http://id.esd.org.uk/service/1465,Council expenditure,14/01/2016,PROPERTY OPERATIONS TEAM,SCREWFIX DIRECT,17.98,PURCHASE OF BUILDING MATERIALS,"BUILDING MATERIALS, LUMBER STORES",5211
29/04/2016,http://opendatacommunities.org/id/county-council/surrey,Surrey,http://id.esd.org.uk/service/1465,Council expenditure,14/01/2016,TARGETED INTERVENTION,SAINSBURYS 0686,4.8,EDUC VISITS/HOLS/CAMPS/TOYS,"GROCERY STORES, SUPERMARKETS",5411
29/04/2016,http://opendatacommunities.org/id/county-council/surrey,Surrey,http://id.esd.org.uk/service/1465,Council expenditure,14/01/2016,"SW REF, ASS & INT SERVICE - HUB 1",AMAZON UK MARKETPLACE,19.98,TELECOMMUNICATION CHARGES,BOOK STORES,5942
29/04/2016,http://opendatacommunities.org/id/county-council/surrey,Surrey,http://id.esd.org.uk/service/1465,Council expenditure,14/01/2016,SOUTH EAST AREA TEAM,VUE NCS CITB HS&E TEST,19.5,EDUC VISITS/HOLS/CAMPS/TOYS,SCHOOLS & EDUCATIONAL SVC-NOT ELSEWHERE CLASSIFIED,8299
29/04/2016,http://opendatacommunities.org/id/county-council/surrey,Surrey,http://id.esd.org.uk/service/1465,Council expenditure,14/01/2016,HILLSIDE,SAINSBURYS 0675,-10,PURCHASE OF FOOD (RAW MATERIALS),"GROCERY STORES, SUPERMARKETS",5411
29/04/2016,http://opendatacommunities.org/id/county-council/surrey,Surrey,http://id.esd.org.uk/service/1465,Council expenditure,14/01/2016,OTHER NON CWD HOME COSTS,IKEA ONLINE,694,FURNITURE,MISCELLANEOUS HOUSE FURNISHING SPECIALTY SHOPS,5719
29/04/2016,http://opendatacommunities.org/id/county-council/surrey,Surrey,http://id.esd.org.uk/service/1465,Council expenditure,14/01/2016,ACL CENTRAL EXPENDITURE,TOOLSTATION LTD,23.47,DAY TO DAY MAINTENANCE,HARDWARE STORES,5251
29/04/2016,http://opendatacommunities.org/id/county-council/surrey,Surrey,http://id.esd.org.uk/service/1465,Council expenditure,14/01/2016,CHILDREN'S CENTRAL REFERRAL UNIT,TONER GIANT V/T,149.96,PRINTING,"OFFICE, SCHOOL SUPPLY, AND STATIONERY STORES",5943
29/04/2016,http://opendatacommunities.org/id/county-council/surrey,Surrey,http://id.esd.org.uk/service/1465,Council expenditure,14/01/2016,HILLSIDE,ARGOS LTD,24.99,EQUIPMENT,DISCOUNT STORES,5310
29/04/2016,http://opendatacommunities.org/id/county-council/surrey,Surrey,http://id.esd.org.uk/service/1465,Council expenditure,14/01/2016,HILLSIDE,SAINSBURYS 0675,47.77,PURCHASE OF FOOD (RAW MATERIALS),"GROCERY STORES, SUPERMARKETS",5411
29/04/2016,http://opendatacommunities.org/id/county-council/surrey,Surrey,http://id.esd.org.uk/service/1465,Council expenditure,14/01/2016,TRANSPORT,WWW.THESIGNBUILD.CO.UK,45.13,DAY TO DAY MAINTENANCE,"GLASS, PAINT, WALLPAPER STORES",5231
29/04/2016,http://opendatacommunities.org/id/county-council/surrey,Surrey,http://id.esd.org.uk/service/1465,Council expenditure,14/01/2016,TARGETED INTERVENTION,TESCO STORE 2047,5,EDUC VISITS/HOLS/CAMPS/TOYS,"GROCERY STORES, SUPERMARKETS",5411
29/04/2016,http://opendatacommunities.org/id/county-council/surrey,Surrey,http://id.esd.org.uk/service/1465,Council expenditure,14/01/2016,TRANSPORT,PREMIER VANGUARD L,340.2,OPERATIONAL FIRE EQUIPMENT,"OFFICE, SCHOOL SUPPLY, AND STATIONERY STORES",5943
29/04/2016,http://opendatacommunities.org/id/county-council/surrey,Surrey,http://id.esd.org.uk/service/1465,Council expenditure,14/01/2016,YSS YOUTH CENTRE IMPROVEMENTS,ARGOS RETAIL GROUP,245.98,EQUIPMENT,DISCOUNT STORES,5310
29/04/2016,http://opendatacommunities.org/id/county-council/surrey,Surrey,http://id.esd.org.uk/service/1465,Council expenditure,14/01/2016,CHILDREN'S RIGHTS TEAM,WWW.DOMINOS.CO.UK,34.97,REFRESHMENT COSTS,"EATING PLACES, RESTAURANTS",5812
29/04/2016,http://opendatacommunities.org/id/county-council/surrey,Surrey,http://id.esd.org.uk/service/1465,Council expenditure,14/01/2016,RUTH HOUSE,THE BOOK PEOPLE,14.93,EDUC VISITS/HOLS/CAMPS/TOYS,BOOK STORES,5942
29/04/2016,http://opendatacommunities.org/id/county-council/surrey,Surrey,http://id.esd.org.uk/service/1465,Council expenditure,14/01/2016,TARGETED INTERVENTION,IZ  ITALIAN STREET FOO,7,EDUC VISITS/HOLS/CAMPS/TOYS,"EATING PLACES, RESTAURANTS",5812
29/04/2016,http://opendatacommunities.org/id/county-council/surrey,Surrey,http://id.esd.org.uk/service/1465,Council expenditure,14/01/2016,THE STREET YC,WM MORRISONS,5,EQUIPMENT,"GROCERY STORES, SUPERMARKETS",5411
29/04/2016,http://opendatacommunities.org/id/county-council/surrey,Surrey,http://id.esd.org.uk/service/1465,Council expenditure,14/01/2016,PROPERTY OPERATIONS TEAM,TOOLSTATION LTD,17.35,PURCHASE OF BUILDING MATERIALS,HARDWARE STORES,5251
29/04/2016,http://opendatacommunities.org/id/county-council/surrey,Surrey,http://id.esd.org.uk/service/1465,Council expenditure,14/01/2016,TRANSPORT,WWW.THESIGNBUILD.CO.UK,90,DAY TO DAY MAINTENANCE,"GLASS, PAINT, WALLPAPER STORES",5231
29/04/2016,http://opendatacommunities.org/id/county-council/surrey,Surrey,http://id.esd.org.uk/service/1465,Council expenditure,14/01/2016,ACL CENTRAL EXPENDITURE,SEAWHITE OF BRIGHT,98.4,CURRICULUM CONSUMABLES,"OFFICE, SCHOOL SUPPLY, AND STATIONERY STORES",5943
29/04/2016,http://opendatacommunities.org/id/county-council/surrey,Surrey,http://id.esd.org.uk/service/1465,Council expenditure,14/01/2016,OTHER NON CWD HOME COSTS,OAK FURNITURE LAND,878.62,FURNITURE,"EQUIP, FURNITURE, HOME FURNSHNGS STRS (EXCPT APPL)",5712
29/04/2016,http://opendatacommunities.org/id/county-council/surrey,Surrey,http://id.esd.org.uk/service/1465,Council expenditure,15/01/2016,COMMUNICATIONS TEAM,FINANCIAL TIMES,54,SUBSCRIPTIONS,DIRECT MARKETING-CATALOG MERCHANTS,5964
29/04/2016,http://opendatacommunities.org/id/county-council/surrey,Surrey,http://id.esd.org.uk/service/1465,Council expenditure,15/01/2016,DEPUTYSHIP TEAM,TV LICENSING,145.5,3RD PARTY PAYMENTS PRIVATE INDIV,"CONSULTING, MANAGEMENT, AND PUBLIC RELATIONS SVCS",7392
29/04/2016,http://opendatacommunities.org/id/county-council/surrey,Surrey,http://id.esd.org.uk/service/1465,Council expenditure,15/01/2016,Q&C A COTTLE,HALSBURY TRAVEL LTD,"3,580.00",EDUC VISITS/HOLS/CAMPS/TOYS,TRAVEL AGENCIES AND TOUR OPERATORS,4722
29/04/2016,http://opendatacommunities.org/id/county-council/surrey,Surrey,http://id.esd.org.uk/service/1465,Council expenditure,15/01/2016,DORMERS RESIDENTIAL CARE,WM MORRISONS,86.89,EQUIPMENT,"GROCERY STORES, SUPERMARKETS",5411
29/04/2016,http://opendatacommunities.org/id/county-council/surrey,Surrey,http://id.esd.org.uk/service/1465,Council expenditure,15/01/2016,LOWER MOLE COUNTRYSIDE PROJECT,SAINSBURYS 0683,63.95,REFRESHMENT COSTS,"GROCERY STORES, SUPERMARKETS",5411
29/04/2016,http://opendatacommunities.org/id/county-council/surrey,Surrey,http://id.esd.org.uk/service/1465,Council expenditure,15/01/2016,HILLSIDE,WOVEN LABELS UK LT,4.98,"CLOTHING, UNIFORM AND LAUNDRY",ACCESSORY AND APPAREL STORES-MISCELLANEOUS,5699
29/04/2016,http://opendatacommunities.org/id/county-council/surrey,Surrey,http://id.esd.org.uk/service/1465,Council expenditure,15/01/2016,TARGETED INTERVENTION,TOP GOLF ADDLESTON,7.9,EDUC VISITS/HOLS/CAMPS/TOYS,"CLUBS-CNTRY,MBRSHIP(ATHLET,REC,SPRTS,PRIVATE GOLF",7997
29/04/2016,http://opendatacommunities.org/id/county-council/surrey,Surrey,http://id.esd.org.uk/service/1465,Council expenditure,15/01/2016,TARGETED INTERVENTION,ARGOS WOKING,17.94,EXAMINATION FEES,DISCOUNT STORES,5310
29/04/2016,http://opendatacommunities.org/id/county-council/surrey,Surrey,http://id.esd.org.uk/service/1465,Council expenditure,15/01/2016,OTHER NON CWD HOME COSTS,DUNELM LTD,59.4,EQUIPMENT,"DRAPERY, UPOLSTERY, AND WINDOW COVERINGS STORES",5714
29/04/2016,http://opendatacommunities.org/id/county-council/surrey,Surrey,http://id.esd.org.uk/service/1465,Council expenditure,15/01/2016,PROPERTY OPERATIONS TEAM,SCREWFIX DIRECT,35.12,PURCHASE OF BUILDING MATERIALS,"BUILDING MATERIALS, LUMBER STORES",5211
29/04/2016,http://opendatacommunities.org/id/county-council/surrey,Surrey,http://id.esd.org.uk/service/1465,Council expenditure,15/01/2016,TARGETED INTERVENTION,THE ATRIUM CAMBERLEY,1.5,EDUC VISITS/HOLS/CAMPS/TOYS,PROFESSIONAL SERVICES-NOT ELSEWHERE CLASSIFIED,8999
29/04/2016,http://opendatacommunities.org/id/county-council/surrey,Surrey,http://id.esd.org.uk/service/1465,Council expenditure,15/01/2016,TARGETED INTERVENTION,WOKING SNOOKER CENTRE,10.38,EDUC VISITS/HOLS/CAMPS/TOYS,RECREATIONAL AND SPORTING CAMPS,7032
29/04/2016,http://opendatacommunities.org/id/county-council/surrey,Surrey,http://id.esd.org.uk/service/1465,Council expenditure,15/01/2016,ASSISTED PURCHASE SCHEME,DEAN PELLING WW&B,325,EQUIPMENT,"MUSIC STORES-INSTRUMENTS, PIANOS, SHEET MUSIC",5733
29/04/2016,http://opendatacommunities.org/id/county-council/surrey,Surrey,http://id.esd.org.uk/service/1465,Council expenditure,15/01/2016,AREA EXCLUSIONS (SW),AMAZON EU,54.99,EQUIPMENT,DIRECT MARKETING-OTHER DIRECT MARKETERS/NOT ELSEW.,5969
29/04/2016,http://opendatacommunities.org/id/county-council/surrey,Surrey,http://id.esd.org.uk/service/1465,Council expenditure,15/01/2016,PE/CDT MAINTENANCE OVERHEADS,HALFORDS 0731,9.99,EQUIPMENT,BICYCLE SHOPS-SALES AND SERVICE,5940
29/04/2016,http://opendatacommunities.org/id/county-council/surrey,Surrey,http://id.esd.org.uk/service/1465,Council expenditure,15/01/2016,TRANSPORT,AMAZON EU,52.85,OPERATIONAL FIRE EQUIPMENT,DIRECT MARKETING-OTHER DIRECT MARKETERS/NOT ELSEW.,5969
29/04/2016,http://opendatacommunities.org/id/county-council/surrey,Surrey,http://id.esd.org.uk/service/1465,Council expenditure,15/01/2016,EXTENDED HOPE,TOP TABLE,186.5,REFRESHMENT COSTS,FAST FOOD RESTAURANTS,5814
29/04/2016,http://opendatacommunities.org/id/county-council/surrey,Surrey,http://id.esd.org.uk/service/1465,Council expenditure,15/01/2016,ASHTEAD YC,TESCO STORES 3235,5.19,REFRESHMENT COSTS,"GROCERY STORES, SUPERMARKETS",5411
29/04/2016,http://opendatacommunities.org/id/county-council/surrey,Surrey,http://id.esd.org.uk/service/1465,Council expenditure,15/01/2016,LIBRARIES CENTRAL,ROBERT DYAS HOLDNG LTD,33.94,EQUIPMENT,HARDWARE STORES,5251
29/04/2016,http://opendatacommunities.org/id/county-council/surrey,Surrey,http://id.esd.org.uk/service/1465,Council expenditure,15/01/2016,TRAINING AND DEVELOPMENT,WWW.COOPERSOFSTORTFORD,39.98,EQUIPMENT,DEPARTMENT STORES,5311
29/04/2016,http://opendatacommunities.org/id/county-council/surrey,Surrey,http://id.esd.org.uk/service/1465,Council expenditure,15/01/2016,WOODLANDS COMMUNITY HOME,DUNELM LTD,23.97,EQUIPMENT,"DRAPERY, UPOLSTERY, AND WINDOW COVERINGS STORES",5714
29/04/2016,http://opendatacommunities.org/id/county-council/surrey,Surrey,http://id.esd.org.uk/service/1465,Council expenditure,15/01/2016,ROW VOLUNTEERS WEST                     ,PRACTICAL CAR & VAN RE,241,FEES,AUTOMOBILE RENTAL AGENCY-NOT ELSEWHERE CLASSIFIED,7512
29/04/2016,http://opendatacommunities.org/id/county-council/surrey,Surrey,http://id.esd.org.uk/service/1465,Council expenditure,15/01/2016,TARGETED INTERVENTION,COSTA COFFEE 43037325,9.1,EDUC VISITS/HOLS/CAMPS/TOYS,FAST FOOD RESTAURANTS,5814
29/04/2016,http://opendatacommunities.org/id/county-council/surrey,Surrey,http://id.esd.org.uk/service/1465,Council expenditure,15/01/2016,SW EDUCATION PSYCHOLOGISTS,"AMAZON SVCS EUROPE,SAR",7.79,BOOKS,BOOK STORES,5942
29/04/2016,http://opendatacommunities.org/id/county-council/surrey,Surrey,http://id.esd.org.uk/service/1465,Council expenditure,15/01/2016,CEO - PRIORITIES                        ,FACEBOOK F8HLV8N9K2,600.12,PUBLICITY,ADVERTISING SERVICES,7311
29/04/2016,http://opendatacommunities.org/id/county-council/surrey,Surrey,http://id.esd.org.uk/service/1465,Council expenditure,15/01/2016,COMPLIANCE,CIBSE SERVICES LTD,86.4,SUBSCRIPTIONS,"ORGANIZATIONS, MEMBERSHIP-NOT ELSEWHERE CLASSIFIED",8699
29/04/2016,http://opendatacommunities.org/id/county-council/surrey,Surrey,http://id.esd.org.uk/service/1465,Council expenditure,15/01/2016,HOPE SERVICE - EAST,TESCO STORES 6320,3.5,PURCHASE OF FOOD (RAW MATERIALS),"GROCERY STORES, SUPERMARKETS",5411
29/04/2016,http://opendatacommunities.org/id/county-council/surrey,Surrey,http://id.esd.org.uk/service/1465,Council expenditure,15/01/2016,E&I - RECYCLING                         ,GOOGLE  ADWS2060179426,500,PUBLICITY,DIRECT MARKETING-CONTINUITY/SUBSCRIPTION MERCHANTS,5968
29/04/2016,http://opendatacommunities.org/id/county-council/surrey,Surrey,http://id.esd.org.uk/service/1465,Council expenditure,15/01/2016,ARUNDEL,TESCO STORES 5999,137.91,REFRESHMENT COSTS,"GROCERY STORES, SUPERMARKETS",5411
29/04/2016,http://opendatacommunities.org/id/county-council/surrey,Surrey,http://id.esd.org.uk/service/1465,Council expenditure,15/01/2016,COVEHAM,SAINSBURYS 0687,20,CLEANING AND DOMESTIC SUPPLIES,"GROCERY STORES, SUPERMARKETS",5411
29/04/2016,http://opendatacommunities.org/id/county-council/surrey,Surrey,http://id.esd.org.uk/service/1465,Council expenditure,15/01/2016,SERVICE DELIVERY RESOURCES,AUTO SMART,749.52,CLEANING MATERIALS,"AUTOMOTIVE PARTS, ACCESSORIES STORES",5533
29/04/2016,http://opendatacommunities.org/id/county-council/surrey,Surrey,http://id.esd.org.uk/service/1465,Council expenditure,15/01/2016,LIBERTAS COMMUNITY HOME,ARGOS WOKING,19.99,EQUIPMENT,DISCOUNT STORES,5310
29/04/2016,http://opendatacommunities.org/id/county-council/surrey,Surrey,http://id.esd.org.uk/service/1465,Council expenditure,15/01/2016,LOWER MOLE COUNTRYSIDE PROJECT,WWW.PAYOCS.CO.UK,67.46,CLEANING AND DOMESTIC SUPPLIES,"CLEANING AND MAINTENANCE, JANITORIAL SERVICES",7349
29/04/2016,http://opendatacommunities.org/id/county-council/surrey,Surrey,http://id.esd.org.uk/service/1465,Council expenditure,15/01/2016,HILLSIDE,SAINSBURYS 0675,45.9,PURCHASE OF FOOD (RAW MATERIALS),"GROCERY STORES, SUPERMARKETS",5411
29/04/2016,http://opendatacommunities.org/id/county-council/surrey,Surrey,http://id.esd.org.uk/service/1465,Council expenditure,15/01/2016,HILLSIDE,SAINSBURYS 0675,5,PURCHASE OF FOOD (RAW MATERIALS),"GROCERY STORES, SUPERMARKETS",5411
29/04/2016,http://opendatacommunities.org/id/county-council/surrey,Surrey,http://id.esd.org.uk/service/1465,Council expenditure,15/01/2016,NORTH EAST AREA TEAM,AMAZON EU,12.84,EQUIPMENT,DIRECT MARKETING-OTHER DIRECT MARKETERS/NOT ELSEW.,5969
29/04/2016,http://opendatacommunities.org/id/county-council/surrey,Surrey,http://id.esd.org.uk/service/1465,Council expenditure,15/01/2016,FAIRCROFT COMMUNITY HOME,SAINSBURYS 0687,11.5,EQUIPMENT,"GROCERY STORES, SUPERMARKETS",5411
29/04/2016,http://opendatacommunities.org/id/county-council/surrey,Surrey,http://id.esd.org.uk/service/1465,Council expenditure,15/01/2016,TARGETED INTERVENTION,PRIMARK,12,EDUC VISITS/HOLS/CAMPS/TOYS,FAMILY CLOTHING STORES,5651
29/04/2016,http://opendatacommunities.org/id/county-council/surrey,Surrey,http://id.esd.org.uk/service/1465,Council expenditure,15/01/2016,CHEYNE WALK COMMUNITY HOME,AMAZON EU,17.95,EQUIPMENT,DIRECT MARKETING-OTHER DIRECT MARKETERS/NOT ELSEW.,5969
29/04/2016,http://opendatacommunities.org/id/county-council/surrey,Surrey,http://id.esd.org.uk/service/1465,Council expenditure,15/01/2016,PROPERTY OPERATIONS TEAM,WICKES,13.98,PURCHASE OF BUILDING MATERIALS,HOME SUPPLY WAREHOUSE STORES,5200
29/04/2016,http://opendatacommunities.org/id/county-council/surrey,Surrey,http://id.esd.org.uk/service/1465,Council expenditure,15/01/2016,PE/CDT MAINTENANCE OVERHEADS,STAPLES UK,38.05,EQUIPMENT,"OFFICE, SCHOOL SUPPLY, AND STATIONERY STORES",5943
29/04/2016,http://opendatacommunities.org/id/county-council/surrey,Surrey,http://id.esd.org.uk/service/1465,Council expenditure,15/01/2016,EXTENDED HOURS SREVICE,JOHN LEWIS,308,EQUIPMENT,DEPARTMENT STORES,5311
29/04/2016,http://opendatacommunities.org/id/county-council/surrey,Surrey,http://id.esd.org.uk/service/1465,Council expenditure,15/01/2016,TARGETED INTERVENTION,FREEDOM LEISURE,3.15,EDUC VISITS/HOLS/CAMPS/TOYS,GOVERNMENT SERVICES-NOT ELSEWHERE CLASSIFIED,9399
29/04/2016,http://opendatacommunities.org/id/county-council/surrey,Surrey,http://id.esd.org.uk/service/1465,Council expenditure,15/01/2016,HOPE SERVICE - EAST,WWW.PENNINETEANDCOFFEE,60.5,REFRESHMENT COSTS,"GROCERY STORES, SUPERMARKETS",5411
